{"text_format":"1","workbook":"xlsx","n_sheets":10,"sheets":["Accueil","Listes","BD articles menus","BD menus","Menus midi retraite","Menus journaliers","Menus viandes midi weekend","Quantités desserts","Quantités légumes","Quantités viandes"],"not_rendered":{"charts":0,"images":0,"macros":1,"external_links":0,"defined_names":1,"comments":0,"pivot_tables":0},"unopened":[],"bounds":{"document_bytes":16777216,"sheet_cells":100000,"rows_first":2000,"rows_last":500,"rows_between":2000,"halvings":0,"cell_chars":16384,"cell_head_chars":4096},"cells_cut":0,"cells_raw":0,"read":"whole","date_system":"1900"}

{"sheet":"Accueil","index":0,"n_rows":213,"n_cols":6,"rows_kept":213,"cut":false,"hidden":false,"merged":[]}
[null,null,null,"Open","Save",2023]
[null,null,null,"2023-06-27T11:20:51","2023-06-27T11:18:06"]
[null,null,null,"2023-06-28T15:16:22","2023-06-27T11:20:36"]
[null,null,null,"2023-06-29T10:42:07","2023-06-27T11:21:09"]
[null,null,null,"2023-06-29T14:55:27","2023-06-27T11:47:52"]
[null,null,null,"2023-07-01T12:08:30","2023-06-27T12:51:18"]
[null,null,null,"2023-07-02T11:03:53","2023-06-28T16:19:21"]
[null,null,null,"2023-07-02T15:39:41","2023-06-29T11:30:22"]
[null,null,null,"2023-07-03T10:57:11","2023-06-29T15:48:35"]
[null,null,null,"2023-07-03T18:15:55","2023-06-29T16:30:41"]
[null,null,null,"2023-07-04T09:33:33","2023-07-01T12:24:02"]
[null,null,null,"2023-07-05T10:53:31","2023-07-02T12:27:46"]
[null,null,null,"2023-07-05T14:34:25","2023-07-02T16:02:57"]
[null,null,null,"2023-07-05T18:51:40","2023-07-02T16:05:41"]
[null,null,null,"2023-07-05T21:52:35","2023-07-03T11:01:03"]
[null,null,null,"2023-07-06T11:09:01","2023-07-03T21:45:08"]
[null,null,null,"2023-07-06T14:38:57","2023-07-04T09:56:18"]
[null,null,null,"2023-07-06T19:05:45","2023-07-05T12:09:09"]
[null,null,null,"2023-07-06T21:11:28","2023-07-05T16:05:18"]
[null,null,null,"2023-07-07T10:49:56","2023-07-05T16:17:35"]
[null,null,null,"2023-07-07T18:58:25","2023-07-05T16:26:19"]
[null,null,null,"2023-07-08T15:56:05","2023-07-05T19:09:11"]
[null,null,null,"2023-07-08T16:11:59","2023-07-05T19:40:44"]
[null,null,null,"2023-07-08T17:49:04","2023-07-05T21:03:21"]
[null,null,null,"2023-07-09T11:29:34","2023-07-05T21:10:25"]
[null,null,null,"2023-07-09T12:05:20","2023-07-05T21:56:53"]
[null,null,null,"2023-07-09T17:34:16","2023-07-05T22:17:08"]
[null,null,null,"2023-07-09T18:18:42","2023-07-06T13:28:02"]
[null,null,null,"2023-07-10T10:48:19","2023-07-06T15:04:48"]
[null,null,null,"2023-07-10T14:47:45","2023-07-06T15:42:14"]
[null,null,null,"2023-07-10T21:18:07","2023-07-06T15:51:47"]
[null,null,null,"2023-07-13T16:01:21","2023-07-06T16:06:44"]
[null,null,null,"2023-07-13T21:22:09","2023-07-06T16:09:10"]
[null,null,null,"2023-07-14T11:06:14","2023-07-06T19:20:33"]
[null,null,null,"2023-07-14T21:42:15","2023-07-06T19:55:27"]
[null,null,null,"2023-07-15T12:04:50","2023-07-06T21:59:40"]
[null,null,null,"2023-07-15T18:30:47","2023-07-07T11:01:29"]
[null,null,null,"2023-07-16T15:17:37","2023-07-07T11:23:26"]
[null,null,null,"2023-08-03T19:24:42","2023-07-07T19:04:52"]
[null,null,null,"2023-08-04T09:22:22","2023-07-07T21:41:34"]
[null,null,null,"2023-08-04T16:16:19","2023-07-07T21:49:48"]
[null,null,null,"2023-08-04T19:39:11","2023-07-08T16:03:52"]
[null,null,null,"2023-08-05T17:30:17","2023-07-08T16:20:43"]
[null,null,null,"2023-08-05T21:22:46","2023-07-08T16:21:36"]
[null,null,null,"2023-08-06T12:06:29","2023-07-08T16:30:26"]
[null,null,null,"2023-08-06T14:55:54","2023-07-08T21:57:02"]
[null,null,null,"2023-08-06T15:17:23","2023-07-09T11:36:23"]
[null,null,null,"2023-08-06T18:42:05","2023-07-09T11:39:55"]
[null,null,null,"2023-08-06T20:08:45","2023-07-09T12:02:00"]
[null,null,null,"2023-08-07T11:05:54","2023-07-09T12:19:49"]
[null,null,null,"2023-08-07T15:17:33","2023-07-09T17:41:27"]
[null,null,null,"2023-08-07T18:54:04","2023-07-09T17:53:28"]
[null,null,null,"2023-08-08T15:05:41","2023-07-09T18:07:07"]
[null,null,null,"2023-08-08T18:48:15","2023-07-09T18:18:23"]
[null,null,null,"2023-08-09T14:46:10","2023-07-09T18:20:17"]
[null,null,null,"2023-08-09T18:48:27","2023-07-09T18:25:21"]
[null,null,null,"2023-08-09T20:54:50","2023-07-10T12:30:07"]
[null,null,null,"2023-08-10T12:16:27","2023-07-10T14:54:57"]
[null,null,null,"2023-08-10T22:26:29","2023-07-10T15:10:13"]
[null,null,null,"2023-08-10T22:32:07","2023-07-10T15:35:43"]
[null,null,null,"2023-08-11T10:53:41","2023-07-10T16:20:03"]
[null,null,null,"2023-08-11T21:42:39","2023-07-10T16:25:40"]
[null,null,null,"2023-08-12T10:04:48","2023-07-10T16:36:55"]
[null,null,null,"2023-08-12T12:59:51","2023-07-10T21:50:08"]
[null,null,null,"2023-08-13T19:49:38","2023-07-10T22:09:48"]
[null,null,null,"2023-08-14T10:53:57","2023-07-13T16:03:44"]
[null,null,null,"2023-08-14T15:07:56","2023-07-13T16:13:47"]
[null,null,null,"2023-08-14T19:00:29","2023-07-13T16:25:48"]
[null,null,null,"2023-08-14T19:37:23","2023-07-13T21:54:07"]
[null,null,null,"2023-08-14T21:05:09","2023-07-14T11:41:17"]
[null,null,null,"2023-08-15T10:23:19","2023-07-14T11:52:29"]
[null,null,null,"2023-08-15T21:08:08","2023-07-14T21:59:04"]
[null,null,null,"2023-08-16T10:21:43","2023-07-15T12:41:44"]
[null,null,null,"2023-08-16T12:39:50","2023-07-15T12:47:21"]
[null,null,null,"2023-08-17T09:57:56","2023-07-15T12:48:48"]
[null,null,null,"2023-08-17T11:45:48","2023-07-15T18:54:00"]
[null,null,null,"2023-08-17T16:23:42","2023-07-15T19:00:19"]
[null,null,null,"2023-08-18T11:08:29","2023-07-15T19:06:42"]
[null,null,null,"2023-08-18T15:25:40","2023-07-15T19:15:04"]
[null,null,null,"2023-08-19T10:52:32","2023-07-15T22:21:10"]
[null,null,null,"2023-08-19T15:40:58","2023-07-15T22:21:30"]
[null,null,null,"2023-08-19T18:48:38","2023-07-15T22:41:27"]
[null,null,null,"2023-08-19T21:07:22","2023-07-16T15:55:48"]
[null,null,null,"2023-08-19T21:09:28","2023-08-03T21:19:21"]
[null,null,null,"2023-08-19T21:40:54","2023-08-03T21:35:30"]
[null,null,null,"2023-08-20T10:56:44","2023-08-04T09:32:45"]
[null,null,null,"2023-08-20T14:35:10","2023-08-04T09:50:06"]
[null,null,null,"2023-08-21T10:25:53","2023-08-04T16:30:49"]
[null,null,null,"2023-08-21T12:18:33","2023-08-04T16:45:29"]
[null,null,null,"2023-08-21T14:48:41","2023-08-04T21:05:39"]
[null,null,null,"2023-08-21T19:09:58","2023-08-04T22:27:26"]
[null,null,null,"2023-08-21T21:08:16","2023-08-05T17:48:32"]
[null,null,null,"2023-08-22T10:42:07","2023-08-05T21:25:19"]
[null,null,null,"2023-08-22T21:04:05","2023-08-06T12:23:08"]
[null,null,null,"2023-08-23T11:37:40","2023-08-06T15:06:03"]
[null,null,null,"2023-08-23T14:38:06","2023-08-06T16:00:34"]
[null,null,null,"2023-08-23T18:16:54","2023-08-06T16:15:03"]
[null,null,null,"2023-08-23T18:40:59","2023-08-06T19:27:05"]
[null,null,null,"2023-08-24T10:31:59","2023-08-06T20:10:09"]
[null,null,null,"2023-08-24T15:19:28","2023-08-07T11:52:19"]
[null,null,null,"2023-08-24T18:33:44","2023-08-07T12:15:08"]
[null,null,null,"2023-08-24T21:06:51","2023-08-07T12:43:08"]
[null,null,null,"2023-08-25T10:49:54","2023-08-07T16:33:13"]
[null,null,null,"2023-08-25T16:57:54","2023-08-07T19:43:44"]
[null,null,null,"2023-08-25T20:12:15","2023-08-07T21:31:08"]
[null,null,null,"2023-08-27T15:51:59","2023-08-08T15:52:07"]
[null,null,null,"2023-08-27T19:42:47","2023-08-08T16:32:45"]
[null,null,null,"2023-08-27T21:58:28","2023-08-08T19:19:28"]
[null,null,null,"2023-08-28T10:36:30","2023-08-08T19:19:51"]
[null,null,null,"2023-08-28T11:46:20","2023-08-08T19:42:32"]
[null,null,null,"2023-08-28T14:48:32","2023-08-08T21:08:47"]
[null,null,null,"2023-08-28T15:41:26","2023-08-08T21:16:16"]
[null,null,null,"2023-08-28T16:10:46","2023-08-08T21:33:49"]
[null,null,null,"2023-08-28T16:15:11","2023-08-09T15:13:29"]
[null,null,null,"2023-08-28T19:28:30","2023-08-09T16:35:48"]
[null,null,null,null,"2023-08-09T19:19:58"]
[null,null,null,null,"2023-08-09T21:23:28"]
[null,null,null,null,"2023-08-09T21:28:16"]
[null,null,null,null,"2023-08-09T21:33:37"]
[null,null,null,null,"2023-08-10T12:24:53"]
[null,null,null,null,"2023-08-10T12:58:08"]
[null,null,null,null,"2023-08-10T22:31:46"]
[null,null,null,null,"2023-08-10T22:33:09"]
[null,null,null,null,"2023-08-11T12:04:36"]
[null,null,null,null,"2023-08-11T12:23:35"]
[null,null,null,null,"2023-08-11T22:24:56"]
[null,null,null,null,"2023-08-12T10:12:00"]
[null,null,null,null,"2023-08-12T11:05:40"]
[null,null,null,null,"2023-08-12T13:15:26"]
[null,null,null,null,"2023-08-13T21:56:43"]
[null,null,null,null,"2023-08-14T12:06:14"]
[null,null,null,null,"2023-08-14T12:24:03"]
[null,null,null,null,"2023-08-14T15:25:11"]
[null,null,null,null,"2023-08-14T16:02:59"]
[null,null,null,null,"2023-08-14T16:21:40"]
[null,null,null,null,"2023-08-14T19:16:36"]
[null,null,null,null,"2023-08-14T19:50:35"]
[null,null,null,null,"2023-08-14T22:21:29"]
[null,null,null,null,"2023-08-15T11:10:37"]
[null,null,null,null,"2023-08-15T21:17:46"]
[null,null,null,null,"2023-08-15T21:32:29"]
[null,null,null,null,"2023-08-15T21:35:59"]
[null,null,null,null,"2023-08-15T21:44:27"]
[null,null,null,null,"2023-08-15T21:54:11"]
[null,null,null,null,"2023-08-16T11:47:45"]
[null,null,null,null,"2023-08-16T12:33:40"]
[null,null,null,null,"2023-08-16T12:50:10"]
[null,null,null,null,"2023-08-16T12:56:50"]
[null,null,null,null,"2023-08-17T10:08:08"]
[null,null,null,null,"2023-08-17T11:49:51"]
[null,null,null,null,"2023-08-17T12:24:54"]
[null,null,null,null,"2023-08-17T16:24:28"]
[null,null,null,null,"2023-08-18T11:27:50"]
[null,null,null,null,"2023-08-18T11:29:00"]
[null,null,null,null,"2023-08-18T16:05:00"]
[null,null,null,null,"2023-08-19T12:06:45"]
[null,null,null,null,"2023-08-19T12:14:32"]
[null,null,null,null,"2023-08-19T16:01:54"]
[null,null,null,null,"2023-08-19T16:29:03"]
[null,null,null,null,"2023-08-19T19:20:17"]
[null,null,null,null,"2023-08-19T19:39:48"]
[null,null,null,null,"2023-08-19T21:08:09"]
[null,null,null,null,"2023-08-19T21:14:42"]
[null,null,null,null,"2023-08-19T21:43:05"]
[null,null,null,null,"2023-08-19T21:51:49"]
[null,null,null,null,"2023-08-20T11:49:21"]
[null,null,null,null,"2023-08-20T12:02:18"]
[null,null,null,null,"2023-08-20T13:11:19"]
[null,null,null,null,"2023-08-20T13:19:48"]
[null,null,null,null,"2023-08-20T15:02:36"]
[null,null,null,null,"2023-08-20T16:28:00"]
[null,null,null,null,"2023-08-21T11:14:29"]
[null,null,null,null,"2023-08-21T11:53:12"]
[null,null,null,null,"2023-08-21T11:54:30"]
[null,null,null,null,"2023-08-21T12:16:37"]
[null,null,null,null,"2023-08-21T12:49:42"]
[null,null,null,null,"2023-08-21T15:47:10"]
[null,null,null,null,"2023-08-21T16:30:40"]
[null,null,null,null,"2023-08-21T20:04:42"]
[null,null,null,null,"2023-08-21T22:24:48"]
[null,null,null,null,"2023-08-22T11:42:14"]
[null,null,null,null,"2023-08-22T21:29:51"]
[null,null,null,null,"2023-08-22T21:33:49"]
[null,null,null,null,"2023-08-23T12:51:17"]
[null,null,null,null,"2023-08-23T12:54:47"]
[null,null,null,null,"2023-08-23T16:30:48"]
[null,null,null,null,"2023-08-23T16:32:04"]
[null,null,null,null,"2023-08-23T18:21:13"]
[null,null,null,null,"2023-08-23T21:32:42"]
[null,null,null,null,"2023-08-24T12:33:45"]
[null,null,null,null,"2023-08-24T16:38:04"]
[null,null,null,null,"2023-08-24T19:56:43"]
[null,null,null,null,"2023-08-24T21:09:15"]
[null,null,null,null,"2023-08-24T21:24:19"]
[null,null,null,null,"2023-08-24T21:57:03"]
[null,null,null,null,"2023-08-25T11:11:42"]
[null,null,null,null,"2023-08-25T11:22:17"]
[null,null,null,null,"2023-08-25T11:35:34"]
[null,null,null,null,"2023-08-25T17:10:16"]
[null,null,null,null,"2023-08-25T21:49:38"]
[null,null,null,null,"2023-08-27T16:37:11"]
[null,null,null,null,"2023-08-27T19:44:37"]
[null,null,null,null,"2023-08-27T22:17:37"]
[null,null,null,null,"2023-08-28T10:54:54"]
[null,null,null,null,"2023-08-28T12:14:13"]
[null,null,null,null,"2023-08-28T15:37:48"]
[null,null,null,null,"2023-08-28T15:48:28"]
[null,null,null,null,"2023-08-28T16:13:23"]
[null,null,null,null,"2023-08-28T16:19:26"]
[null,null,null,null,"2023-08-28T19:31:56"]
[null,null,null,null,"2023-08-28T19:43:00"]
[null,null,null,null,"2023-08-28T19:50:38"]
[null,null,null,null,"2023-08-28T19:50:55"]

{"sheet":"Listes","index":1,"n_rows":39,"n_cols":56,"rows_kept":39,"cut":false,"hidden":false,"merged":[]}
[null,null,null,null,null,null,null,null,null,null,null,null,null,null,null,null,null,null,null,null,null,null,null,null,null,null,null,null,null,null,null,null,null,null,null,null,null,null,null,null,null,null,null,null,null,null,null,null,null,null,null,null,null,null,null,2023]
[]
["Nom nature création","Code nature création",null,"Nom nature articles menus","Code nature articles menus",null,"Nom dessert midi retraite","Code dessert midi retraite",null,"Nom dessert soir","Code dessert soir",null,"Nom desserts weekend","Code desserts weekend",null,"Nom légumes midi retraite","Code légumes midi retraite",null,"Nom légumes soirs lundi mardi","Code légumes soirs lundi mardi",null,"Nom légumes soirs mercredi jeudi","Code légumes soirs mercredi jeudi",null,"Nom légumes soirs vendredi","Code légumes soirs vendredi",null,"Nom légumes weekend samedi","Code légumes weekend samedi",null,"Nom légumes weekend dimanche","Code légumes weekend dimanche",null,"Nom viandes midi retraite","Code viandes midi retraite",null,"Nom viandes soirs","Code viandes soirs",null,"Nom viandes midi weekend","Code viandes midi weekend",null,"Nom périodes articles menus","Code périodes articles menus",null,"Nom conditionnement articles menus","Code conditionnement articles menus",null,null,"Nom période menu viandes midi weekend",null,"Nom mois",null,"Nom jour férié","Date jour férié"]
["Création articles menu","CAM",null,"Dessert midi retraite","DMR",null,"Pomme","DMR01",null,"Pomme","DS01",null,"Ananas","DW01",null,"Asperges","LMR01",null,"Cassoulet","LSLM01",null,"Macédoine de légumes","LSMJ01",null,"Asperges","LSV01",null,"Pâtes à la sauce tomates","LWS01",null,"Asperges","LWD01",null,"Rôti d'agneau","VMR01",null,"Bifteck haché de bœuf","VS01",null,"Agneau","VMW01",null,"Dimanche midi","PAM01",null,"1 bocal ou 1 boîte pour 1 repas","CAM01",null,null,{"$f":"\"Premier semestre \"&Accueil!$F$1","v":"Premier semestre 2023"},null,{"$f":"\"Janvier \"&Accueil!$F$1","v":"Janvier 2023"},null,"Jour de l'an",{"$f":"DATE(BD1,1,1)","v":"2023-01-01"}]
["Menu midi retraite","MMR",null,"Dessert soir","DS",null,null,null,null,null,null,null,"Autres fruits","DW02",null,"Avocat","LMR02",null,"Choucroute","LSLM02",null,"Petits pois","LSMJ02",null,"Avocat","LSV02",null,"Pâtes au beurre","LWS02",null,"Chips","LWD02",null,"Rôti de bœuf","VMR02",null,"Bifteck haché de cheval","VS02",null,"Bœuf","VMW02",null,"Dimanche midi et soir","PAM02",null,"1 boîte de 6 œufs. 3 œufs pour 1 repas","CAM02",null,null,{"$f":"\"Deuxième semetre \"&Accueil!$F$1","v":"Deuxième semetre 2023"},null,{"$f":"\"Février \"&Accueil!$F$1","v":"Février 2023"},null,"Pâques",{"$f":"DATE(YEAR(BC4),3,29.56+0.979*MOD(204-11*MOD(YEAR(BC4),19),30)-WEEKDAY(DATE(YEAR(BC4),3,28.56+0.979*MOD(204-11*MOD(YEAR(BC4),19),30))))","v":"2023-04-09"}]
["Menu journaliers","MJ",null,"Desserts weekend","DW",null,null,null,null,null,null,null,"Avocats","DW03",null,"Carottes","LMR03",null,"Chou-fleur","LSLM03",null,"Petits pois et jeunes carottes","LSMJ03",null,"Betterave rouge","LSV03",null,"Pâtes au fromage râpé","LWS03",null,"Frites","LWD03",null,"Rôti de cheval","VMR03",null,"Bifteck haché de veau","VS03",null,"Cheval","VMW03",null,"Dimanche soir","PAM03",null,"1 boîte ou 1 pot pour 1 repas","CAM03",null,null,null,null,{"$f":"\"Mars \"&Accueil!$F$1","v":"Mars 2023"},null,"Lundi de Pâques",{"$f":"BC5+1","v":"2023-04-10"}]
["Menu midi weekend","MVMW",null,"Légumes midi retraite","LMR",null,null,null,null,null,null,null,"Bananes","DW04",null,"Céleri","LMR04",null,"Choux de Bruxelles","LSLM04",null,"Ratatouille","LSMJ04",null,"Carottes","LSV04",null,null,null,null,"Haricots verts","LWD04",null,"Rôti de porc","VMR04",null,"Bouchée à la reine","VS04",null,"Dinde","VMW04",null,"Lundi à dimanche soirs","PAM04",null,"1 boîte pour 1 repas","CAM04",null,null,null,null,{"$f":"\"Avril \"&Accueil!$F$1","v":"Avril 2023"},null,"Fête du travail",{"$f":"DATE(BD1,5,1)","v":"2023-05-01"}]
[null,null,null,"Légumes soirs lundi mardi","LSLM",null,null,null,null,null,null,null,"Clémentines","DW05",null,"Champignons","LMR05",null,"Couscous","LSLM05",null,"Raviolis","LSMJ05",null,"Céleri","LSV05",null,null,null,null,null,null,null,"Rôti de veau","VMR05",null,"Boudin","VS05",null,"Poisson","VMW05",null,"Lundi à vendredi midis","PAM05",null,"1 boîte pour 2 repas","CAM05",null,null,null,null,{"$f":"\"Mai \"&Accueil!$F$1","v":"Mai 2023"},null,"Victoire 1945",{"$f":"DATE(BD1,5,8)","v":"2023-05-08"}]
[null,null,null,"Légumes soirs mercredi jeudi","LSMJ",null,null,null,null,null,null,null,"Crème","DW06",null,"Concombre","LMR06",null,"Endives","LSLM06",null,"Tomates pelées","LSMJ06",null,"Champignons","LSV06",null,null,null,null,null,null,null,null,null,null,"Cervelas","VS06",null,"Porc","VMW06",null,"Lundi à vendredi soirs","PAM06",null,"1 botte ou 1 sachet pour 1 repas","CAM06",null,null,null,null,{"$f":"\"Juin \"&Accueil!$F$1","v":"Juin 2023"},null,"Jeudi de l'ascension",{"$f":"BC6+38","v":"2023-05-18"}]
[null,null,null,"Légumes soirs vendredi","LSV",null,null,null,null,null,null,null,"Dattes","DW07",null,"Couscous","LMR07",null,"Haricots verts","LSLM07",null,null,null,null,"Concombre","LSV07",null,null,null,null,null,null,null,null,null,null,"Cœur","VS07",null,"Veau","VMW07",null,"Lundi et mardi soirs","PAM07",null,"1 botte ou 1 sachet pour 2 repas","CAM07",null,null,null,null,{"$f":"\"Juillet \"&Accueil!$F$1","v":"Juillet 2023"},null,"Pentecôte",{"$f":"BC5+49","v":"2023-05-28"}]
[null,null,null,"Légumes weekend samedi","LWS",null,null,null,null,null,null,null,"Figues","DW08",null,"Maïs","LMR08",null,"Maïs","LSLM08",null,null,null,null,"Radis","LSV08",null,null,null,null,null,null,null,null,null,null,"Croque-monsieur","VS08",null,null,null,null,"Mercredi et jeudi soirs","PAM08",null,"1 morceau de 400 grammes (Leclerc) pour 3 repas","CAM08",null,null,null,null,{"$f":"\"Août \"&Accueil!$F$1","v":"Août 2023"},null,"Lundi de Pentecôte",{"$f":"BC10+1","v":"2023-05-29"}]
[null,null,null,"Légumes weekend dimanche","LWD",null,null,null,null,null,null,null,"Fromage blanc","DW09",null,"Pâtes à la sauce tomates","LMR09",null,"Paella","LSLM09",null,null,null,null,"Salade","LSV09",null,null,null,null,null,null,null,null,null,null,"Foie","VS09",null,null,null,null,"Samedi et dimanche midis","PAM09",null,"1 morceau de 500 grammes pour 5 repas","CAM09",null,null,null,null,{"$f":"\"Septembre \"&Accueil!$F$1","v":"Septembre 2023"},null,"Fête nationale",{"$f":"DATE(BD1,7,14)","v":"2023-07-14"}]
[null,null,null,"Viandes midi retraite","VMR",null,null,null,null,null,null,null,"Fruits au sirop","DW10",null,"Pâtes au beurre","LMR10",null,"Poireau","LSLM10",null,null,null,null,"Salsifis","LSV10",null,null,null,null,null,null,null,null,null,null,"Fromage de tête","VS10",null,null,null,null,"Samedi et dimanche midis et soirs","PAM10",null,"1 pack de 4 pots pour le weekend. 1 pot pour 1 repas","CAM10",null,null,null,null,{"$f":"\"Otobre \"&Accueil!$F$1","v":"Otobre 2023"},null,"Assomption",{"$f":"DATE(BD1,8,15)","v":"2023-08-15"}]
[null,null,null,"Viandes soirs","VS",null,null,null,null,null,null,null,"Fruits de saison","DW11",null,"Poireau","LMR11",null,"Pomme de terre","LSLM11",null,null,null,null,"Tomates","LSV11",null,null,null,null,null,null,null,null,null,null,"Jambon","VS11",null,null,null,null,"Samedi midi et soir","PAM11",null,"1 pack de 6 pots. 3 pots pour 1 repas","CAM11",null,null,null,null,{"$f":"\"Novembre \"&Accueil!$F$1","v":"Novembre 2023"},null,"Toussaint",{"$f":"DATE(BD1,11,1)","v":"2023-11-01"}]
[null,null,null,"Viandes midi weekend","VMW",null,null,null,null,null,null,null,"Gâteau de riz","DW12",null,"Pomme de terre","LMR12",null,"Purée","LSLM12",null,null,null,null,null,null,null,null,null,null,null,null,null,null,null,null,"Jambonneau","VS12",null,null,null,null,"Vendredi soir","PAM12",null,"1 paquet pour 1 repas","CAM12",null,null,null,null,{"$f":"\"Décembre \"&Accueil!$F$1","v":"Décembre 2023"},null,"Armistice 1918",{"$f":"DATE(BD1,11,11)","v":"2023-11-11"}]
[null,null,null,null,null,null,null,null,null,null,null,null,"Gâteau de semoule","DW13",null,"Purée","LMR13",null,"Quenelles","LSLM13",null,null,null,null,null,null,null,null,null,null,null,null,null,null,null,null,"Mortadelle","VS13",null,null,null,null,null,null,null,"1 paquet pour 2 repas","CAM13",null,null,null,null,null,null,"Noël",{"$f":"DATE(BD1,12,25)","v":"2023-12-25"}]
[null,null,null,null,null,null,null,null,null,null,null,null,"Gâteaux samedi dimanche","DW14",null,"Radis","LMR14",null,"Riz","LSLM14",null,null,null,null,null,null,null,null,null,null,null,null,null,null,null,null,"Œufs","VS14",null,null,null,null,null,null,null,"1 paquet pour 2 repas. 1 ou 2 saucisses pour 1 repas","CAM14"]
[null,null,null,null,null,null,null,null,null,null,null,null,"Mousse au chocolat","DW15",null,"Riz","LMR15",null,null,null,null,null,null,null,null,null,null,null,null,null,null,null,null,null,null,null,"Pizza","VS15",null,null,null,null,null,null,null,"1 paquet pour 4 repas","CAM15"]
[null,null,null,null,null,null,null,null,null,null,null,null,"Oranges","DW16",null,"Salade","LMR16",null,null,null,null,null,null,null,null,null,null,null,null,null,null,null,null,null,null,null,"Poisson","VS16",null,null,null,null,null,null,null,"1 paquet pour 5 repas (betteraves rouges)","CAM16"]
[null,null,null,null,null,null,null,null,null,null,null,null,"Petits suisses","DW17",null,"Tomates","LMR17",null,null,null,null,null,null,null,null,null,null,null,null,null,null,null,null,null,null,null,"Quiche lorraine","VS17",null,null,null,null,null,null,null,"1 sachet de 2 kilogrammes. 1 pomme pour 1 repas","CAM17"]
[null,null,null,null,null,null,null,null,null,null,null,null,"Pruneaux","DW18",null,null,null,null,null,null,null,null,null,null,null,null,null,null,null,null,null,null,null,null,null,null,"Roulade à la pistache","VS18",null,null,null,null,null,null,null,"1 sachet pour 2 repas (Chips)","CAM18"]
[null,null,null,null,null,null,null,null,null,null,null,null,"Riz au lait","DW19",null,null,null,null,null,null,null,null,null,null,null,null,null,null,null,null,null,null,null,null,null,null,"Roulé au fromage","VS19",null,null,null,null,null,null,null,"1 sachet pour 4 repas","CAM19"]
[null,null,null,null,null,null,null,null,null,null,null,null,"Tapioca","DW20",null,null,null,null,null,null,null,null,null,null,null,null,null,null,null,null,null,null,null,null,null,null,"Salami","VS20",null,null,null,null,null,null,null,"1 sachet pour 6 repas. 5 tranches pour 1 repas (Saucisson)","CAM20"]
[null,null,null,null,null,null,null,null,null,null,null,null,"Yaourts","DW21",null,null,null,null,null,null,null,null,null,null,null,null,null,null,null,null,null,null,null,null,null,null,"Saucisses","VS21",null,null,null,null,null,null,null,"1 tranche pour 1 repas","CAM21"]
[null,null,null,null,null,null,null,null,null,null,null,null,null,null,null,null,null,null,null,null,null,null,null,null,null,null,null,null,null,null,null,null,null,null,null,null,"Saucisson","VS22",null,null,null,null,null,null,null,"1 tranche pour 2 repas","CAM22"]
[null,null,null,null,null,null,null,null,null,null,null,null,null,null,null,null,null,null,null,null,null,null,null,null,null,null,null,null,null,null,null,null,null,null,null,null,"Tête persillée","VS23",null,null,null,null,null,null,null,"125 grammes pour 1 repas (Bifteck haché de cheval)","CAM23"]
[null,null,null,null,null,null,null,null,null,null,null,null,null,null,null,null,null,null,null,null,null,null,null,null,null,null,null,null,null,null,null,null,null,null,null,null,"Tête roulée","VS24",null,null,null,null,null,null,null,"20 frites pour 1 repas","CAM24"]
[null,null,null,null,null,null,null,null,null,null,null,null,null,null,null,null,null,null,null,null,null,null,null,null,null,null,null,null,null,null,null,null,null,null,null,null,"Thon","VS25",null,null,null,null,null,null,null,"25 grammes pour 1 repas","CAM25"]
[null,null,null,null,null,null,null,null,null,null,null,null,null,null,null,null,null,null,null,null,null,null,null,null,null,null,null,null,null,null,null,null,null,null,null,null,"Viande cassoulet","VS26",null,null,null,null,null,null,null,"3 tranches pour 1 repas","CAM26"]
[null,null,null,null,null,null,null,null,null,null,null,null,null,null,null,null,null,null,null,null,null,null,null,null,null,null,null,null,null,null,null,null,null,null,null,null,"Viande choucroute","VS27",null,null,null,null,null,null,null,"5 cuillères pour 1 repas","CAM27"]
[null,null,null,null,null,null,null,null,null,null,null,null,null,null,null,null,null,null,null,null,null,null,null,null,null,null,null,null,null,null,null,null,null,null,null,null,"Viande paella","VS28",null,null,null,null,null,null,null,"50 grammes pour 1 repas","CAM28"]
[null,null,null,null,null,null,null,null,null,null,null,null,null,null,null,null,null,null,null,null,null,null,null,null,null,null,null,null,null,null,null,null,null,null,null,null,null,null,null,null,null,null,null,null,null,"Unité : 1 branche pour 1 repas","CAM29"]
[null,null,null,null,null,null,null,null,null,null,null,null,null,null,null,null,null,null,null,null,null,null,null,null,null,null,null,null,null,null,null,null,null,null,null,null,null,null,null,null,null,null,null,null,null,"Unité : 1 morceau pour 2 repas","CAM30"]
[null,null,null,null,null,null,null,null,null,null,null,null,null,null,null,null,null,null,null,null,null,null,null,null,null,null,null,null,null,null,null,null,null,null,null,null,null,null,null,null,null,null,null,null,null,"Unité : 1 pour 1 repas","CAM31"]
[null,null,null,null,null,null,null,null,null,null,null,null,null,null,null,null,null,null,null,null,null,null,null,null,null,null,null,null,null,null,null,null,null,null,null,null,null,null,null,null,null,null,null,null,null,"Unité : 1 pour 2 repas","CAM32"]
[null,null,null,null,null,null,null,null,null,null,null,null,null,null,null,null,null,null,null,null,null,null,null,null,null,null,null,null,null,null,null,null,null,null,null,null,null,null,null,null,null,null,null,null,null,"Unité : 1 pour 4 repas","CAM33"]
[null,null,null,null,null,null,null,null,null,null,null,null,null,null,null,null,null,null,null,null,null,null,null,null,null,null,null,null,null,null,null,null,null,null,null,null,null,null,null,null,null,null,null,null,null,"Unité : 1 tête pour 1 repas","CAM34"]
[null,null,null,null,null,null,null,null,null,null,null,null,null,null,null,null,null,null,null,null,null,null,null,null,null,null,null,null,null,null,null,null,null,null,null,null,null,null,null,null,null,null,null,null,null,"Unité : 2 à 4 pour 1 repas","CAM35"]
[null,null,null,null,null,null,null,null,null,null,null,null,null,null,null,null,null,null,null,null,null,null,null,null,null,null,null,null,null,null,null,null,null,null,null,null,null,null,null,null,null,null,null,null,null,"Unité : 2 pour 1 repas","CAM36"]

{"sheet":"BD articles menus","index":2,"n_rows":5,"n_cols":15,"rows_kept":5,"cut":false,"hidden":false,"merged":[]}
[]
["Nom nature création","Code nature création","Nom nature article menu","Code nature article menu","Nom article menu","Code article menu","Nom période article menu","Code période article menu","Nom conditionnement article menu","Code conditionnement article menu","Quantité pour un repas","Quantité pour la journée","Date création article menu","Numéro création article menu","Clé article"]
["Création articles menu","CAM","Desserts weekend","DW","Clémentines","DW05","Samedi et dimanche midis et soirs","PAM10","Unité : 2 à 4 pour 1 repas","CAM35",4,8,"jeudi 17 août 2023","DW-01",{"$f":"TabBDArticlesMenus[[#This Row],[Code nature article menu]]&TabBDArticlesMenus[[#This Row],[Nom article menu]]","v":"DWClémentines"}]
["Création articles menu","CAM","Desserts weekend","DW","Figues","DW08","Samedi et dimanche midis et soirs","PAM10","1 paquet pour 4 repas","CAM15",0.25,0.5,"jeudi 17 août 2023","DW-02",{"$f":"TabBDArticlesMenus[[#This Row],[Code nature article menu]]&TabBDArticlesMenus[[#This Row],[Nom article menu]]","v":"DWFigues"}]
["Création articles menu","CAM","Desserts weekend","DW","Yaourts","DW21","Samedi et dimanche midis et soirs","PAM10","1 pack de 4 pots pour le weekend. 1 pot pour 1 repas","CAM10",1,2,"jeudi 17 août 2023","DW-03",{"$f":"TabBDArticlesMenus[[#This Row],[Code nature article menu]]&TabBDArticlesMenus[[#This Row],[Nom article menu]]","v":"DWYaourts"}]

{"sheet":"BD menus","index":3,"n_rows":3,"n_cols":39,"rows_kept":3,"cut":false,"hidden":false,"merged":[[0,0,0,36]]}
[{"$f":"\"Base de données menus de l'année \"&Accueil!$F$1&\".\"","v":"Base de données menus de l'année 2023."}]
[]
["Nom nature création menu","Code nom nature création menu","Date menu","Date création menu","Nom menu légumes","Code nom menu légumes","Nom jour menu légumes","Code nom jour menu légumes","Nom conditionnement menu légumes","Code nom conditionnement menu légumes","Nom menu légume deux","Code nom menu légume deux","Nom jour menu légume deux","Code nom jour légume deux","Nom conditionnement menu légume deux","Code nom conditionnement menu légume deux","Quantité menu légumes","Quantité menu légume deux","Nom menu viande","Code nom menu viande","Nom jour menu viande","Code nom jour menu viande","Nom conditionnement menu viande","Code nom conditionnement menu viande","Nom jour menu viande midi weekend","Code jour menu viande midi weekend","Nom période menu viande midi weekend","Quantité menu viande","Nom menu dessert","Code nom menu dessert","Nom jour menu dessert","Code nom jour menu dessert","Nom conditionnement menu dessert","Code nom conditionnement menu dessert","Quantité menu dessert","Numéro création menu","Nom jour férié","Nom menu destination","Nom mois menu"]

{"sheet":"Menus midi retraite","index":4,"n_rows":50,"n_cols":8,"rows_kept":50,"cut":false,"hidden":false,"merged":[[49,0,49,7],[26,0,26,7],[29,0,29,7],[30,0,30,7],[33,0,33,7],[34,0,34,7],[37,0,37,7],[38,0,38,7],[41,0,41,7],[42,0,42,7],[45,0,45,7],[46,0,46,7],[25,0,25,7],[2,0,2,7],[5,0,5,7],[6,0,6,7],[9,0,9,7],[10,0,10,7],[13,0,13,7],[14,0,14,7],[17,0,17,7],[18,0,18,7],[21,0,21,7],[22,0,22,7]]}
[{"$f":"Accueil!$F$1","v":2023}]
[]
[{"$f":"\"État des menus midi retraite du mois de janvier \"&$A$1&\".\"","v":"État des menus midi retraite du mois de janvier 2023."}]
["Date menu","Nom menu légume","Nom menu viande","Nom menu dessert","Nom jour férié","Nom menu création","Numéro création","Nom mois menu"]
[]
[{"$f":"\"Imprimé à Limeil-Brévannes, le \"&TEXT(TODAY(),\"jjjj j mmmm aaaa\")&\".\"","v":"Imprimé à Limeil-Brévannes, le lundi 28 août 2023."}]
[{"$f":"\"État des menus midi retraite du mois de février \"&$A$1&\".\"","v":"État des menus midi retraite du mois de février 2023."}]
["Date menu","Nom menu légume","Nom menu viande","Nom menu dessert","Nom jour férié","Nom menu création","Numéro création","Nom mois menu"]
[]
[{"$f":"\"Imprimé à Limeil-Brévannes, le \"&TEXT(TODAY(),\"jjjj j mmmm aaaa\")&\".\"","v":"Imprimé à Limeil-Brévannes, le lundi 28 août 2023."}]
[{"$f":"\"État des menus midi retraite du mois de mars \"&$A$1&\".\"","v":"État des menus midi retraite du mois de mars 2023."}]
["Date menu","Nom menu légume","Nom menu viande","Nom menu dessert","Nom jour férié","Nom menu création","Numéro création","Nom mois menu"]
[]
[{"$f":"\"Imprimé à Limeil-Brévannes, le \"&TEXT(TODAY(),\"jjjj j mmmm aaaa\")&\".\"","v":"Imprimé à Limeil-Brévannes, le lundi 28 août 2023."}]
[{"$f":"\"État des menus midi retraite du mois d'avril \"&$A$1&\".\"","v":"État des menus midi retraite du mois d'avril 2023."}]
["Date menu","Nom menu légume","Nom menu viande","Nom menu dessert","Nom jour férié","Nom menu création","Numéro création","Nom mois menu"]
[]
[{"$f":"\"Imprimé à Limeil-Brévannes, le \"&TEXT(TODAY(),\"jjjj j mmmm aaaa\")&\".\"","v":"Imprimé à Limeil-Brévannes, le lundi 28 août 2023."}]
[{"$f":"\"État des menus midi retraite du mois de mai \"&$A$1&\".\"","v":"État des menus midi retraite du mois de mai 2023."}]
["Date menu","Nom menu légume","Nom menu viande","Nom menu dessert","Nom jour férié","Nom menu création","Numéro création","Nom mois menu"]
[]
[{"$f":"\"Imprimé à Limeil-Brévannes, le \"&TEXT(TODAY(),\"jjjj j mmmm aaaa\")&\".\"","v":"Imprimé à Limeil-Brévannes, le lundi 28 août 2023."}]
[{"$f":"\"État des menus midi retraite du mois de juin \"&$A$1&\".\"","v":"État des menus midi retraite du mois de juin 2023."}]
["Date menu","Nom menu légume","Nom menu viande","Nom menu dessert","Nom jour férié","Nom menu création","Numéro création","Nom mois menu"]
[]
[{"$f":"\"Imprimé à Limeil-Brévannes, le \"&TEXT(TODAY(),\"jjjj j mmmm aaaa\")&\".\"","v":"Imprimé à Limeil-Brévannes, le lundi 28 août 2023."}]
[{"$f":"\"État des menus midi retraite du mois de juillet \"&$A$1&\".\"","v":"État des menus midi retraite du mois de juillet 2023."}]
["Date menu","Nom menu légume","Nom menu viande","Nom menu dessert","Nom jour férié","Nom menu création","Numéro création","Nom mois menu"]
[]
[{"$f":"\"Imprimé à Limeil-Brévannes, le \"&TEXT(TODAY(),\"jjjj j mmmm aaaa\")&\".\"","v":"Imprimé à Limeil-Brévannes, le lundi 28 août 2023."}]
[{"$f":"\"État des menus midi retraite du mois d'août \"&$A$1&\".\"","v":"État des menus midi retraite du mois d'août 2023."}]
["Date menu","Nom menu légume","Nom menu viande","Nom menu dessert","Nom jour férié","Nom menu création","Numéro création","Nom mois menu"]
[]
[{"$f":"\"Imprimé à Limeil-Brévannes, le \"&TEXT(TODAY(),\"jjjj j mmmm aaaa\")&\".\"","v":"Imprimé à Limeil-Brévannes, le lundi 28 août 2023."}]
[{"$f":"\"État des menus midi retraite du mois de septembre \"&$A$1&\".\"","v":"État des menus midi retraite du mois de septembre 2023."}]
["Date menu","Nom menu légume","Nom menu viande","Nom menu dessert","Nom jour férié","Nom menu création","Numéro création","Nom mois menu"]
[]
[{"$f":"\"Imprimé à Limeil-Brévannes, le \"&TEXT(TODAY(),\"jjjj j mmmm aaaa\")&\".\"","v":"Imprimé à Limeil-Brévannes, le lundi 28 août 2023."}]
[{"$f":"\"État des menus midi retraite du mois d'octobre \"&$A$1&\".\"","v":"État des menus midi retraite du mois d'octobre 2023."}]
["Date menu","Nom menu légume","Nom menu viande","Nom menu dessert","Nom jour férié","Nom menu création","Numéro création","Nom mois menu"]
[]
[{"$f":"\"Imprimé à Limeil-Brévannes, le \"&TEXT(TODAY(),\"jjjj j mmmm aaaa\")&\".\"","v":"Imprimé à Limeil-Brévannes, le lundi 28 août 2023."}]
[{"$f":"\"État des menus midi retraite du mois de novembre \"&$A$1&\".\"","v":"État des menus midi retraite du mois de novembre 2023."}]
["Date menu","Nom menu légume","Nom menu viande","Nom menu dessert","Nom jour férié","Nom menu création","Numéro création","Nom mois menu"]
[]
[{"$f":"\"Imprimé à Limeil-Brévannes, le \"&TEXT(TODAY(),\"jjjj j mmmm aaaa\")&\".\"","v":"Imprimé à Limeil-Brévannes, le lundi 28 août 2023."}]
[{"$f":"\"État des menus midi retraite du mois de décembre \"&$A$1&\".\"","v":"État des menus midi retraite du mois de décembre 2023."}]
["Date menu","Nom menu légume","Nom menu viande","Nom menu dessert","Nom jour férié","Nom menu création","Numéro création","Nom mois menu"]
[]
[{"$f":"\"Imprimé à Limeil-Brévannes, le \"&TEXT(TODAY(),\"jjjj j mmmm aaaa\")&\".\"","v":"Imprimé à Limeil-Brévannes, le lundi 28 août 2023."}]

{"sheet":"Menus journaliers","index":5,"n_rows":50,"n_cols":9,"rows_kept":50,"cut":false,"hidden":false,"merged":[[42,0,42,8],[45,0,45,8],[46,0,46,8],[49,0,49,8],[33,0,33,8],[34,0,34,8],[37,0,37,8],[38,0,38,8],[41,0,41,8],[22,0,22,8],[25,0,25,8],[26,0,26,8],[29,0,29,8],[30,0,30,8],[13,0,13,8],[14,0,14,8],[17,0,17,8],[18,0,18,8],[21,0,21,8],[2,0,2,8],[5,0,5,8],[6,0,6,8],[9,0,9,8],[10,0,10,8]]}
[{"$f":"Accueil!$F$1","v":2023}]
[]
[{"$f":"\"État des menus journaliers du mois de janvier \"&$A$1&\".\"","v":"État des menus journaliers du mois de janvier 2023."}]
["Date menu","Nom menu légume","Nom menu légume deux","Nom menu viande","Nom menu dessert","Nom jour férié","Nom menu création","Numéro création","Nom mois menu"]
[]
[{"$f":"\"Imprimé à Limeil-Brévannes, le \"&TEXT(TODAY(),\"jjjj j mmmm aaaa\")&\".\"","v":"Imprimé à Limeil-Brévannes, le lundi 28 août 2023."}]
[{"$f":"\"État des menus journaliers du mois de février \"&$A$1&\".\"","v":"État des menus journaliers du mois de février 2023."}]
["Date menu","Nom menu légume","Nom menu légume deux","Nom menu viande","Nom menu dessert","Nom jour férié","Nom menu création","Numéro création","Nom mois menu"]
[]
[{"$f":"\"Imprimé à Limeil-Brévannes, le \"&TEXT(TODAY(),\"jjjj j mmmm aaaa\")&\".\"","v":"Imprimé à Limeil-Brévannes, le lundi 28 août 2023."}]
[{"$f":"\"État des menus journaliers du mois de mars \"&$A$1&\".\"","v":"État des menus journaliers du mois de mars 2023."}]
["Date menu","Nom menu légume","Nom menu légume deux","Nom menu viande","Nom menu dessert","Nom jour férié","Nom menu création","Numéro création","Nom mois menu"]
[]
[{"$f":"\"Imprimé à Limeil-Brévannes, le \"&TEXT(TODAY(),\"jjjj j mmmm aaaa\")&\".\"","v":"Imprimé à Limeil-Brévannes, le lundi 28 août 2023."}]
[{"$f":"\"État des menus journaliers du mois d'avril \"&$A$1&\".\"","v":"État des menus journaliers du mois d'avril 2023."}]
["Date menu","Nom menu légume","Nom menu légume deux","Nom menu viande","Nom menu dessert","Nom jour férié","Nom menu création","Numéro création","Nom mois menu"]
[]
[{"$f":"\"Imprimé à Limeil-Brévannes, le \"&TEXT(TODAY(),\"jjjj j mmmm aaaa\")&\".\"","v":"Imprimé à Limeil-Brévannes, le lundi 28 août 2023."}]
[{"$f":"\"État des menus journaliers du mois de mai \"&$A$1&\".\"","v":"État des menus journaliers du mois de mai 2023."}]
["Date menu","Nom menu légume","Nom menu légume deux","Nom menu viande","Nom menu dessert","Nom jour férié","Nom menu création","Numéro création","Nom mois menu"]
[]
[{"$f":"\"Imprimé à Limeil-Brévannes, le \"&TEXT(TODAY(),\"jjjj j mmmm aaaa\")&\".\"","v":"Imprimé à Limeil-Brévannes, le lundi 28 août 2023."}]
[{"$f":"\"État des menus journaliers du mois de juin \"&$A$1&\".\"","v":"État des menus journaliers du mois de juin 2023."}]
["Date menu","Nom menu légume","Nom menu légume deux","Nom menu viande","Nom menu dessert","Nom jour férié","Nom menu création","Numéro création","Nom mois menu"]
[]
[{"$f":"\"Imprimé à Limeil-Brévannes, le \"&TEXT(TODAY(),\"jjjj j mmmm aaaa\")&\".\"","v":"Imprimé à Limeil-Brévannes, le lundi 28 août 2023."}]
[{"$f":"\"État des menus journaliers du mois de juillet \"&$A$1&\".\"","v":"État des menus journaliers du mois de juillet 2023."}]
["Date menu","Nom menu légume","Nom menu légume deux","Nom menu viande","Nom menu dessert","Nom jour férié","Nom menu création","Numéro création","Nom mois menu"]
[]
[{"$f":"\"Imprimé à Limeil-Brévannes, le \"&TEXT(TODAY(),\"jjjj j mmmm aaaa\")&\".\"","v":"Imprimé à Limeil-Brévannes, le lundi 28 août 2023."}]
[{"$f":"\"État des menus journaliers du mois d'août \"&$A$1&\".\"","v":"État des menus journaliers du mois d'août 2023."}]
["Date menu","Nom menu légume","Nom menu légume deux","Nom menu viande","Nom menu dessert","Nom jour férié","Nom menu création","Numéro création","Nom mois menu"]
[]
[{"$f":"\"Imprimé à Limeil-Brévannes, le \"&TEXT(TODAY(),\"jjjj j mmmm aaaa\")&\".\"","v":"Imprimé à Limeil-Brévannes, le lundi 28 août 2023."}]
[{"$f":"\"État des menus journaliers du mois de septembre \"&$A$1&\".\"","v":"État des menus journaliers du mois de septembre 2023."}]
["Date menu","Nom menu légume","Nom menu légume deux","Nom menu viande","Nom menu dessert","Nom jour férié","Nom menu création","Numéro création","Nom mois menu"]
[]
[{"$f":"\"Imprimé à Limeil-Brévannes, le \"&TEXT(TODAY(),\"jjjj j mmmm aaaa\")&\".\"","v":"Imprimé à Limeil-Brévannes, le lundi 28 août 2023."}]
[{"$f":"\"État des menus journaliers du mois d'octobre \"&$A$1&\".\"","v":"État des menus journaliers du mois d'octobre 2023."}]
["Date menu","Nom menu légume","Nom menu légume deux","Nom menu viande","Nom menu dessert","Nom jour férié","Nom menu création","Numéro création","Nom mois menu"]
[]
[{"$f":"\"Imprimé à Limeil-Brévannes, le \"&TEXT(TODAY(),\"jjjj j mmmm aaaa\")&\".\"","v":"Imprimé à Limeil-Brévannes, le lundi 28 août 2023."}]
[{"$f":"\"État des menus journaliers du mois de novembre \"&$A$1&\".\"","v":"État des menus journaliers du mois de novembre 2023."}]
["Date menu","Nom menu légume","Nom menu légume deux","Nom menu viande","Nom menu dessert","Nom jour férié","Nom menu création","Numéro création","Nom mois menu"]
[]
[{"$f":"\"Imprimé à Limeil-Brévannes, le \"&TEXT(TODAY(),\"jjjj j mmmm aaaa\")&\".\"","v":"Imprimé à Limeil-Brévannes, le lundi 28 août 2023."}]
[{"$f":"\"État des menus journaliers du mois de décembre \"&$A$1&\".\"","v":"État des menus journaliers du mois de décembre 2023."}]
["Date menu","Nom menu légume","Nom menu légume deux","Nom menu viande","Nom menu dessert","Nom jour férié","Nom menu création","Numéro création","Nom mois menu"]
[]
[{"$f":"\"Imprimé à Limeil-Brévannes, le \"&TEXT(TODAY(),\"jjjj j mmmm aaaa\")&\".\"","v":"Imprimé à Limeil-Brévannes, le lundi 28 août 2023."}]

{"sheet":"Menus viandes midi weekend","index":6,"n_rows":50,"n_cols":7,"rows_kept":50,"cut":false,"hidden":false,"merged":[[2,0,2,6],[5,0,5,6],[6,0,6,6],[9,0,9,6],[10,0,10,6],[13,0,13,6],[14,0,14,6],[17,0,17,6],[18,0,18,6],[21,0,21,6],[22,0,22,6],[25,0,25,6],[26,0,26,6],[29,0,29,6],[30,0,30,6],[42,0,42,6],[45,0,45,6],[46,0,46,6],[49,0,49,6],[33,0,33,6],[34,0,34,6],[37,0,37,6],[38,0,38,6],[41,0,41,6]]}
[{"$f":"Accueil!$F$1","v":2023}]
[]
[{"$f":"\"État des menus viandes midi weekend du mois de janvier \"&$A$1&\".\"","v":"État des menus viandes midi weekend du mois de janvier 2023."}]
["Date menu","Nom menu viande","Nom jour férié","Nom menu création","Numéro création","Nom mois menu","Période viande midi weekend"]
[]
[{"$f":"\"Imprimé à Limeil-Brévannes, le \"&TEXT(TODAY(),\"jjjj j mmmm aaaa\")&\".\"","v":"Imprimé à Limeil-Brévannes, le lundi 28 août 2023."}]
[{"$f":"\"État des menus viandes midi weekend du mois de février \"&$A$1&\".\"","v":"État des menus viandes midi weekend du mois de février 2023."}]
["Date menu","Nom menu viande","Nom jour férié","Nom menu création","Numéro création","Nom mois menu","Période viande midi weekend"]
[]
[{"$f":"\"Imprimé à Limeil-Brévannes, le \"&TEXT(TODAY(),\"jjjj j mmmm aaaa\")&\".\"","v":"Imprimé à Limeil-Brévannes, le lundi 28 août 2023."}]
[{"$f":"\"État des menus viandes midi weekend du mois de mars \"&$A$1&\".\"","v":"État des menus viandes midi weekend du mois de mars 2023."}]
["Date menu","Nom menu viande","Nom jour férié","Nom menu création","Numéro création","Nom mois menu","Période viande midi weekend"]
[]
[{"$f":"\"Imprimé à Limeil-Brévannes, le \"&TEXT(TODAY(),\"jjjj j mmmm aaaa\")&\".\"","v":"Imprimé à Limeil-Brévannes, le lundi 28 août 2023."}]
[{"$f":"\"État des menus viandes midi weekend du mois d'avril \"&$A$1&\".\"","v":"État des menus viandes midi weekend du mois d'avril 2023."}]
["Date menu","Nom menu viande","Nom jour férié","Nom menu création","Numéro création","Nom mois menu","Période viande midi weekend"]
[]
[{"$f":"\"Imprimé à Limeil-Brévannes, le \"&TEXT(TODAY(),\"jjjj j mmmm aaaa\")&\".\"","v":"Imprimé à Limeil-Brévannes, le lundi 28 août 2023."}]
[{"$f":"\"État des menus viandes midi weekend du mois de mai \"&$A$1&\".\"","v":"État des menus viandes midi weekend du mois de mai 2023."}]
["Date menu","Nom menu viande","Nom jour férié","Nom menu création","Numéro création","Nom mois menu","Période viande midi weekend"]
[]
[{"$f":"\"Imprimé à Limeil-Brévannes, le \"&TEXT(TODAY(),\"jjjj j mmmm aaaa\")&\".\"","v":"Imprimé à Limeil-Brévannes, le lundi 28 août 2023."}]
[{"$f":"\"État des menus viandes midi weekend du mois de juin \"&$A$1&\".\"","v":"État des menus viandes midi weekend du mois de juin 2023."}]
["Date menu","Nom menu viande","Nom jour férié","Nom menu création","Numéro création","Nom mois menu","Période viande midi weekend"]
[]
[{"$f":"\"Imprimé à Limeil-Brévannes, le \"&TEXT(TODAY(),\"jjjj j mmmm aaaa\")&\".\"","v":"Imprimé à Limeil-Brévannes, le lundi 28 août 2023."}]
[{"$f":"\"État des menus viandes midi weekend du mois de juillet \"&$A$1&\".\"","v":"État des menus viandes midi weekend du mois de juillet 2023."}]
["Date menu","Nom menu viande","Nom jour férié","Nom menu création","Numéro création","Nom mois menu","Période viande midi weekend"]
[]
[{"$f":"\"Imprimé à Limeil-Brévannes, le \"&TEXT(TODAY(),\"jjjj j mmmm aaaa\")&\".\"","v":"Imprimé à Limeil-Brévannes, le lundi 28 août 2023."}]
[{"$f":"\"État des menus viandes midi weekend du mois d'août \"&$A$1&\".\"","v":"État des menus viandes midi weekend du mois d'août 2023."}]
["Date menu","Nom menu viande","Nom jour férié","Nom menu création","Numéro création","Nom mois menu","Période viande midi weekend"]
[]
[{"$f":"\"Imprimé à Limeil-Brévannes, le \"&TEXT(TODAY(),\"jjjj j mmmm aaaa\")&\".\"","v":"Imprimé à Limeil-Brévannes, le lundi 28 août 2023."}]
[{"$f":"\"État des menus viandes midi weekend du mois de septembre \"&$A$1&\".\"","v":"État des menus viandes midi weekend du mois de septembre 2023."}]
["Date menu","Nom menu viande","Nom jour férié","Nom menu création","Numéro création","Nom mois menu","Période viande midi weekend"]
[]
[{"$f":"\"Imprimé à Limeil-Brévannes, le \"&TEXT(TODAY(),\"jjjj j mmmm aaaa\")&\".\"","v":"Imprimé à Limeil-Brévannes, le lundi 28 août 2023."}]
[{"$f":"\"État des menus viandes midi weekend du mois d'octobre \"&$A$1&\".\"","v":"État des menus viandes midi weekend du mois d'octobre 2023."}]
["Date menu","Nom menu viande","Nom jour férié","Nom menu création","Numéro création","Nom mois menu","Période viande midi weekend"]
[]
[{"$f":"\"Imprimé à Limeil-Brévannes, le \"&TEXT(TODAY(),\"jjjj j mmmm aaaa\")&\".\"","v":"Imprimé à Limeil-Brévannes, le lundi 28 août 2023."}]
[{"$f":"\"État des menus viandes midi weekend du mois de novembre \"&$A$1&\".\"","v":"État des menus viandes midi weekend du mois de novembre 2023."}]
["Date menu","Nom menu viande","Nom jour férié","Nom menu création","Numéro création","Nom mois menu","Période viande midi weekend"]
[]
[{"$f":"\"Imprimé à Limeil-Brévannes, le \"&TEXT(TODAY(),\"jjjj j mmmm aaaa\")&\".\"","v":"Imprimé à Limeil-Brévannes, le lundi 28 août 2023."}]
[{"$f":"\"État des menus viandes midi weekend du mois de décembre \"&$A$1&\".\"","v":"État des menus viandes midi weekend du mois de décembre 2023."}]
["Date menu","Nom menu viande","Nom jour férié","Nom menu création","Numéro création","Nom mois menu","Période viande midi weekend"]
[]
[{"$f":"\"Imprimé à Limeil-Brévannes, le \"&TEXT(TODAY(),\"jjjj j mmmm aaaa\")&\".\"","v":"Imprimé à Limeil-Brévannes, le lundi 28 août 2023."}]

{"sheet":"Quantités desserts","index":7,"n_rows":31,"n_cols":14,"rows_kept":31,"cut":false,"hidden":false,"merged":[[25,0,25,13],[0,0,0,13]]}
[{"$f":"\"Quantités desserts de l'année \"&Accueil!$F$1&\" par mois et nom des desserts.\"","v":"Quantités desserts de l'année 2023 par mois et nom des desserts."}]
[]
["Nom des desserts","Janvier","Février","Mars","Avril","Mai","Juin","Juillet","Août","Septembre","Octobre","Novembre","Décembre",{"$f":"\"Total des desserts de l'année \"&Accueil!$F$1","v":"Total des desserts de l'année 2023"}]
["Ananas",{"$f":"SUMIFS(TabBDMenus[Quantité menu dessert],TabBDMenus[Nom menu dessert],$A4,TabBDMenus[Nom mois menu],$B$3)","v":0},{"$f":"SUMIFS(TabBDMenus[Quantité menu dessert],TabBDMenus[Nom menu dessert],$A4,TabBDMenus[Nom mois menu],$C$3)","v":0},{"$f":"SUMIFS(TabBDMenus[Quantité menu dessert],TabBDMenus[Nom menu dessert],$A4,TabBDMenus[Nom mois menu],$D$3)","v":0},{"$f":"SUMIFS(TabBDMenus[Quantité menu dessert],TabBDMenus[Nom menu dessert],$A4,TabBDMenus[Nom mois menu],$E$3)","v":0},{"$f":"SUMIFS(TabBDMenus[Quantité menu dessert],TabBDMenus[Nom menu dessert],$A4,TabBDMenus[Nom mois menu],$F$3)","v":0},{"$f":"SUMIFS(TabBDMenus[Quantité menu dessert],TabBDMenus[Nom menu dessert],$A4,TabBDMenus[Nom mois menu],$G$3)","v":0},{"$f":"SUMIFS(TabBDMenus[Quantité menu dessert],TabBDMenus[Nom menu dessert],$A4,TabBDMenus[Nom mois menu],$H$3)","v":0},{"$f":"SUMIFS(TabBDMenus[Quantité menu dessert],TabBDMenus[Nom menu dessert],$A4,TabBDMenus[Nom mois menu],$I$3)","v":0},{"$f":"SUMIFS(TabBDMenus[Quantité menu dessert],TabBDMenus[Nom menu dessert],$A4,TabBDMenus[Nom mois menu],$J$3)","v":0},{"$f":"SUMIFS(TabBDMenus[Quantité menu dessert],TabBDMenus[Nom menu dessert],$A4,TabBDMenus[Nom mois menu],$K$3)","v":0},{"$f":"SUMIFS(TabBDMenus[Quantité menu dessert],TabBDMenus[Nom menu dessert],$A4,TabBDMenus[Nom mois menu],$L$3)","v":0},{"$f":"SUMIFS(TabBDMenus[Quantité menu dessert],TabBDMenus[Nom menu dessert],$A4,TabBDMenus[Nom mois menu],$M$3)","v":0},{"$f":"SUM($B4:$M4)","v":0}]
["Autres fruits",{"$f":"SUMIFS(TabBDMenus[Quantité menu dessert],TabBDMenus[Nom menu dessert],$A5,TabBDMenus[Nom mois menu],$B$3)","v":0},{"$f":"SUMIFS(TabBDMenus[Quantité menu dessert],TabBDMenus[Nom menu dessert],$A5,TabBDMenus[Nom mois menu],$C$3)","v":0},{"$f":"SUMIFS(TabBDMenus[Quantité menu dessert],TabBDMenus[Nom menu dessert],$A5,TabBDMenus[Nom mois menu],$D$3)","v":0},{"$f":"SUMIFS(TabBDMenus[Quantité menu dessert],TabBDMenus[Nom menu dessert],$A5,TabBDMenus[Nom mois menu],$E$3)","v":0},{"$f":"SUMIFS(TabBDMenus[Quantité menu dessert],TabBDMenus[Nom menu dessert],$A5,TabBDMenus[Nom mois menu],$F$3)","v":0},{"$f":"SUMIFS(TabBDMenus[Quantité menu dessert],TabBDMenus[Nom menu dessert],$A5,TabBDMenus[Nom mois menu],$G$3)","v":0},{"$f":"SUMIFS(TabBDMenus[Quantité menu dessert],TabBDMenus[Nom menu dessert],$A5,TabBDMenus[Nom mois menu],$H$3)","v":0},{"$f":"SUMIFS(TabBDMenus[Quantité menu dessert],TabBDMenus[Nom menu dessert],$A5,TabBDMenus[Nom mois menu],$I$3)","v":0},{"$f":"SUMIFS(TabBDMenus[Quantité menu dessert],TabBDMenus[Nom menu dessert],$A5,TabBDMenus[Nom mois menu],$J$3)","v":0},{"$f":"SUMIFS(TabBDMenus[Quantité menu dessert],TabBDMenus[Nom menu dessert],$A5,TabBDMenus[Nom mois menu],$K$3)","v":0},{"$f":"SUMIFS(TabBDMenus[Quantité menu dessert],TabBDMenus[Nom menu dessert],$A5,TabBDMenus[Nom mois menu],$L$3)","v":0},{"$f":"SUMIFS(TabBDMenus[Quantité menu dessert],TabBDMenus[Nom menu dessert],$A5,TabBDMenus[Nom mois menu],$M$3)","v":0},{"$f":"SUM($B5:$M5)","v":0}]
["Avocats",{"$f":"SUMIFS(TabBDMenus[Quantité menu dessert],TabBDMenus[Nom menu dessert],$A6,TabBDMenus[Nom mois menu],$B$3)","v":0},{"$f":"SUMIFS(TabBDMenus[Quantité menu dessert],TabBDMenus[Nom menu dessert],$A6,TabBDMenus[Nom mois menu],$C$3)","v":0},{"$f":"SUMIFS(TabBDMenus[Quantité menu dessert],TabBDMenus[Nom menu dessert],$A6,TabBDMenus[Nom mois menu],$D$3)","v":0},{"$f":"SUMIFS(TabBDMenus[Quantité menu dessert],TabBDMenus[Nom menu dessert],$A6,TabBDMenus[Nom mois menu],$E$3)","v":0},{"$f":"SUMIFS(TabBDMenus[Quantité menu dessert],TabBDMenus[Nom menu dessert],$A6,TabBDMenus[Nom mois menu],$F$3)","v":0},{"$f":"SUMIFS(TabBDMenus[Quantité menu dessert],TabBDMenus[Nom menu dessert],$A6,TabBDMenus[Nom mois menu],$G$3)","v":0},{"$f":"SUMIFS(TabBDMenus[Quantité menu dessert],TabBDMenus[Nom menu dessert],$A6,TabBDMenus[Nom mois menu],$H$3)","v":0},{"$f":"SUMIFS(TabBDMenus[Quantité menu dessert],TabBDMenus[Nom menu dessert],$A6,TabBDMenus[Nom mois menu],$I$3)","v":0},{"$f":"SUMIFS(TabBDMenus[Quantité menu dessert],TabBDMenus[Nom menu dessert],$A6,TabBDMenus[Nom mois menu],$J$3)","v":0},{"$f":"SUMIFS(TabBDMenus[Quantité menu dessert],TabBDMenus[Nom menu dessert],$A6,TabBDMenus[Nom mois menu],$K$3)","v":0},{"$f":"SUMIFS(TabBDMenus[Quantité menu dessert],TabBDMenus[Nom menu dessert],$A6,TabBDMenus[Nom mois menu],$L$3)","v":0},{"$f":"SUMIFS(TabBDMenus[Quantité menu dessert],TabBDMenus[Nom menu dessert],$A6,TabBDMenus[Nom mois menu],$M$3)","v":0},0]
["Bananes",{"$f":"SUMIFS(TabBDMenus[Quantité menu dessert],TabBDMenus[Nom menu dessert],$A7,TabBDMenus[Nom mois menu],$B$3)","v":0},{"$f":"SUMIFS(TabBDMenus[Quantité menu dessert],TabBDMenus[Nom menu dessert],$A7,TabBDMenus[Nom mois menu],$C$3)","v":0},{"$f":"SUMIFS(TabBDMenus[Quantité menu dessert],TabBDMenus[Nom menu dessert],$A7,TabBDMenus[Nom mois menu],$D$3)","v":0},{"$f":"SUMIFS(TabBDMenus[Quantité menu dessert],TabBDMenus[Nom menu dessert],$A7,TabBDMenus[Nom mois menu],$E$3)","v":0},{"$f":"SUMIFS(TabBDMenus[Quantité menu dessert],TabBDMenus[Nom menu dessert],$A7,TabBDMenus[Nom mois menu],$F$3)","v":0},{"$f":"SUMIFS(TabBDMenus[Quantité menu dessert],TabBDMenus[Nom menu dessert],$A7,TabBDMenus[Nom mois menu],$G$3)","v":0},{"$f":"SUMIFS(TabBDMenus[Quantité menu dessert],TabBDMenus[Nom menu dessert],$A7,TabBDMenus[Nom mois menu],$H$3)","v":0},{"$f":"SUMIFS(TabBDMenus[Quantité menu dessert],TabBDMenus[Nom menu dessert],$A7,TabBDMenus[Nom mois menu],$I$3)","v":0},{"$f":"SUMIFS(TabBDMenus[Quantité menu dessert],TabBDMenus[Nom menu dessert],$A7,TabBDMenus[Nom mois menu],$J$3)","v":0},{"$f":"SUMIFS(TabBDMenus[Quantité menu dessert],TabBDMenus[Nom menu dessert],$A7,TabBDMenus[Nom mois menu],$K$3)","v":0},{"$f":"SUMIFS(TabBDMenus[Quantité menu dessert],TabBDMenus[Nom menu dessert],$A7,TabBDMenus[Nom mois menu],$L$3)","v":0},{"$f":"SUMIFS(TabBDMenus[Quantité menu dessert],TabBDMenus[Nom menu dessert],$A7,TabBDMenus[Nom mois menu],$M$3)","v":0},0]
["Clémentines",{"$f":"SUMIFS(TabBDMenus[Quantité menu dessert],TabBDMenus[Nom menu dessert],$A8,TabBDMenus[Nom mois menu],$B$3)","v":0},{"$f":"SUMIFS(TabBDMenus[Quantité menu dessert],TabBDMenus[Nom menu dessert],$A8,TabBDMenus[Nom mois menu],$C$3)","v":0},{"$f":"SUMIFS(TabBDMenus[Quantité menu dessert],TabBDMenus[Nom menu dessert],$A8,TabBDMenus[Nom mois menu],$D$3)","v":0},{"$f":"SUMIFS(TabBDMenus[Quantité menu dessert],TabBDMenus[Nom menu dessert],$A8,TabBDMenus[Nom mois menu],$E$3)","v":0},{"$f":"SUMIFS(TabBDMenus[Quantité menu dessert],TabBDMenus[Nom menu dessert],$A8,TabBDMenus[Nom mois menu],$F$3)","v":0},{"$f":"SUMIFS(TabBDMenus[Quantité menu dessert],TabBDMenus[Nom menu dessert],$A8,TabBDMenus[Nom mois menu],$G$3)","v":0},{"$f":"SUMIFS(TabBDMenus[Quantité menu dessert],TabBDMenus[Nom menu dessert],$A8,TabBDMenus[Nom mois menu],$H$3)","v":0},{"$f":"SUMIFS(TabBDMenus[Quantité menu dessert],TabBDMenus[Nom menu dessert],$A8,TabBDMenus[Nom mois menu],$I$3)","v":0},{"$f":"SUMIFS(TabBDMenus[Quantité menu dessert],TabBDMenus[Nom menu dessert],$A8,TabBDMenus[Nom mois menu],$J$3)","v":0},{"$f":"SUMIFS(TabBDMenus[Quantité menu dessert],TabBDMenus[Nom menu dessert],$A8,TabBDMenus[Nom mois menu],$K$3)","v":0},{"$f":"SUMIFS(TabBDMenus[Quantité menu dessert],TabBDMenus[Nom menu dessert],$A8,TabBDMenus[Nom mois menu],$L$3)","v":0},{"$f":"SUMIFS(TabBDMenus[Quantité menu dessert],TabBDMenus[Nom menu dessert],$A8,TabBDMenus[Nom mois menu],$M$3)","v":0},0]
["Crème",{"$f":"SUMIFS(TabBDMenus[Quantité menu dessert],TabBDMenus[Nom menu dessert],$A9,TabBDMenus[Nom mois menu],$B$3)","v":0},{"$f":"SUMIFS(TabBDMenus[Quantité menu dessert],TabBDMenus[Nom menu dessert],$A9,TabBDMenus[Nom mois menu],$C$3)","v":0},{"$f":"SUMIFS(TabBDMenus[Quantité menu dessert],TabBDMenus[Nom menu dessert],$A9,TabBDMenus[Nom mois menu],$D$3)","v":0},{"$f":"SUMIFS(TabBDMenus[Quantité menu dessert],TabBDMenus[Nom menu dessert],$A9,TabBDMenus[Nom mois menu],$E$3)","v":0},{"$f":"SUMIFS(TabBDMenus[Quantité menu dessert],TabBDMenus[Nom menu dessert],$A9,TabBDMenus[Nom mois menu],$F$3)","v":0},{"$f":"SUMIFS(TabBDMenus[Quantité menu dessert],TabBDMenus[Nom menu dessert],$A9,TabBDMenus[Nom mois menu],$G$3)","v":0},{"$f":"SUMIFS(TabBDMenus[Quantité menu dessert],TabBDMenus[Nom menu dessert],$A9,TabBDMenus[Nom mois menu],$H$3)","v":0},{"$f":"SUMIFS(TabBDMenus[Quantité menu dessert],TabBDMenus[Nom menu dessert],$A9,TabBDMenus[Nom mois menu],$I$3)","v":0},{"$f":"SUMIFS(TabBDMenus[Quantité menu dessert],TabBDMenus[Nom menu dessert],$A9,TabBDMenus[Nom mois menu],$J$3)","v":0},{"$f":"SUMIFS(TabBDMenus[Quantité menu dessert],TabBDMenus[Nom menu dessert],$A9,TabBDMenus[Nom mois menu],$K$3)","v":0},{"$f":"SUMIFS(TabBDMenus[Quantité menu dessert],TabBDMenus[Nom menu dessert],$A9,TabBDMenus[Nom mois menu],$L$3)","v":0},{"$f":"SUMIFS(TabBDMenus[Quantité menu dessert],TabBDMenus[Nom menu dessert],$A9,TabBDMenus[Nom mois menu],$M$3)","v":0},0]
["Dattes",{"$f":"SUMIFS(TabBDMenus[Quantité menu dessert],TabBDMenus[Nom menu dessert],$A10,TabBDMenus[Nom mois menu],$B$3)","v":0},{"$f":"SUMIFS(TabBDMenus[Quantité menu dessert],TabBDMenus[Nom menu dessert],$A10,TabBDMenus[Nom mois menu],$C$3)","v":0},{"$f":"SUMIFS(TabBDMenus[Quantité menu dessert],TabBDMenus[Nom menu dessert],$A10,TabBDMenus[Nom mois menu],$D$3)","v":0},{"$f":"SUMIFS(TabBDMenus[Quantité menu dessert],TabBDMenus[Nom menu dessert],$A10,TabBDMenus[Nom mois menu],$E$3)","v":0},{"$f":"SUMIFS(TabBDMenus[Quantité menu dessert],TabBDMenus[Nom menu dessert],$A10,TabBDMenus[Nom mois menu],$F$3)","v":0},{"$f":"SUMIFS(TabBDMenus[Quantité menu dessert],TabBDMenus[Nom menu dessert],$A10,TabBDMenus[Nom mois menu],$G$3)","v":0},{"$f":"SUMIFS(TabBDMenus[Quantité menu dessert],TabBDMenus[Nom menu dessert],$A10,TabBDMenus[Nom mois menu],$H$3)","v":0},{"$f":"SUMIFS(TabBDMenus[Quantité menu dessert],TabBDMenus[Nom menu dessert],$A10,TabBDMenus[Nom mois menu],$I$3)","v":0},{"$f":"SUMIFS(TabBDMenus[Quantité menu dessert],TabBDMenus[Nom menu dessert],$A10,TabBDMenus[Nom mois menu],$J$3)","v":0},{"$f":"SUMIFS(TabBDMenus[Quantité menu dessert],TabBDMenus[Nom menu dessert],$A10,TabBDMenus[Nom mois menu],$K$3)","v":0},{"$f":"SUMIFS(TabBDMenus[Quantité menu dessert],TabBDMenus[Nom menu dessert],$A10,TabBDMenus[Nom mois menu],$L$3)","v":0},{"$f":"SUMIFS(TabBDMenus[Quantité menu dessert],TabBDMenus[Nom menu dessert],$A10,TabBDMenus[Nom mois menu],$M$3)","v":0},0]
["Figues",{"$f":"SUMIFS(TabBDMenus[Quantité menu dessert],TabBDMenus[Nom menu dessert],$A11,TabBDMenus[Nom mois menu],$B$3)","v":0},{"$f":"SUMIFS(TabBDMenus[Quantité menu dessert],TabBDMenus[Nom menu dessert],$A11,TabBDMenus[Nom mois menu],$C$3)","v":0},{"$f":"SUMIFS(TabBDMenus[Quantité menu dessert],TabBDMenus[Nom menu dessert],$A11,TabBDMenus[Nom mois menu],$D$3)","v":0},{"$f":"SUMIFS(TabBDMenus[Quantité menu dessert],TabBDMenus[Nom menu dessert],$A11,TabBDMenus[Nom mois menu],$E$3)","v":0},{"$f":"SUMIFS(TabBDMenus[Quantité menu dessert],TabBDMenus[Nom menu dessert],$A11,TabBDMenus[Nom mois menu],$F$3)","v":0},{"$f":"SUMIFS(TabBDMenus[Quantité menu dessert],TabBDMenus[Nom menu dessert],$A11,TabBDMenus[Nom mois menu],$G$3)","v":0},{"$f":"SUMIFS(TabBDMenus[Quantité menu dessert],TabBDMenus[Nom menu dessert],$A11,TabBDMenus[Nom mois menu],$H$3)","v":0},{"$f":"SUMIFS(TabBDMenus[Quantité menu dessert],TabBDMenus[Nom menu dessert],$A11,TabBDMenus[Nom mois menu],$I$3)","v":0},{"$f":"SUMIFS(TabBDMenus[Quantité menu dessert],TabBDMenus[Nom menu dessert],$A11,TabBDMenus[Nom mois menu],$J$3)","v":0},{"$f":"SUMIFS(TabBDMenus[Quantité menu dessert],TabBDMenus[Nom menu dessert],$A11,TabBDMenus[Nom mois menu],$K$3)","v":0},{"$f":"SUMIFS(TabBDMenus[Quantité menu dessert],TabBDMenus[Nom menu dessert],$A11,TabBDMenus[Nom mois menu],$L$3)","v":0},{"$f":"SUMIFS(TabBDMenus[Quantité menu dessert],TabBDMenus[Nom menu dessert],$A11,TabBDMenus[Nom mois menu],$M$3)","v":0},0]
["Fromage blanc",{"$f":"SUMIFS(TabBDMenus[Quantité menu dessert],TabBDMenus[Nom menu dessert],$A12,TabBDMenus[Nom mois menu],$B$3)","v":0},{"$f":"SUMIFS(TabBDMenus[Quantité menu dessert],TabBDMenus[Nom menu dessert],$A12,TabBDMenus[Nom mois menu],$C$3)","v":0},{"$f":"SUMIFS(TabBDMenus[Quantité menu dessert],TabBDMenus[Nom menu dessert],$A12,TabBDMenus[Nom mois menu],$D$3)","v":0},{"$f":"SUMIFS(TabBDMenus[Quantité menu dessert],TabBDMenus[Nom menu dessert],$A12,TabBDMenus[Nom mois menu],$E$3)","v":0},{"$f":"SUMIFS(TabBDMenus[Quantité menu dessert],TabBDMenus[Nom menu dessert],$A12,TabBDMenus[Nom mois menu],$F$3)","v":0},{"$f":"SUMIFS(TabBDMenus[Quantité menu dessert],TabBDMenus[Nom menu dessert],$A12,TabBDMenus[Nom mois menu],$G$3)","v":0},{"$f":"SUMIFS(TabBDMenus[Quantité menu dessert],TabBDMenus[Nom menu dessert],$A12,TabBDMenus[Nom mois menu],$H$3)","v":0},{"$f":"SUMIFS(TabBDMenus[Quantité menu dessert],TabBDMenus[Nom menu dessert],$A12,TabBDMenus[Nom mois menu],$I$3)","v":0},{"$f":"SUMIFS(TabBDMenus[Quantité menu dessert],TabBDMenus[Nom menu dessert],$A12,TabBDMenus[Nom mois menu],$J$3)","v":0},{"$f":"SUMIFS(TabBDMenus[Quantité menu dessert],TabBDMenus[Nom menu dessert],$A12,TabBDMenus[Nom mois menu],$K$3)","v":0},{"$f":"SUMIFS(TabBDMenus[Quantité menu dessert],TabBDMenus[Nom menu dessert],$A12,TabBDMenus[Nom mois menu],$L$3)","v":0},{"$f":"SUMIFS(TabBDMenus[Quantité menu dessert],TabBDMenus[Nom menu dessert],$A12,TabBDMenus[Nom mois menu],$M$3)","v":0},0]
["Fruits au sirop",{"$f":"SUMIFS(TabBDMenus[Quantité menu dessert],TabBDMenus[Nom menu dessert],$A13,TabBDMenus[Nom mois menu],$B$3)","v":0},{"$f":"SUMIFS(TabBDMenus[Quantité menu dessert],TabBDMenus[Nom menu dessert],$A13,TabBDMenus[Nom mois menu],$C$3)","v":0},{"$f":"SUMIFS(TabBDMenus[Quantité menu dessert],TabBDMenus[Nom menu dessert],$A13,TabBDMenus[Nom mois menu],$D$3)","v":0},{"$f":"SUMIFS(TabBDMenus[Quantité menu dessert],TabBDMenus[Nom menu dessert],$A13,TabBDMenus[Nom mois menu],$E$3)","v":0},{"$f":"SUMIFS(TabBDMenus[Quantité menu dessert],TabBDMenus[Nom menu dessert],$A13,TabBDMenus[Nom mois menu],$F$3)","v":0},{"$f":"SUMIFS(TabBDMenus[Quantité menu dessert],TabBDMenus[Nom menu dessert],$A13,TabBDMenus[Nom mois menu],$G$3)","v":0},{"$f":"SUMIFS(TabBDMenus[Quantité menu dessert],TabBDMenus[Nom menu dessert],$A13,TabBDMenus[Nom mois menu],$H$3)","v":0},{"$f":"SUMIFS(TabBDMenus[Quantité menu dessert],TabBDMenus[Nom menu dessert],$A13,TabBDMenus[Nom mois menu],$I$3)","v":0},{"$f":"SUMIFS(TabBDMenus[Quantité menu dessert],TabBDMenus[Nom menu dessert],$A13,TabBDMenus[Nom mois menu],$J$3)","v":0},{"$f":"SUMIFS(TabBDMenus[Quantité menu dessert],TabBDMenus[Nom menu dessert],$A13,TabBDMenus[Nom mois menu],$K$3)","v":0},{"$f":"SUMIFS(TabBDMenus[Quantité menu dessert],TabBDMenus[Nom menu dessert],$A13,TabBDMenus[Nom mois menu],$L$3)","v":0},{"$f":"SUMIFS(TabBDMenus[Quantité menu dessert],TabBDMenus[Nom menu dessert],$A13,TabBDMenus[Nom mois menu],$M$3)","v":0},0]
["Fruits de saison",{"$f":"SUMIFS(TabBDMenus[Quantité menu dessert],TabBDMenus[Nom menu dessert],$A14,TabBDMenus[Nom mois menu],$B$3)","v":0},{"$f":"SUMIFS(TabBDMenus[Quantité menu dessert],TabBDMenus[Nom menu dessert],$A14,TabBDMenus[Nom mois menu],$C$3)","v":0},{"$f":"SUMIFS(TabBDMenus[Quantité menu dessert],TabBDMenus[Nom menu dessert],$A14,TabBDMenus[Nom mois menu],$D$3)","v":0},{"$f":"SUMIFS(TabBDMenus[Quantité menu dessert],TabBDMenus[Nom menu dessert],$A14,TabBDMenus[Nom mois menu],$E$3)","v":0},{"$f":"SUMIFS(TabBDMenus[Quantité menu dessert],TabBDMenus[Nom menu dessert],$A14,TabBDMenus[Nom mois menu],$F$3)","v":0},{"$f":"SUMIFS(TabBDMenus[Quantité menu dessert],TabBDMenus[Nom menu dessert],$A14,TabBDMenus[Nom mois menu],$G$3)","v":0},{"$f":"SUMIFS(TabBDMenus[Quantité menu dessert],TabBDMenus[Nom menu dessert],$A14,TabBDMenus[Nom mois menu],$H$3)","v":0},{"$f":"SUMIFS(TabBDMenus[Quantité menu dessert],TabBDMenus[Nom menu dessert],$A14,TabBDMenus[Nom mois menu],$I$3)","v":0},{"$f":"SUMIFS(TabBDMenus[Quantité menu dessert],TabBDMenus[Nom menu dessert],$A14,TabBDMenus[Nom mois menu],$J$3)","v":0},{"$f":"SUMIFS(TabBDMenus[Quantité menu dessert],TabBDMenus[Nom menu dessert],$A14,TabBDMenus[Nom mois menu],$K$3)","v":0},{"$f":"SUMIFS(TabBDMenus[Quantité menu dessert],TabBDMenus[Nom menu dessert],$A14,TabBDMenus[Nom mois menu],$L$3)","v":0},{"$f":"SUMIFS(TabBDMenus[Quantité menu dessert],TabBDMenus[Nom menu dessert],$A14,TabBDMenus[Nom mois menu],$M$3)","v":0},0]
["Gâteau de riz",{"$f":"SUMIFS(TabBDMenus[Quantité menu dessert],TabBDMenus[Nom menu dessert],$A15,TabBDMenus[Nom mois menu],$B$3)","v":0},{"$f":"SUMIFS(TabBDMenus[Quantité menu dessert],TabBDMenus[Nom menu dessert],$A15,TabBDMenus[Nom mois menu],$C$3)","v":0},{"$f":"SUMIFS(TabBDMenus[Quantité menu dessert],TabBDMenus[Nom menu dessert],$A15,TabBDMenus[Nom mois menu],$D$3)","v":0},{"$f":"SUMIFS(TabBDMenus[Quantité menu dessert],TabBDMenus[Nom menu dessert],$A15,TabBDMenus[Nom mois menu],$E$3)","v":0},{"$f":"SUMIFS(TabBDMenus[Quantité menu dessert],TabBDMenus[Nom menu dessert],$A15,TabBDMenus[Nom mois menu],$F$3)","v":0},{"$f":"SUMIFS(TabBDMenus[Quantité menu dessert],TabBDMenus[Nom menu dessert],$A15,TabBDMenus[Nom mois menu],$G$3)","v":0},{"$f":"SUMIFS(TabBDMenus[Quantité menu dessert],TabBDMenus[Nom menu dessert],$A15,TabBDMenus[Nom mois menu],$H$3)","v":0},{"$f":"SUMIFS(TabBDMenus[Quantité menu dessert],TabBDMenus[Nom menu dessert],$A15,TabBDMenus[Nom mois menu],$I$3)","v":0},{"$f":"SUMIFS(TabBDMenus[Quantité menu dessert],TabBDMenus[Nom menu dessert],$A15,TabBDMenus[Nom mois menu],$J$3)","v":0},{"$f":"SUMIFS(TabBDMenus[Quantité menu dessert],TabBDMenus[Nom menu dessert],$A15,TabBDMenus[Nom mois menu],$K$3)","v":0},{"$f":"SUMIFS(TabBDMenus[Quantité menu dessert],TabBDMenus[Nom menu dessert],$A15,TabBDMenus[Nom mois menu],$L$3)","v":0},{"$f":"SUMIFS(TabBDMenus[Quantité menu dessert],TabBDMenus[Nom menu dessert],$A15,TabBDMenus[Nom mois menu],$M$3)","v":0},0]
["Gâteau de semoule",{"$f":"SUMIFS(TabBDMenus[Quantité menu dessert],TabBDMenus[Nom menu dessert],$A16,TabBDMenus[Nom mois menu],$B$3)","v":0},{"$f":"SUMIFS(TabBDMenus[Quantité menu dessert],TabBDMenus[Nom menu dessert],$A16,TabBDMenus[Nom mois menu],$C$3)","v":0},{"$f":"SUMIFS(TabBDMenus[Quantité menu dessert],TabBDMenus[Nom menu dessert],$A16,TabBDMenus[Nom mois menu],$D$3)","v":0},{"$f":"SUMIFS(TabBDMenus[Quantité menu dessert],TabBDMenus[Nom menu dessert],$A16,TabBDMenus[Nom mois menu],$E$3)","v":0},{"$f":"SUMIFS(TabBDMenus[Quantité menu dessert],TabBDMenus[Nom menu dessert],$A16,TabBDMenus[Nom mois menu],$F$3)","v":0},{"$f":"SUMIFS(TabBDMenus[Quantité menu dessert],TabBDMenus[Nom menu dessert],$A16,TabBDMenus[Nom mois menu],$G$3)","v":0},{"$f":"SUMIFS(TabBDMenus[Quantité menu dessert],TabBDMenus[Nom menu dessert],$A16,TabBDMenus[Nom mois menu],$H$3)","v":0},{"$f":"SUMIFS(TabBDMenus[Quantité menu dessert],TabBDMenus[Nom menu dessert],$A16,TabBDMenus[Nom mois menu],$I$3)","v":0},{"$f":"SUMIFS(TabBDMenus[Quantité menu dessert],TabBDMenus[Nom menu dessert],$A16,TabBDMenus[Nom mois menu],$J$3)","v":0},{"$f":"SUMIFS(TabBDMenus[Quantité menu dessert],TabBDMenus[Nom menu dessert],$A16,TabBDMenus[Nom mois menu],$K$3)","v":0},{"$f":"SUMIFS(TabBDMenus[Quantité menu dessert],TabBDMenus[Nom menu dessert],$A16,TabBDMenus[Nom mois menu],$L$3)","v":0},{"$f":"SUMIFS(TabBDMenus[Quantité menu dessert],TabBDMenus[Nom menu dessert],$A16,TabBDMenus[Nom mois menu],$M$3)","v":0},0]
["Gâteaux samedi dimanche",{"$f":"SUMIFS(TabBDMenus[Quantité menu dessert],TabBDMenus[Nom menu dessert],$A17,TabBDMenus[Nom mois menu],$B$3)","v":0},{"$f":"SUMIFS(TabBDMenus[Quantité menu dessert],TabBDMenus[Nom menu dessert],$A17,TabBDMenus[Nom mois menu],$C$3)","v":0},{"$f":"SUMIFS(TabBDMenus[Quantité menu dessert],TabBDMenus[Nom menu dessert],$A17,TabBDMenus[Nom mois menu],$D$3)","v":0},{"$f":"SUMIFS(TabBDMenus[Quantité menu dessert],TabBDMenus[Nom menu dessert],$A17,TabBDMenus[Nom mois menu],$E$3)","v":0},{"$f":"SUMIFS(TabBDMenus[Quantité menu dessert],TabBDMenus[Nom menu dessert],$A17,TabBDMenus[Nom mois menu],$F$3)","v":0},{"$f":"SUMIFS(TabBDMenus[Quantité menu dessert],TabBDMenus[Nom menu dessert],$A17,TabBDMenus[Nom mois menu],$G$3)","v":0},{"$f":"SUMIFS(TabBDMenus[Quantité menu dessert],TabBDMenus[Nom menu dessert],$A17,TabBDMenus[Nom mois menu],$H$3)","v":0},{"$f":"SUMIFS(TabBDMenus[Quantité menu dessert],TabBDMenus[Nom menu dessert],$A17,TabBDMenus[Nom mois menu],$I$3)","v":0},{"$f":"SUMIFS(TabBDMenus[Quantité menu dessert],TabBDMenus[Nom menu dessert],$A17,TabBDMenus[Nom mois menu],$J$3)","v":0},{"$f":"SUMIFS(TabBDMenus[Quantité menu dessert],TabBDMenus[Nom menu dessert],$A17,TabBDMenus[Nom mois menu],$K$3)","v":0},{"$f":"SUMIFS(TabBDMenus[Quantité menu dessert],TabBDMenus[Nom menu dessert],$A17,TabBDMenus[Nom mois menu],$L$3)","v":0},{"$f":"SUMIFS(TabBDMenus[Quantité menu dessert],TabBDMenus[Nom menu dessert],$A17,TabBDMenus[Nom mois menu],$M$3)","v":0},0]
["Mousse au chocolat",{"$f":"SUMIFS(TabBDMenus[Quantité menu dessert],TabBDMenus[Nom menu dessert],$A18,TabBDMenus[Nom mois menu],$B$3)","v":0},{"$f":"SUMIFS(TabBDMenus[Quantité menu dessert],TabBDMenus[Nom menu dessert],$A18,TabBDMenus[Nom mois menu],$C$3)","v":0},{"$f":"SUMIFS(TabBDMenus[Quantité menu dessert],TabBDMenus[Nom menu dessert],$A18,TabBDMenus[Nom mois menu],$D$3)","v":0},{"$f":"SUMIFS(TabBDMenus[Quantité menu dessert],TabBDMenus[Nom menu dessert],$A18,TabBDMenus[Nom mois menu],$E$3)","v":0},{"$f":"SUMIFS(TabBDMenus[Quantité menu dessert],TabBDMenus[Nom menu dessert],$A18,TabBDMenus[Nom mois menu],$F$3)","v":0},{"$f":"SUMIFS(TabBDMenus[Quantité menu dessert],TabBDMenus[Nom menu dessert],$A18,TabBDMenus[Nom mois menu],$G$3)","v":0},{"$f":"SUMIFS(TabBDMenus[Quantité menu dessert],TabBDMenus[Nom menu dessert],$A18,TabBDMenus[Nom mois menu],$H$3)","v":0},{"$f":"SUMIFS(TabBDMenus[Quantité menu dessert],TabBDMenus[Nom menu dessert],$A18,TabBDMenus[Nom mois menu],$I$3)","v":0},{"$f":"SUMIFS(TabBDMenus[Quantité menu dessert],TabBDMenus[Nom menu dessert],$A18,TabBDMenus[Nom mois menu],$J$3)","v":0},{"$f":"SUMIFS(TabBDMenus[Quantité menu dessert],TabBDMenus[Nom menu dessert],$A18,TabBDMenus[Nom mois menu],$K$3)","v":0},{"$f":"SUMIFS(TabBDMenus[Quantité menu dessert],TabBDMenus[Nom menu dessert],$A18,TabBDMenus[Nom mois menu],$L$3)","v":0},{"$f":"SUMIFS(TabBDMenus[Quantité menu dessert],TabBDMenus[Nom menu dessert],$A18,TabBDMenus[Nom mois menu],$M$3)","v":0},0]
["Oranges",{"$f":"SUMIFS(TabBDMenus[Quantité menu dessert],TabBDMenus[Nom menu dessert],$A19,TabBDMenus[Nom mois menu],$B$3)","v":0},{"$f":"SUMIFS(TabBDMenus[Quantité menu dessert],TabBDMenus[Nom menu dessert],$A19,TabBDMenus[Nom mois menu],$C$3)","v":0},{"$f":"SUMIFS(TabBDMenus[Quantité menu dessert],TabBDMenus[Nom menu dessert],$A19,TabBDMenus[Nom mois menu],$D$3)","v":0},{"$f":"SUMIFS(TabBDMenus[Quantité menu dessert],TabBDMenus[Nom menu dessert],$A19,TabBDMenus[Nom mois menu],$E$3)","v":0},{"$f":"SUMIFS(TabBDMenus[Quantité menu dessert],TabBDMenus[Nom menu dessert],$A19,TabBDMenus[Nom mois menu],$F$3)","v":0},{"$f":"SUMIFS(TabBDMenus[Quantité menu dessert],TabBDMenus[Nom menu dessert],$A19,TabBDMenus[Nom mois menu],$G$3)","v":0},{"$f":"SUMIFS(TabBDMenus[Quantité menu dessert],TabBDMenus[Nom menu dessert],$A19,TabBDMenus[Nom mois menu],$H$3)","v":0},{"$f":"SUMIFS(TabBDMenus[Quantité menu dessert],TabBDMenus[Nom menu dessert],$A19,TabBDMenus[Nom mois menu],$I$3)","v":0},{"$f":"SUMIFS(TabBDMenus[Quantité menu dessert],TabBDMenus[Nom menu dessert],$A19,TabBDMenus[Nom mois menu],$J$3)","v":0},{"$f":"SUMIFS(TabBDMenus[Quantité menu dessert],TabBDMenus[Nom menu dessert],$A19,TabBDMenus[Nom mois menu],$K$3)","v":0},{"$f":"SUMIFS(TabBDMenus[Quantité menu dessert],TabBDMenus[Nom menu dessert],$A19,TabBDMenus[Nom mois menu],$L$3)","v":0},{"$f":"SUMIFS(TabBDMenus[Quantité menu dessert],TabBDMenus[Nom menu dessert],$A19,TabBDMenus[Nom mois menu],$M$3)","v":0},0]
["Petits suisses",{"$f":"SUMIFS(TabBDMenus[Quantité menu dessert],TabBDMenus[Nom menu dessert],$A20,TabBDMenus[Nom mois menu],$B$3)","v":0},{"$f":"SUMIFS(TabBDMenus[Quantité menu dessert],TabBDMenus[Nom menu dessert],$A20,TabBDMenus[Nom mois menu],$C$3)","v":0},{"$f":"SUMIFS(TabBDMenus[Quantité menu dessert],TabBDMenus[Nom menu dessert],$A20,TabBDMenus[Nom mois menu],$D$3)","v":0},{"$f":"SUMIFS(TabBDMenus[Quantité menu dessert],TabBDMenus[Nom menu dessert],$A20,TabBDMenus[Nom mois menu],$E$3)","v":0},{"$f":"SUMIFS(TabBDMenus[Quantité menu dessert],TabBDMenus[Nom menu dessert],$A20,TabBDMenus[Nom mois menu],$F$3)","v":0},{"$f":"SUMIFS(TabBDMenus[Quantité menu dessert],TabBDMenus[Nom menu dessert],$A20,TabBDMenus[Nom mois menu],$G$3)","v":0},{"$f":"SUMIFS(TabBDMenus[Quantité menu dessert],TabBDMenus[Nom menu dessert],$A20,TabBDMenus[Nom mois menu],$H$3)","v":0},{"$f":"SUMIFS(TabBDMenus[Quantité menu dessert],TabBDMenus[Nom menu dessert],$A20,TabBDMenus[Nom mois menu],$I$3)","v":0},{"$f":"SUMIFS(TabBDMenus[Quantité menu dessert],TabBDMenus[Nom menu dessert],$A20,TabBDMenus[Nom mois menu],$J$3)","v":0},{"$f":"SUMIFS(TabBDMenus[Quantité menu dessert],TabBDMenus[Nom menu dessert],$A20,TabBDMenus[Nom mois menu],$K$3)","v":0},{"$f":"SUMIFS(TabBDMenus[Quantité menu dessert],TabBDMenus[Nom menu dessert],$A20,TabBDMenus[Nom mois menu],$L$3)","v":0},{"$f":"SUMIFS(TabBDMenus[Quantité menu dessert],TabBDMenus[Nom menu dessert],$A20,TabBDMenus[Nom mois menu],$M$3)","v":0},0]
["Pomme",{"$f":"SUMIFS(TabBDMenus[Quantité menu dessert],TabBDMenus[Nom menu dessert],$A21,TabBDMenus[Nom mois menu],$B$3)","v":0},{"$f":"SUMIFS(TabBDMenus[Quantité menu dessert],TabBDMenus[Nom menu dessert],$A21,TabBDMenus[Nom mois menu],$C$3)","v":0},{"$f":"SUMIFS(TabBDMenus[Quantité menu dessert],TabBDMenus[Nom menu dessert],$A21,TabBDMenus[Nom mois menu],$D$3)","v":0},{"$f":"SUMIFS(TabBDMenus[Quantité menu dessert],TabBDMenus[Nom menu dessert],$A21,TabBDMenus[Nom mois menu],$E$3)","v":0},{"$f":"SUMIFS(TabBDMenus[Quantité menu dessert],TabBDMenus[Nom menu dessert],$A21,TabBDMenus[Nom mois menu],$F$3)","v":0},{"$f":"SUMIFS(TabBDMenus[Quantité menu dessert],TabBDMenus[Nom menu dessert],$A21,TabBDMenus[Nom mois menu],$G$3)","v":0},{"$f":"SUMIFS(TabBDMenus[Quantité menu dessert],TabBDMenus[Nom menu dessert],$A21,TabBDMenus[Nom mois menu],$H$3)","v":0},{"$f":"SUMIFS(TabBDMenus[Quantité menu dessert],TabBDMenus[Nom menu dessert],$A21,TabBDMenus[Nom mois menu],$I$3)","v":0},{"$f":"SUMIFS(TabBDMenus[Quantité menu dessert],TabBDMenus[Nom menu dessert],$A21,TabBDMenus[Nom mois menu],$J$3)","v":0},{"$f":"SUMIFS(TabBDMenus[Quantité menu dessert],TabBDMenus[Nom menu dessert],$A21,TabBDMenus[Nom mois menu],$K$3)","v":0},{"$f":"SUMIFS(TabBDMenus[Quantité menu dessert],TabBDMenus[Nom menu dessert],$A21,TabBDMenus[Nom mois menu],$L$3)","v":0},{"$f":"SUMIFS(TabBDMenus[Quantité menu dessert],TabBDMenus[Nom menu dessert],$A21,TabBDMenus[Nom mois menu],$M$3)","v":0},0]
["Pruneaux",{"$f":"SUMIFS(TabBDMenus[Quantité menu dessert],TabBDMenus[Nom menu dessert],$A22,TabBDMenus[Nom mois menu],$B$3)","v":0},{"$f":"SUMIFS(TabBDMenus[Quantité menu dessert],TabBDMenus[Nom menu dessert],$A22,TabBDMenus[Nom mois menu],$C$3)","v":0},{"$f":"SUMIFS(TabBDMenus[Quantité menu dessert],TabBDMenus[Nom menu dessert],$A22,TabBDMenus[Nom mois menu],$D$3)","v":0},{"$f":"SUMIFS(TabBDMenus[Quantité menu dessert],TabBDMenus[Nom menu dessert],$A22,TabBDMenus[Nom mois menu],$E$3)","v":0},{"$f":"SUMIFS(TabBDMenus[Quantité menu dessert],TabBDMenus[Nom menu dessert],$A22,TabBDMenus[Nom mois menu],$F$3)","v":0},{"$f":"SUMIFS(TabBDMenus[Quantité menu dessert],TabBDMenus[Nom menu dessert],$A22,TabBDMenus[Nom mois menu],$G$3)","v":0},{"$f":"SUMIFS(TabBDMenus[Quantité menu dessert],TabBDMenus[Nom menu dessert],$A22,TabBDMenus[Nom mois menu],$H$3)","v":0},{"$f":"SUMIFS(TabBDMenus[Quantité menu dessert],TabBDMenus[Nom menu dessert],$A22,TabBDMenus[Nom mois menu],$I$3)","v":0},{"$f":"SUMIFS(TabBDMenus[Quantité menu dessert],TabBDMenus[Nom menu dessert],$A22,TabBDMenus[Nom mois menu],$J$3)","v":0},{"$f":"SUMIFS(TabBDMenus[Quantité menu dessert],TabBDMenus[Nom menu dessert],$A22,TabBDMenus[Nom mois menu],$K$3)","v":0},{"$f":"SUMIFS(TabBDMenus[Quantité menu dessert],TabBDMenus[Nom menu dessert],$A22,TabBDMenus[Nom mois menu],$L$3)","v":0},{"$f":"SUMIFS(TabBDMenus[Quantité menu dessert],TabBDMenus[Nom menu dessert],$A22,TabBDMenus[Nom mois menu],$M$3)","v":0},0]
["Riz au lait",{"$f":"SUMIFS(TabBDMenus[Quantité menu dessert],TabBDMenus[Nom menu dessert],$A23,TabBDMenus[Nom mois menu],$B$3)","v":0},{"$f":"SUMIFS(TabBDMenus[Quantité menu dessert],TabBDMenus[Nom menu dessert],$A23,TabBDMenus[Nom mois menu],$C$3)","v":0},{"$f":"SUMIFS(TabBDMenus[Quantité menu dessert],TabBDMenus[Nom menu dessert],$A23,TabBDMenus[Nom mois menu],$D$3)","v":0},{"$f":"SUMIFS(TabBDMenus[Quantité menu dessert],TabBDMenus[Nom menu dessert],$A23,TabBDMenus[Nom mois menu],$E$3)","v":0},{"$f":"SUMIFS(TabBDMenus[Quantité menu dessert],TabBDMenus[Nom menu dessert],$A23,TabBDMenus[Nom mois menu],$F$3)","v":0},{"$f":"SUMIFS(TabBDMenus[Quantité menu dessert],TabBDMenus[Nom menu dessert],$A23,TabBDMenus[Nom mois menu],$G$3)","v":0},{"$f":"SUMIFS(TabBDMenus[Quantité menu dessert],TabBDMenus[Nom menu dessert],$A23,TabBDMenus[Nom mois menu],$H$3)","v":0},{"$f":"SUMIFS(TabBDMenus[Quantité menu dessert],TabBDMenus[Nom menu dessert],$A23,TabBDMenus[Nom mois menu],$I$3)","v":0},{"$f":"SUMIFS(TabBDMenus[Quantité menu dessert],TabBDMenus[Nom menu dessert],$A23,TabBDMenus[Nom mois menu],$J$3)","v":0},{"$f":"SUMIFS(TabBDMenus[Quantité menu dessert],TabBDMenus[Nom menu dessert],$A23,TabBDMenus[Nom mois menu],$K$3)","v":0},{"$f":"SUMIFS(TabBDMenus[Quantité menu dessert],TabBDMenus[Nom menu dessert],$A23,TabBDMenus[Nom mois menu],$L$3)","v":0},{"$f":"SUMIFS(TabBDMenus[Quantité menu dessert],TabBDMenus[Nom menu dessert],$A23,TabBDMenus[Nom mois menu],$M$3)","v":0},0]
["Tapioca",{"$f":"SUMIFS(TabBDMenus[Quantité menu dessert],TabBDMenus[Nom menu dessert],$A24,TabBDMenus[Nom mois menu],$B$3)","v":0},{"$f":"SUMIFS(TabBDMenus[Quantité menu dessert],TabBDMenus[Nom menu dessert],$A24,TabBDMenus[Nom mois menu],$C$3)","v":0},{"$f":"SUMIFS(TabBDMenus[Quantité menu dessert],TabBDMenus[Nom menu dessert],$A24,TabBDMenus[Nom mois menu],$D$3)","v":0},{"$f":"SUMIFS(TabBDMenus[Quantité menu dessert],TabBDMenus[Nom menu dessert],$A24,TabBDMenus[Nom mois menu],$E$3)","v":0},{"$f":"SUMIFS(TabBDMenus[Quantité menu dessert],TabBDMenus[Nom menu dessert],$A24,TabBDMenus[Nom mois menu],$F$3)","v":0},{"$f":"SUMIFS(TabBDMenus[Quantité menu dessert],TabBDMenus[Nom menu dessert],$A24,TabBDMenus[Nom mois menu],$G$3)","v":0},{"$f":"SUMIFS(TabBDMenus[Quantité menu dessert],TabBDMenus[Nom menu dessert],$A24,TabBDMenus[Nom mois menu],$H$3)","v":0},{"$f":"SUMIFS(TabBDMenus[Quantité menu dessert],TabBDMenus[Nom menu dessert],$A24,TabBDMenus[Nom mois menu],$I$3)","v":0},{"$f":"SUMIFS(TabBDMenus[Quantité menu dessert],TabBDMenus[Nom menu dessert],$A24,TabBDMenus[Nom mois menu],$J$3)","v":0},{"$f":"SUMIFS(TabBDMenus[Quantité menu dessert],TabBDMenus[Nom menu dessert],$A24,TabBDMenus[Nom mois menu],$K$3)","v":0},{"$f":"SUMIFS(TabBDMenus[Quantité menu dessert],TabBDMenus[Nom menu dessert],$A24,TabBDMenus[Nom mois menu],$L$3)","v":0},{"$f":"SUMIFS(TabBDMenus[Quantité menu dessert],TabBDMenus[Nom menu dessert],$A24,TabBDMenus[Nom mois menu],$M$3)","v":0},0]
["Yaourts",{"$f":"SUMIFS(TabBDMenus[Quantité menu dessert],TabBDMenus[Nom menu dessert],$A25,TabBDMenus[Nom mois menu],$B$3)","v":0},{"$f":"SUMIFS(TabBDMenus[Quantité menu dessert],TabBDMenus[Nom menu dessert],$A25,TabBDMenus[Nom mois menu],$C$3)","v":0},{"$f":"SUMIFS(TabBDMenus[Quantité menu dessert],TabBDMenus[Nom menu dessert],$A25,TabBDMenus[Nom mois menu],$D$3)","v":0},{"$f":"SUMIFS(TabBDMenus[Quantité menu dessert],TabBDMenus[Nom menu dessert],$A25,TabBDMenus[Nom mois menu],$E$3)","v":0},{"$f":"SUMIFS(TabBDMenus[Quantité menu dessert],TabBDMenus[Nom menu dessert],$A25,TabBDMenus[Nom mois menu],$F$3)","v":0},{"$f":"SUMIFS(TabBDMenus[Quantité menu dessert],TabBDMenus[Nom menu dessert],$A25,TabBDMenus[Nom mois menu],$G$3)","v":0},{"$f":"SUMIFS(TabBDMenus[Quantité menu dessert],TabBDMenus[Nom menu dessert],$A25,TabBDMenus[Nom mois menu],$H$3)","v":0},{"$f":"SUMIFS(TabBDMenus[Quantité menu dessert],TabBDMenus[Nom menu dessert],$A25,TabBDMenus[Nom mois menu],$I$3)","v":0},{"$f":"SUMIFS(TabBDMenus[Quantité menu dessert],TabBDMenus[Nom menu dessert],$A25,TabBDMenus[Nom mois menu],$J$3)","v":0},{"$f":"SUMIFS(TabBDMenus[Quantité menu dessert],TabBDMenus[Nom menu dessert],$A25,TabBDMenus[Nom mois menu],$K$3)","v":0},{"$f":"SUMIFS(TabBDMenus[Quantité menu dessert],TabBDMenus[Nom menu dessert],$A25,TabBDMenus[Nom mois menu],$L$3)","v":0},{"$f":"SUMIFS(TabBDMenus[Quantité menu dessert],TabBDMenus[Nom menu dessert],$A25,TabBDMenus[Nom mois menu],$M$3)","v":0},0]
[{"$f":"\"Imprimé à Limeil-Brévannes, le \"&TEXT(TODAY(),\"jjjj j mmmm aaaa\")&\".\"","v":"Imprimé à Limeil-Brévannes, le lundi 28 août 2023."}]
["Pour la création des formules, ne pas passer par ni Formules, ni Insérer une fonction. tapez le signe égal, tapez SOMME.SI.ENS, tapez une parenthèse ouvrante, tapez Tab (la liste des Tab disponibles apparaît, cliquez sur"]
["TabBDMenus), tapez un crochet ouvrant, la liste des noms définis disponibles s'affiche à l'écran (ici choisir QMD) tapez un point virgule tapez Tab (la liste des Tab disponibles apparaît, cliquez sur TabBDMenus), tapez un "]
["crochet ouvrant, le liste des noms définis disponibles s'affiche à l'écran (ici cliquez sur NMD) tapez un point virgule À partir de la feuille Quantités dessert, cliquez sur la cellule A4 tapez un point virgule tapez Tab (la liste"]
["des Tab disponibles apparaît, cliquez sur TabBDMenus tapez un crochet ouvrant, la liste des noms définis disponibles s'affiche à l'écran (ici cliquez sur Mois) tapez un point virgule À partir de la feuille Quantités desserts,"]
["cliquez sur la cellule B3 tapez une parenthèse fermante. Rendre A4 en référence relative sur la colonne. Rendre B3 en référence absolue."]

{"sheet":"Quantités légumes","index":8,"n_rows":45,"n_cols":14,"rows_kept":45,"cut":false,"hidden":false,"merged":[[0,0,0,13],[39,0,39,13]]}
[{"$f":"\"Quantités légumes de l'année \"&Accueil!$F$1&\" par mois et nom des légumes.\"","v":"Quantités légumes de l'année 2023 par mois et nom des légumes."}]
[]
["Nom des légumes","Janvier","Février","Mars","Avril","Mai","Juin","Juillet","Août","Septembre","Octobre","Novembre","Décembre",{"$f":"\"Total des légumes de l'année \"&Accueil!$F$1","v":"Total des légumes de l'année 2023"}]
["Asperges",{"$f":"SUMIFS(TabBDMenus[Quantité menu légumes],TabBDMenus[Nom menu légumes],$A4,TabBDMenus[Nom mois menu],$B$3)+SUMIFS(TabBDMenus[Quantité menu légume deux],TabBDMenus[Nom menu légume deux],$A4,TabBDMenus[Nom mois menu],$B$3)","v":0},{"$f":"SUMIFS(TabBDMenus[Quantité menu légumes],TabBDMenus[Nom menu légumes],$A4,TabBDMenus[Nom mois menu],$C$3)+SUMIFS(TabBDMenus[Quantité menu légume deux],TabBDMenus[Nom menu légume deux],$A4,TabBDMenus[Nom mois menu],$C$3)","v":0},{"$f":"SUMIFS(TabBDMenus[Quantité menu légumes],TabBDMenus[Nom menu légumes],$A4,TabBDMenus[Nom mois menu],$D$3)+SUMIFS(TabBDMenus[Quantité menu légume deux],TabBDMenus[Nom menu légume deux],$A4,TabBDMenus[Nom mois menu],$D$3)","v":0},{"$f":"SUMIFS(TabBDMenus[Quantité menu légumes],TabBDMenus[Nom menu légumes],$A4,TabBDMenus[Nom mois menu],$E$3)+SUMIFS(TabBDMenus[Quantité menu légume deux],TabBDMenus[Nom menu légume deux],$A4,TabBDMenus[Nom mois menu],$E$3)","v":0},{"$f":"SUMIFS(TabBDMenus[Quantité menu légumes],TabBDMenus[Nom menu légumes],$A4,TabBDMenus[Nom mois menu],$F$3)+SUMIFS(TabBDMenus[Quantité menu légume deux],TabBDMenus[Nom menu légume deux],$A4,TabBDMenus[Nom mois menu],$F$3)","v":0},{"$f":"SUMIFS(TabBDMenus[Quantité menu légumes],TabBDMenus[Nom menu légumes],$A4,TabBDMenus[Nom mois menu],$G$3)+SUMIFS(TabBDMenus[Quantité menu légume deux],TabBDMenus[Nom menu légume deux],$A4,TabBDMenus[Nom mois menu],$G$3)","v":0},{"$f":"SUMIFS(TabBDMenus[Quantité menu légumes],TabBDMenus[Nom menu légumes],$A4,TabBDMenus[Nom mois menu],$H$3)+SUMIFS(TabBDMenus[Quantité menu légume deux],TabBDMenus[Nom menu légume deux],$A4,TabBDMenus[Nom mois menu],$H$3)","v":0},{"$f":"SUMIFS(TabBDMenus[Quantité menu légumes],TabBDMenus[Nom menu légumes],$A4,TabBDMenus[Nom mois menu],$I$3)+SUMIFS(TabBDMenus[Quantité menu légume deux],TabBDMenus[Nom menu légume deux],$A4,TabBDMenus[Nom mois menu],$I$3)","v":0},{"$f":"SUMIFS(TabBDMenus[Quantité menu légumes],TabBDMenus[Nom menu légumes],$A4,TabBDMenus[Nom mois menu],$J$3)+SUMIFS(TabBDMenus[Quantité menu légume deux],TabBDMenus[Nom menu légume deux],$A4,TabBDMenus[Nom mois menu],$J$3)","v":0},{"$f":"SUMIFS(TabBDMenus[Quantité menu légumes],TabBDMenus[Nom menu légumes],$A4,TabBDMenus[Nom mois menu],$K$3)+SUMIFS(TabBDMenus[Quantité menu légume deux],TabBDMenus[Nom menu légume deux],$A4,TabBDMenus[Nom mois menu],$K$3)","v":0},{"$f":"SUMIFS(TabBDMenus[Quantité menu légumes],TabBDMenus[Nom menu légumes],$A4,TabBDMenus[Nom mois menu],$L$3)+SUMIFS(TabBDMenus[Quantité menu légume deux],TabBDMenus[Nom menu légume deux],$A4,TabBDMenus[Nom mois menu],$L$3)","v":0},{"$f":"SUMIFS(TabBDMenus[Quantité menu légumes],TabBDMenus[Nom menu légumes],$A4,TabBDMenus[Nom mois menu],$M$3)+SUMIFS(TabBDMenus[Quantité menu légume deux],TabBDMenus[Nom menu légume deux],$A4,TabBDMenus[Nom mois menu],$M$3)","v":0},{"$f":"SUM($B4:$M4)","v":0}]
["Avocat",{"$f":"SUMIFS(TabBDMenus[Quantité menu légumes],TabBDMenus[Nom menu légumes],$A5,TabBDMenus[Nom mois menu],$B$3)+SUMIFS(TabBDMenus[Quantité menu légume deux],TabBDMenus[Nom menu légume deux],$A5,TabBDMenus[Nom mois menu],$B$3)","v":0},{"$f":"SUMIFS(TabBDMenus[Quantité menu légumes],TabBDMenus[Nom menu légumes],$A5,TabBDMenus[Nom mois menu],$C$3)+SUMIFS(TabBDMenus[Quantité menu légume deux],TabBDMenus[Nom menu légume deux],$A5,TabBDMenus[Nom mois menu],$C$3)","v":0},{"$f":"SUMIFS(TabBDMenus[Quantité menu légumes],TabBDMenus[Nom menu légumes],$A5,TabBDMenus[Nom mois menu],$D$3)+SUMIFS(TabBDMenus[Quantité menu légume deux],TabBDMenus[Nom menu légume deux],$A5,TabBDMenus[Nom mois menu],$D$3)","v":0},{"$f":"SUMIFS(TabBDMenus[Quantité menu légumes],TabBDMenus[Nom menu légumes],$A5,TabBDMenus[Nom mois menu],$E$3)+SUMIFS(TabBDMenus[Quantité menu légume deux],TabBDMenus[Nom menu légume deux],$A5,TabBDMenus[Nom mois menu],$E$3)","v":0},{"$f":"SUMIFS(TabBDMenus[Quantité menu légumes],TabBDMenus[Nom menu légumes],$A5,TabBDMenus[Nom mois menu],$F$3)+SUMIFS(TabBDMenus[Quantité menu légume deux],TabBDMenus[Nom menu légume deux],$A5,TabBDMenus[Nom mois menu],$F$3)","v":0},{"$f":"SUMIFS(TabBDMenus[Quantité menu légumes],TabBDMenus[Nom menu légumes],$A5,TabBDMenus[Nom mois menu],$G$3)+SUMIFS(TabBDMenus[Quantité menu légume deux],TabBDMenus[Nom menu légume deux],$A5,TabBDMenus[Nom mois menu],$G$3)","v":0},{"$f":"SUMIFS(TabBDMenus[Quantité menu légumes],TabBDMenus[Nom menu légumes],$A5,TabBDMenus[Nom mois menu],$H$3)+SUMIFS(TabBDMenus[Quantité menu légume deux],TabBDMenus[Nom menu légume deux],$A5,TabBDMenus[Nom mois menu],$H$3)","v":0},{"$f":"SUMIFS(TabBDMenus[Quantité menu légumes],TabBDMenus[Nom menu légumes],$A5,TabBDMenus[Nom mois menu],$I$3)+SUMIFS(TabBDMenus[Quantité menu légume deux],TabBDMenus[Nom menu légume deux],$A5,TabBDMenus[Nom mois menu],$I$3)","v":0},{"$f":"SUMIFS(TabBDMenus[Quantité menu légumes],TabBDMenus[Nom menu légumes],$A5,TabBDMenus[Nom mois menu],$J$3)+SUMIFS(TabBDMenus[Quantité menu légume deux],TabBDMenus[Nom menu légume deux],$A5,TabBDMenus[Nom mois menu],$J$3)","v":0},{"$f":"SUMIFS(TabBDMenus[Quantité menu légumes],TabBDMenus[Nom menu légumes],$A5,TabBDMenus[Nom mois menu],$K$3)+SUMIFS(TabBDMenus[Quantité menu légume deux],TabBDMenus[Nom menu légume deux],$A5,TabBDMenus[Nom mois menu],$K$3)","v":0},{"$f":"SUMIFS(TabBDMenus[Quantité menu légumes],TabBDMenus[Nom menu légumes],$A5,TabBDMenus[Nom mois menu],$L$3)+SUMIFS(TabBDMenus[Quantité menu légume deux],TabBDMenus[Nom menu légume deux],$A5,TabBDMenus[Nom mois menu],$L$3)","v":0},{"$f":"SUMIFS(TabBDMenus[Quantité menu légumes],TabBDMenus[Nom menu légumes],$A5,TabBDMenus[Nom mois menu],$M$3)+SUMIFS(TabBDMenus[Quantité menu légume deux],TabBDMenus[Nom menu légume deux],$A5,TabBDMenus[Nom mois menu],$M$3)","v":0},{"$f":"SUM($B5:$M5)","v":0}]
["Betterave rouge",{"$f":"SUMIFS(TabBDMenus[Quantité menu légumes],TabBDMenus[Nom menu légumes],$A6,TabBDMenus[Nom mois menu],$B$3)+SUMIFS(TabBDMenus[Quantité menu légume deux],TabBDMenus[Nom menu légume deux],$A6,TabBDMenus[Nom mois menu],$B$3)","v":0},{"$f":"SUMIFS(TabBDMenus[Quantité menu légumes],TabBDMenus[Nom menu légumes],$A6,TabBDMenus[Nom mois menu],$C$3)+SUMIFS(TabBDMenus[Quantité menu légume deux],TabBDMenus[Nom menu légume deux],$A6,TabBDMenus[Nom mois menu],$C$3)","v":0},{"$f":"SUMIFS(TabBDMenus[Quantité menu légumes],TabBDMenus[Nom menu légumes],$A6,TabBDMenus[Nom mois menu],$D$3)+SUMIFS(TabBDMenus[Quantité menu légume deux],TabBDMenus[Nom menu légume deux],$A6,TabBDMenus[Nom mois menu],$D$3)","v":0},{"$f":"SUMIFS(TabBDMenus[Quantité menu légumes],TabBDMenus[Nom menu légumes],$A6,TabBDMenus[Nom mois menu],$E$3)+SUMIFS(TabBDMenus[Quantité menu légume deux],TabBDMenus[Nom menu légume deux],$A6,TabBDMenus[Nom mois menu],$E$3)","v":0},{"$f":"SUMIFS(TabBDMenus[Quantité menu légumes],TabBDMenus[Nom menu légumes],$A6,TabBDMenus[Nom mois menu],$F$3)+SUMIFS(TabBDMenus[Quantité menu légume deux],TabBDMenus[Nom menu légume deux],$A6,TabBDMenus[Nom mois menu],$F$3)","v":0},{"$f":"SUMIFS(TabBDMenus[Quantité menu légumes],TabBDMenus[Nom menu légumes],$A6,TabBDMenus[Nom mois menu],$G$3)+SUMIFS(TabBDMenus[Quantité menu légume deux],TabBDMenus[Nom menu légume deux],$A6,TabBDMenus[Nom mois menu],$G$3)","v":0},{"$f":"SUMIFS(TabBDMenus[Quantité menu légumes],TabBDMenus[Nom menu légumes],$A6,TabBDMenus[Nom mois menu],$H$3)+SUMIFS(TabBDMenus[Quantité menu légume deux],TabBDMenus[Nom menu légume deux],$A6,TabBDMenus[Nom mois menu],$H$3)","v":0},{"$f":"SUMIFS(TabBDMenus[Quantité menu légumes],TabBDMenus[Nom menu légumes],$A6,TabBDMenus[Nom mois menu],$I$3)+SUMIFS(TabBDMenus[Quantité menu légume deux],TabBDMenus[Nom menu légume deux],$A6,TabBDMenus[Nom mois menu],$I$3)","v":0},{"$f":"SUMIFS(TabBDMenus[Quantité menu légumes],TabBDMenus[Nom menu légumes],$A6,TabBDMenus[Nom mois menu],$J$3)+SUMIFS(TabBDMenus[Quantité menu légume deux],TabBDMenus[Nom menu légume deux],$A6,TabBDMenus[Nom mois menu],$J$3)","v":0},{"$f":"SUMIFS(TabBDMenus[Quantité menu légumes],TabBDMenus[Nom menu légumes],$A6,TabBDMenus[Nom mois menu],$K$3)+SUMIFS(TabBDMenus[Quantité menu légume deux],TabBDMenus[Nom menu légume deux],$A6,TabBDMenus[Nom mois menu],$K$3)","v":0},{"$f":"SUMIFS(TabBDMenus[Quantité menu légumes],TabBDMenus[Nom menu légumes],$A6,TabBDMenus[Nom mois menu],$L$3)+SUMIFS(TabBDMenus[Quantité menu légume deux],TabBDMenus[Nom menu légume deux],$A6,TabBDMenus[Nom mois menu],$L$3)","v":0},{"$f":"SUMIFS(TabBDMenus[Quantité menu légumes],TabBDMenus[Nom menu légumes],$A6,TabBDMenus[Nom mois menu],$M$3)+SUMIFS(TabBDMenus[Quantité menu légume deux],TabBDMenus[Nom menu légume deux],$A6,TabBDMenus[Nom mois menu],$M$3)","v":0},0]
["Carottes",{"$f":"SUMIFS(TabBDMenus[Quantité menu légumes],TabBDMenus[Nom menu légumes],$A7,TabBDMenus[Nom mois menu],$B$3)+SUMIFS(TabBDMenus[Quantité menu légume deux],TabBDMenus[Nom menu légume deux],$A7,TabBDMenus[Nom mois menu],$B$3)","v":0},{"$f":"SUMIFS(TabBDMenus[Quantité menu légumes],TabBDMenus[Nom menu légumes],$A7,TabBDMenus[Nom mois menu],$C$3)+SUMIFS(TabBDMenus[Quantité menu légume deux],TabBDMenus[Nom menu légume deux],$A7,TabBDMenus[Nom mois menu],$C$3)","v":0},{"$f":"SUMIFS(TabBDMenus[Quantité menu légumes],TabBDMenus[Nom menu légumes],$A7,TabBDMenus[Nom mois menu],$D$3)+SUMIFS(TabBDMenus[Quantité menu légume deux],TabBDMenus[Nom menu légume deux],$A7,TabBDMenus[Nom mois menu],$D$3)","v":0},{"$f":"SUMIFS(TabBDMenus[Quantité menu légumes],TabBDMenus[Nom menu légumes],$A7,TabBDMenus[Nom mois menu],$E$3)+SUMIFS(TabBDMenus[Quantité menu légume deux],TabBDMenus[Nom menu légume deux],$A7,TabBDMenus[Nom mois menu],$E$3)","v":0},{"$f":"SUMIFS(TabBDMenus[Quantité menu légumes],TabBDMenus[Nom menu légumes],$A7,TabBDMenus[Nom mois menu],$F$3)+SUMIFS(TabBDMenus[Quantité menu légume deux],TabBDMenus[Nom menu légume deux],$A7,TabBDMenus[Nom mois menu],$F$3)","v":0},{"$f":"SUMIFS(TabBDMenus[Quantité menu légumes],TabBDMenus[Nom menu légumes],$A7,TabBDMenus[Nom mois menu],$G$3)+SUMIFS(TabBDMenus[Quantité menu légume deux],TabBDMenus[Nom menu légume deux],$A7,TabBDMenus[Nom mois menu],$G$3)","v":0},{"$f":"SUMIFS(TabBDMenus[Quantité menu légumes],TabBDMenus[Nom menu légumes],$A7,TabBDMenus[Nom mois menu],$H$3)+SUMIFS(TabBDMenus[Quantité menu légume deux],TabBDMenus[Nom menu légume deux],$A7,TabBDMenus[Nom mois menu],$H$3)","v":0},{"$f":"SUMIFS(TabBDMenus[Quantité menu légumes],TabBDMenus[Nom menu légumes],$A7,TabBDMenus[Nom mois menu],$I$3)+SUMIFS(TabBDMenus[Quantité menu légume deux],TabBDMenus[Nom menu légume deux],$A7,TabBDMenus[Nom mois menu],$I$3)","v":0},{"$f":"SUMIFS(TabBDMenus[Quantité menu légumes],TabBDMenus[Nom menu légumes],$A7,TabBDMenus[Nom mois menu],$J$3)+SUMIFS(TabBDMenus[Quantité menu légume deux],TabBDMenus[Nom menu légume deux],$A7,TabBDMenus[Nom mois menu],$J$3)","v":0},{"$f":"SUMIFS(TabBDMenus[Quantité menu légumes],TabBDMenus[Nom menu légumes],$A7,TabBDMenus[Nom mois menu],$K$3)+SUMIFS(TabBDMenus[Quantité menu légume deux],TabBDMenus[Nom menu légume deux],$A7,TabBDMenus[Nom mois menu],$K$3)","v":0},{"$f":"SUMIFS(TabBDMenus[Quantité menu légumes],TabBDMenus[Nom menu légumes],$A7,TabBDMenus[Nom mois menu],$L$3)+SUMIFS(TabBDMenus[Quantité menu légume deux],TabBDMenus[Nom menu légume deux],$A7,TabBDMenus[Nom mois menu],$L$3)","v":0},{"$f":"SUMIFS(TabBDMenus[Quantité menu légumes],TabBDMenus[Nom menu légumes],$A7,TabBDMenus[Nom mois menu],$M$3)+SUMIFS(TabBDMenus[Quantité menu légume deux],TabBDMenus[Nom menu légume deux],$A7,TabBDMenus[Nom mois menu],$M$3)","v":0},0]
["Cassoulet",{"$f":"SUMIFS(TabBDMenus[Quantité menu légumes],TabBDMenus[Nom menu légumes],$A8,TabBDMenus[Nom mois menu],$B$3)+SUMIFS(TabBDMenus[Quantité menu légume deux],TabBDMenus[Nom menu légume deux],$A8,TabBDMenus[Nom mois menu],$B$3)","v":0},{"$f":"SUMIFS(TabBDMenus[Quantité menu légumes],TabBDMenus[Nom menu légumes],$A8,TabBDMenus[Nom mois menu],$C$3)+SUMIFS(TabBDMenus[Quantité menu légume deux],TabBDMenus[Nom menu légume deux],$A8,TabBDMenus[Nom mois menu],$C$3)","v":0},{"$f":"SUMIFS(TabBDMenus[Quantité menu légumes],TabBDMenus[Nom menu légumes],$A8,TabBDMenus[Nom mois menu],$D$3)+SUMIFS(TabBDMenus[Quantité menu légume deux],TabBDMenus[Nom menu légume deux],$A8,TabBDMenus[Nom mois menu],$D$3)","v":0},{"$f":"SUMIFS(TabBDMenus[Quantité menu légumes],TabBDMenus[Nom menu légumes],$A8,TabBDMenus[Nom mois menu],$E$3)+SUMIFS(TabBDMenus[Quantité menu légume deux],TabBDMenus[Nom menu légume deux],$A8,TabBDMenus[Nom mois menu],$E$3)","v":0},{"$f":"SUMIFS(TabBDMenus[Quantité menu légumes],TabBDMenus[Nom menu légumes],$A8,TabBDMenus[Nom mois menu],$F$3)+SUMIFS(TabBDMenus[Quantité menu légume deux],TabBDMenus[Nom menu légume deux],$A8,TabBDMenus[Nom mois menu],$F$3)","v":0},{"$f":"SUMIFS(TabBDMenus[Quantité menu légumes],TabBDMenus[Nom menu légumes],$A8,TabBDMenus[Nom mois menu],$G$3)+SUMIFS(TabBDMenus[Quantité menu légume deux],TabBDMenus[Nom menu légume deux],$A8,TabBDMenus[Nom mois menu],$G$3)","v":0},{"$f":"SUMIFS(TabBDMenus[Quantité menu légumes],TabBDMenus[Nom menu légumes],$A8,TabBDMenus[Nom mois menu],$H$3)+SUMIFS(TabBDMenus[Quantité menu légume deux],TabBDMenus[Nom menu légume deux],$A8,TabBDMenus[Nom mois menu],$H$3)","v":0},{"$f":"SUMIFS(TabBDMenus[Quantité menu légumes],TabBDMenus[Nom menu légumes],$A8,TabBDMenus[Nom mois menu],$I$3)+SUMIFS(TabBDMenus[Quantité menu légume deux],TabBDMenus[Nom menu légume deux],$A8,TabBDMenus[Nom mois menu],$I$3)","v":0},{"$f":"SUMIFS(TabBDMenus[Quantité menu légumes],TabBDMenus[Nom menu légumes],$A8,TabBDMenus[Nom mois menu],$J$3)+SUMIFS(TabBDMenus[Quantité menu légume deux],TabBDMenus[Nom menu légume deux],$A8,TabBDMenus[Nom mois menu],$J$3)","v":0},{"$f":"SUMIFS(TabBDMenus[Quantité menu légumes],TabBDMenus[Nom menu légumes],$A8,TabBDMenus[Nom mois menu],$K$3)+SUMIFS(TabBDMenus[Quantité menu légume deux],TabBDMenus[Nom menu légume deux],$A8,TabBDMenus[Nom mois menu],$K$3)","v":0},{"$f":"SUMIFS(TabBDMenus[Quantité menu légumes],TabBDMenus[Nom menu légumes],$A8,TabBDMenus[Nom mois menu],$L$3)+SUMIFS(TabBDMenus[Quantité menu légume deux],TabBDMenus[Nom menu légume deux],$A8,TabBDMenus[Nom mois menu],$L$3)","v":0},{"$f":"SUMIFS(TabBDMenus[Quantité menu légumes],TabBDMenus[Nom menu légumes],$A8,TabBDMenus[Nom mois menu],$M$3)+SUMIFS(TabBDMenus[Quantité menu légume deux],TabBDMenus[Nom menu légume deux],$A8,TabBDMenus[Nom mois menu],$M$3)","v":0},0]
["Céleri",{"$f":"SUMIFS(TabBDMenus[Quantité menu légumes],TabBDMenus[Nom menu légumes],$A9,TabBDMenus[Nom mois menu],$B$3)+SUMIFS(TabBDMenus[Quantité menu légume deux],TabBDMenus[Nom menu légume deux],$A9,TabBDMenus[Nom mois menu],$B$3)","v":0},{"$f":"SUMIFS(TabBDMenus[Quantité menu légumes],TabBDMenus[Nom menu légumes],$A9,TabBDMenus[Nom mois menu],$C$3)+SUMIFS(TabBDMenus[Quantité menu légume deux],TabBDMenus[Nom menu légume deux],$A9,TabBDMenus[Nom mois menu],$C$3)","v":0},{"$f":"SUMIFS(TabBDMenus[Quantité menu légumes],TabBDMenus[Nom menu légumes],$A9,TabBDMenus[Nom mois menu],$D$3)+SUMIFS(TabBDMenus[Quantité menu légume deux],TabBDMenus[Nom menu légume deux],$A9,TabBDMenus[Nom mois menu],$D$3)","v":0},{"$f":"SUMIFS(TabBDMenus[Quantité menu légumes],TabBDMenus[Nom menu légumes],$A9,TabBDMenus[Nom mois menu],$E$3)+SUMIFS(TabBDMenus[Quantité menu légume deux],TabBDMenus[Nom menu légume deux],$A9,TabBDMenus[Nom mois menu],$E$3)","v":0},{"$f":"SUMIFS(TabBDMenus[Quantité menu légumes],TabBDMenus[Nom menu légumes],$A9,TabBDMenus[Nom mois menu],$F$3)+SUMIFS(TabBDMenus[Quantité menu légume deux],TabBDMenus[Nom menu légume deux],$A9,TabBDMenus[Nom mois menu],$F$3)","v":0},{"$f":"SUMIFS(TabBDMenus[Quantité menu légumes],TabBDMenus[Nom menu légumes],$A9,TabBDMenus[Nom mois menu],$G$3)+SUMIFS(TabBDMenus[Quantité menu légume deux],TabBDMenus[Nom menu légume deux],$A9,TabBDMenus[Nom mois menu],$G$3)","v":0},{"$f":"SUMIFS(TabBDMenus[Quantité menu légumes],TabBDMenus[Nom menu légumes],$A9,TabBDMenus[Nom mois menu],$H$3)+SUMIFS(TabBDMenus[Quantité menu légume deux],TabBDMenus[Nom menu légume deux],$A9,TabBDMenus[Nom mois menu],$H$3)","v":0},{"$f":"SUMIFS(TabBDMenus[Quantité menu légumes],TabBDMenus[Nom menu légumes],$A9,TabBDMenus[Nom mois menu],$I$3)+SUMIFS(TabBDMenus[Quantité menu légume deux],TabBDMenus[Nom menu légume deux],$A9,TabBDMenus[Nom mois menu],$I$3)","v":0},{"$f":"SUMIFS(TabBDMenus[Quantité menu légumes],TabBDMenus[Nom menu légumes],$A9,TabBDMenus[Nom mois menu],$J$3)+SUMIFS(TabBDMenus[Quantité menu légume deux],TabBDMenus[Nom menu légume deux],$A9,TabBDMenus[Nom mois menu],$J$3)","v":0},{"$f":"SUMIFS(TabBDMenus[Quantité menu légumes],TabBDMenus[Nom menu légumes],$A9,TabBDMenus[Nom mois menu],$K$3)+SUMIFS(TabBDMenus[Quantité menu légume deux],TabBDMenus[Nom menu légume deux],$A9,TabBDMenus[Nom mois menu],$K$3)","v":0},{"$f":"SUMIFS(TabBDMenus[Quantité menu légumes],TabBDMenus[Nom menu légumes],$A9,TabBDMenus[Nom mois menu],$L$3)+SUMIFS(TabBDMenus[Quantité menu légume deux],TabBDMenus[Nom menu légume deux],$A9,TabBDMenus[Nom mois menu],$L$3)","v":0},{"$f":"SUMIFS(TabBDMenus[Quantité menu légumes],TabBDMenus[Nom menu légumes],$A9,TabBDMenus[Nom mois menu],$M$3)+SUMIFS(TabBDMenus[Quantité menu légume deux],TabBDMenus[Nom menu légume deux],$A9,TabBDMenus[Nom mois menu],$M$3)","v":0},0]
["Champignons",{"$f":"SUMIFS(TabBDMenus[Quantité menu légumes],TabBDMenus[Nom menu légumes],$A10,TabBDMenus[Nom mois menu],$B$3)+SUMIFS(TabBDMenus[Quantité menu légume deux],TabBDMenus[Nom menu légume deux],$A10,TabBDMenus[Nom mois menu],$B$3)","v":0},{"$f":"SUMIFS(TabBDMenus[Quantité menu légumes],TabBDMenus[Nom menu légumes],$A10,TabBDMenus[Nom mois menu],$C$3)+SUMIFS(TabBDMenus[Quantité menu légume deux],TabBDMenus[Nom menu légume deux],$A10,TabBDMenus[Nom mois menu],$C$3)","v":0},{"$f":"SUMIFS(TabBDMenus[Quantité menu légumes],TabBDMenus[Nom menu légumes],$A10,TabBDMenus[Nom mois menu],$D$3)+SUMIFS(TabBDMenus[Quantité menu légume deux],TabBDMenus[Nom menu légume deux],$A10,TabBDMenus[Nom mois menu],$D$3)","v":0},{"$f":"SUMIFS(TabBDMenus[Quantité menu légumes],TabBDMenus[Nom menu légumes],$A10,TabBDMenus[Nom mois menu],$E$3)+SUMIFS(TabBDMenus[Quantité menu légume deux],TabBDMenus[Nom menu légume deux],$A10,TabBDMenus[Nom mois menu],$E$3)","v":0},{"$f":"SUMIFS(TabBDMenus[Quantité menu légumes],TabBDMenus[Nom menu légumes],$A10,TabBDMenus[Nom mois menu],$F$3)+SUMIFS(TabBDMenus[Quantité menu légume deux],TabBDMenus[Nom menu légume deux],$A10,TabBDMenus[Nom mois menu],$F$3)","v":0},{"$f":"SUMIFS(TabBDMenus[Quantité menu légumes],TabBDMenus[Nom menu légumes],$A10,TabBDMenus[Nom mois menu],$G$3)+SUMIFS(TabBDMenus[Quantité menu légume deux],TabBDMenus[Nom menu légume deux],$A10,TabBDMenus[Nom mois menu],$G$3)","v":0},{"$f":"SUMIFS(TabBDMenus[Quantité menu légumes],TabBDMenus[Nom menu légumes],$A10,TabBDMenus[Nom mois menu],$H$3)+SUMIFS(TabBDMenus[Quantité menu légume deux],TabBDMenus[Nom menu légume deux],$A10,TabBDMenus[Nom mois menu],$H$3)","v":0},{"$f":"SUMIFS(TabBDMenus[Quantité menu légumes],TabBDMenus[Nom menu légumes],$A10,TabBDMenus[Nom mois menu],$I$3)+SUMIFS(TabBDMenus[Quantité menu légume deux],TabBDMenus[Nom menu légume deux],$A10,TabBDMenus[Nom mois menu],$I$3)","v":0},{"$f":"SUMIFS(TabBDMenus[Quantité menu légumes],TabBDMenus[Nom menu légumes],$A10,TabBDMenus[Nom mois menu],$J$3)+SUMIFS(TabBDMenus[Quantité menu légume deux],TabBDMenus[Nom menu légume deux],$A10,TabBDMenus[Nom mois menu],$J$3)","v":0},{"$f":"SUMIFS(TabBDMenus[Quantité menu légumes],TabBDMenus[Nom menu légumes],$A10,TabBDMenus[Nom mois menu],$K$3)+SUMIFS(TabBDMenus[Quantité menu légume deux],TabBDMenus[Nom menu légume deux],$A10,TabBDMenus[Nom mois menu],$K$3)","v":0},{"$f":"SUMIFS(TabBDMenus[Quantité menu légumes],TabBDMenus[Nom menu légumes],$A10,TabBDMenus[Nom mois menu],$L$3)+SUMIFS(TabBDMenus[Quantité menu légume deux],TabBDMenus[Nom menu légume deux],$A10,TabBDMenus[Nom mois menu],$L$3)","v":0},{"$f":"SUMIFS(TabBDMenus[Quantité menu légumes],TabBDMenus[Nom menu légumes],$A10,TabBDMenus[Nom mois menu],$M$3)+SUMIFS(TabBDMenus[Quantité menu légume deux],TabBDMenus[Nom menu légume deux],$A10,TabBDMenus[Nom mois menu],$M$3)","v":0},0]
["Chips",{"$f":"SUMIFS(TabBDMenus[Quantité menu légumes],TabBDMenus[Nom menu légumes],$A11,TabBDMenus[Nom mois menu],$B$3)+SUMIFS(TabBDMenus[Quantité menu légume deux],TabBDMenus[Nom menu légume deux],$A11,TabBDMenus[Nom mois menu],$B$3)","v":0},{"$f":"SUMIFS(TabBDMenus[Quantité menu légumes],TabBDMenus[Nom menu légumes],$A11,TabBDMenus[Nom mois menu],$C$3)+SUMIFS(TabBDMenus[Quantité menu légume deux],TabBDMenus[Nom menu légume deux],$A11,TabBDMenus[Nom mois menu],$C$3)","v":0},{"$f":"SUMIFS(TabBDMenus[Quantité menu légumes],TabBDMenus[Nom menu légumes],$A11,TabBDMenus[Nom mois menu],$D$3)+SUMIFS(TabBDMenus[Quantité menu légume deux],TabBDMenus[Nom menu légume deux],$A11,TabBDMenus[Nom mois menu],$D$3)","v":0},{"$f":"SUMIFS(TabBDMenus[Quantité menu légumes],TabBDMenus[Nom menu légumes],$A11,TabBDMenus[Nom mois menu],$E$3)+SUMIFS(TabBDMenus[Quantité menu légume deux],TabBDMenus[Nom menu légume deux],$A11,TabBDMenus[Nom mois menu],$E$3)","v":0},{"$f":"SUMIFS(TabBDMenus[Quantité menu légumes],TabBDMenus[Nom menu légumes],$A11,TabBDMenus[Nom mois menu],$F$3)+SUMIFS(TabBDMenus[Quantité menu légume deux],TabBDMenus[Nom menu légume deux],$A11,TabBDMenus[Nom mois menu],$F$3)","v":0},{"$f":"SUMIFS(TabBDMenus[Quantité menu légumes],TabBDMenus[Nom menu légumes],$A11,TabBDMenus[Nom mois menu],$G$3)+SUMIFS(TabBDMenus[Quantité menu légume deux],TabBDMenus[Nom menu légume deux],$A11,TabBDMenus[Nom mois menu],$G$3)","v":0},{"$f":"SUMIFS(TabBDMenus[Quantité menu légumes],TabBDMenus[Nom menu légumes],$A11,TabBDMenus[Nom mois menu],$H$3)+SUMIFS(TabBDMenus[Quantité menu légume deux],TabBDMenus[Nom menu légume deux],$A11,TabBDMenus[Nom mois menu],$H$3)","v":0},{"$f":"SUMIFS(TabBDMenus[Quantité menu légumes],TabBDMenus[Nom menu légumes],$A11,TabBDMenus[Nom mois menu],$I$3)+SUMIFS(TabBDMenus[Quantité menu légume deux],TabBDMenus[Nom menu légume deux],$A11,TabBDMenus[Nom mois menu],$I$3)","v":0},{"$f":"SUMIFS(TabBDMenus[Quantité menu légumes],TabBDMenus[Nom menu légumes],$A11,TabBDMenus[Nom mois menu],$J$3)+SUMIFS(TabBDMenus[Quantité menu légume deux],TabBDMenus[Nom menu légume deux],$A11,TabBDMenus[Nom mois menu],$J$3)","v":0},{"$f":"SUMIFS(TabBDMenus[Quantité menu légumes],TabBDMenus[Nom menu légumes],$A11,TabBDMenus[Nom mois menu],$K$3)+SUMIFS(TabBDMenus[Quantité menu légume deux],TabBDMenus[Nom menu légume deux],$A11,TabBDMenus[Nom mois menu],$K$3)","v":0},{"$f":"SUMIFS(TabBDMenus[Quantité menu légumes],TabBDMenus[Nom menu légumes],$A11,TabBDMenus[Nom mois menu],$L$3)+SUMIFS(TabBDMenus[Quantité menu légume deux],TabBDMenus[Nom menu légume deux],$A11,TabBDMenus[Nom mois menu],$L$3)","v":0},{"$f":"SUMIFS(TabBDMenus[Quantité menu légumes],TabBDMenus[Nom menu légumes],$A11,TabBDMenus[Nom mois menu],$M$3)+SUMIFS(TabBDMenus[Quantité menu légume deux],TabBDMenus[Nom menu légume deux],$A11,TabBDMenus[Nom mois menu],$M$3)","v":0},0]
["Choucroute",{"$f":"SUMIFS(TabBDMenus[Quantité menu légumes],TabBDMenus[Nom menu légumes],$A12,TabBDMenus[Nom mois menu],$B$3)+SUMIFS(TabBDMenus[Quantité menu légume deux],TabBDMenus[Nom menu légume deux],$A12,TabBDMenus[Nom mois menu],$B$3)","v":0},{"$f":"SUMIFS(TabBDMenus[Quantité menu légumes],TabBDMenus[Nom menu légumes],$A12,TabBDMenus[Nom mois menu],$C$3)+SUMIFS(TabBDMenus[Quantité menu légume deux],TabBDMenus[Nom menu légume deux],$A12,TabBDMenus[Nom mois menu],$C$3)","v":0},{"$f":"SUMIFS(TabBDMenus[Quantité menu légumes],TabBDMenus[Nom menu légumes],$A12,TabBDMenus[Nom mois menu],$D$3)+SUMIFS(TabBDMenus[Quantité menu légume deux],TabBDMenus[Nom menu légume deux],$A12,TabBDMenus[Nom mois menu],$D$3)","v":0},{"$f":"SUMIFS(TabBDMenus[Quantité menu légumes],TabBDMenus[Nom menu légumes],$A12,TabBDMenus[Nom mois menu],$E$3)+SUMIFS(TabBDMenus[Quantité menu légume deux],TabBDMenus[Nom menu légume deux],$A12,TabBDMenus[Nom mois menu],$E$3)","v":0},{"$f":"SUMIFS(TabBDMenus[Quantité menu légumes],TabBDMenus[Nom menu légumes],$A12,TabBDMenus[Nom mois menu],$F$3)+SUMIFS(TabBDMenus[Quantité menu légume deux],TabBDMenus[Nom menu légume deux],$A12,TabBDMenus[Nom mois menu],$F$3)","v":0},{"$f":"SUMIFS(TabBDMenus[Quantité menu légumes],TabBDMenus[Nom menu légumes],$A12,TabBDMenus[Nom mois menu],$G$3)+SUMIFS(TabBDMenus[Quantité menu légume deux],TabBDMenus[Nom menu légume deux],$A12,TabBDMenus[Nom mois menu],$G$3)","v":0},{"$f":"SUMIFS(TabBDMenus[Quantité menu légumes],TabBDMenus[Nom menu légumes],$A12,TabBDMenus[Nom mois menu],$H$3)+SUMIFS(TabBDMenus[Quantité menu légume deux],TabBDMenus[Nom menu légume deux],$A12,TabBDMenus[Nom mois menu],$H$3)","v":0},{"$f":"SUMIFS(TabBDMenus[Quantité menu légumes],TabBDMenus[Nom menu légumes],$A12,TabBDMenus[Nom mois menu],$I$3)+SUMIFS(TabBDMenus[Quantité menu légume deux],TabBDMenus[Nom menu légume deux],$A12,TabBDMenus[Nom mois menu],$I$3)","v":0},{"$f":"SUMIFS(TabBDMenus[Quantité menu légumes],TabBDMenus[Nom menu légumes],$A12,TabBDMenus[Nom mois menu],$J$3)+SUMIFS(TabBDMenus[Quantité menu légume deux],TabBDMenus[Nom menu légume deux],$A12,TabBDMenus[Nom mois menu],$J$3)","v":0},{"$f":"SUMIFS(TabBDMenus[Quantité menu légumes],TabBDMenus[Nom menu légumes],$A12,TabBDMenus[Nom mois menu],$K$3)+SUMIFS(TabBDMenus[Quantité menu légume deux],TabBDMenus[Nom menu légume deux],$A12,TabBDMenus[Nom mois menu],$K$3)","v":0},{"$f":"SUMIFS(TabBDMenus[Quantité menu légumes],TabBDMenus[Nom menu légumes],$A12,TabBDMenus[Nom mois menu],$L$3)+SUMIFS(TabBDMenus[Quantité menu légume deux],TabBDMenus[Nom menu légume deux],$A12,TabBDMenus[Nom mois menu],$L$3)","v":0},{"$f":"SUMIFS(TabBDMenus[Quantité menu légumes],TabBDMenus[Nom menu légumes],$A12,TabBDMenus[Nom mois menu],$M$3)+SUMIFS(TabBDMenus[Quantité menu légume deux],TabBDMenus[Nom menu légume deux],$A12,TabBDMenus[Nom mois menu],$M$3)","v":0},0]
["Chou-fleur",{"$f":"SUMIFS(TabBDMenus[Quantité menu légumes],TabBDMenus[Nom menu légumes],$A13,TabBDMenus[Nom mois menu],$B$3)+SUMIFS(TabBDMenus[Quantité menu légume deux],TabBDMenus[Nom menu légume deux],$A13,TabBDMenus[Nom mois menu],$B$3)","v":0},{"$f":"SUMIFS(TabBDMenus[Quantité menu légumes],TabBDMenus[Nom menu légumes],$A13,TabBDMenus[Nom mois menu],$C$3)+SUMIFS(TabBDMenus[Quantité menu légume deux],TabBDMenus[Nom menu légume deux],$A13,TabBDMenus[Nom mois menu],$C$3)","v":0},{"$f":"SUMIFS(TabBDMenus[Quantité menu légumes],TabBDMenus[Nom menu légumes],$A13,TabBDMenus[Nom mois menu],$D$3)+SUMIFS(TabBDMenus[Quantité menu légume deux],TabBDMenus[Nom menu légume deux],$A13,TabBDMenus[Nom mois menu],$D$3)","v":0},{"$f":"SUMIFS(TabBDMenus[Quantité menu légumes],TabBDMenus[Nom menu légumes],$A13,TabBDMenus[Nom mois menu],$E$3)+SUMIFS(TabBDMenus[Quantité menu légume deux],TabBDMenus[Nom menu légume deux],$A13,TabBDMenus[Nom mois menu],$E$3)","v":0},{"$f":"SUMIFS(TabBDMenus[Quantité menu légumes],TabBDMenus[Nom menu légumes],$A13,TabBDMenus[Nom mois menu],$F$3)+SUMIFS(TabBDMenus[Quantité menu légume deux],TabBDMenus[Nom menu légume deux],$A13,TabBDMenus[Nom mois menu],$F$3)","v":0},{"$f":"SUMIFS(TabBDMenus[Quantité menu légumes],TabBDMenus[Nom menu légumes],$A13,TabBDMenus[Nom mois menu],$G$3)+SUMIFS(TabBDMenus[Quantité menu légume deux],TabBDMenus[Nom menu légume deux],$A13,TabBDMenus[Nom mois menu],$G$3)","v":0},{"$f":"SUMIFS(TabBDMenus[Quantité menu légumes],TabBDMenus[Nom menu légumes],$A13,TabBDMenus[Nom mois menu],$H$3)+SUMIFS(TabBDMenus[Quantité menu légume deux],TabBDMenus[Nom menu légume deux],$A13,TabBDMenus[Nom mois menu],$H$3)","v":0},{"$f":"SUMIFS(TabBDMenus[Quantité menu légumes],TabBDMenus[Nom menu légumes],$A13,TabBDMenus[Nom mois menu],$I$3)+SUMIFS(TabBDMenus[Quantité menu légume deux],TabBDMenus[Nom menu légume deux],$A13,TabBDMenus[Nom mois menu],$I$3)","v":0},{"$f":"SUMIFS(TabBDMenus[Quantité menu légumes],TabBDMenus[Nom menu légumes],$A13,TabBDMenus[Nom mois menu],$J$3)+SUMIFS(TabBDMenus[Quantité menu légume deux],TabBDMenus[Nom menu légume deux],$A13,TabBDMenus[Nom mois menu],$J$3)","v":0},{"$f":"SUMIFS(TabBDMenus[Quantité menu légumes],TabBDMenus[Nom menu légumes],$A13,TabBDMenus[Nom mois menu],$K$3)+SUMIFS(TabBDMenus[Quantité menu légume deux],TabBDMenus[Nom menu légume deux],$A13,TabBDMenus[Nom mois menu],$K$3)","v":0},{"$f":"SUMIFS(TabBDMenus[Quantité menu légumes],TabBDMenus[Nom menu légumes],$A13,TabBDMenus[Nom mois menu],$L$3)+SUMIFS(TabBDMenus[Quantité menu légume deux],TabBDMenus[Nom menu légume deux],$A13,TabBDMenus[Nom mois menu],$L$3)","v":0},{"$f":"SUMIFS(TabBDMenus[Quantité menu légumes],TabBDMenus[Nom menu légumes],$A13,TabBDMenus[Nom mois menu],$M$3)+SUMIFS(TabBDMenus[Quantité menu légume deux],TabBDMenus[Nom menu légume deux],$A13,TabBDMenus[Nom mois menu],$M$3)","v":0},0]
["Choux de Bruxelles",{"$f":"SUMIFS(TabBDMenus[Quantité menu légumes],TabBDMenus[Nom menu légumes],$A14,TabBDMenus[Nom mois menu],$B$3)+SUMIFS(TabBDMenus[Quantité menu légume deux],TabBDMenus[Nom menu légume deux],$A14,TabBDMenus[Nom mois menu],$B$3)","v":0},{"$f":"SUMIFS(TabBDMenus[Quantité menu légumes],TabBDMenus[Nom menu légumes],$A14,TabBDMenus[Nom mois menu],$C$3)+SUMIFS(TabBDMenus[Quantité menu légume deux],TabBDMenus[Nom menu légume deux],$A14,TabBDMenus[Nom mois menu],$C$3)","v":0},{"$f":"SUMIFS(TabBDMenus[Quantité menu légumes],TabBDMenus[Nom menu légumes],$A14,TabBDMenus[Nom mois menu],$D$3)+SUMIFS(TabBDMenus[Quantité menu légume deux],TabBDMenus[Nom menu légume deux],$A14,TabBDMenus[Nom mois menu],$D$3)","v":0},{"$f":"SUMIFS(TabBDMenus[Quantité menu légumes],TabBDMenus[Nom menu légumes],$A14,TabBDMenus[Nom mois menu],$E$3)+SUMIFS(TabBDMenus[Quantité menu légume deux],TabBDMenus[Nom menu légume deux],$A14,TabBDMenus[Nom mois menu],$E$3)","v":0},{"$f":"SUMIFS(TabBDMenus[Quantité menu légumes],TabBDMenus[Nom menu légumes],$A14,TabBDMenus[Nom mois menu],$F$3)+SUMIFS(TabBDMenus[Quantité menu légume deux],TabBDMenus[Nom menu légume deux],$A14,TabBDMenus[Nom mois menu],$F$3)","v":0},{"$f":"SUMIFS(TabBDMenus[Quantité menu légumes],TabBDMenus[Nom menu légumes],$A14,TabBDMenus[Nom mois menu],$G$3)+SUMIFS(TabBDMenus[Quantité menu légume deux],TabBDMenus[Nom menu légume deux],$A14,TabBDMenus[Nom mois menu],$G$3)","v":0},{"$f":"SUMIFS(TabBDMenus[Quantité menu légumes],TabBDMenus[Nom menu légumes],$A14,TabBDMenus[Nom mois menu],$H$3)+SUMIFS(TabBDMenus[Quantité menu légume deux],TabBDMenus[Nom menu légume deux],$A14,TabBDMenus[Nom mois menu],$H$3)","v":0},{"$f":"SUMIFS(TabBDMenus[Quantité menu légumes],TabBDMenus[Nom menu légumes],$A14,TabBDMenus[Nom mois menu],$I$3)+SUMIFS(TabBDMenus[Quantité menu légume deux],TabBDMenus[Nom menu légume deux],$A14,TabBDMenus[Nom mois menu],$I$3)","v":0},{"$f":"SUMIFS(TabBDMenus[Quantité menu légumes],TabBDMenus[Nom menu légumes],$A14,TabBDMenus[Nom mois menu],$J$3)+SUMIFS(TabBDMenus[Quantité menu légume deux],TabBDMenus[Nom menu légume deux],$A14,TabBDMenus[Nom mois menu],$J$3)","v":0},{"$f":"SUMIFS(TabBDMenus[Quantité menu légumes],TabBDMenus[Nom menu légumes],$A14,TabBDMenus[Nom mois menu],$K$3)+SUMIFS(TabBDMenus[Quantité menu légume deux],TabBDMenus[Nom menu légume deux],$A14,TabBDMenus[Nom mois menu],$K$3)","v":0},{"$f":"SUMIFS(TabBDMenus[Quantité menu légumes],TabBDMenus[Nom menu légumes],$A14,TabBDMenus[Nom mois menu],$L$3)+SUMIFS(TabBDMenus[Quantité menu légume deux],TabBDMenus[Nom menu légume deux],$A14,TabBDMenus[Nom mois menu],$L$3)","v":0},{"$f":"SUMIFS(TabBDMenus[Quantité menu légumes],TabBDMenus[Nom menu légumes],$A14,TabBDMenus[Nom mois menu],$M$3)+SUMIFS(TabBDMenus[Quantité menu légume deux],TabBDMenus[Nom menu légume deux],$A14,TabBDMenus[Nom mois menu],$M$3)","v":0},0]
["Concombre",{"$f":"SUMIFS(TabBDMenus[Quantité menu légumes],TabBDMenus[Nom menu légumes],$A15,TabBDMenus[Nom mois menu],$B$3)+SUMIFS(TabBDMenus[Quantité menu légume deux],TabBDMenus[Nom menu légume deux],$A15,TabBDMenus[Nom mois menu],$B$3)","v":0},{"$f":"SUMIFS(TabBDMenus[Quantité menu légumes],TabBDMenus[Nom menu légumes],$A15,TabBDMenus[Nom mois menu],$C$3)+SUMIFS(TabBDMenus[Quantité menu légume deux],TabBDMenus[Nom menu légume deux],$A15,TabBDMenus[Nom mois menu],$C$3)","v":0},{"$f":"SUMIFS(TabBDMenus[Quantité menu légumes],TabBDMenus[Nom menu légumes],$A15,TabBDMenus[Nom mois menu],$D$3)+SUMIFS(TabBDMenus[Quantité menu légume deux],TabBDMenus[Nom menu légume deux],$A15,TabBDMenus[Nom mois menu],$D$3)","v":0},{"$f":"SUMIFS(TabBDMenus[Quantité menu légumes],TabBDMenus[Nom menu légumes],$A15,TabBDMenus[Nom mois menu],$E$3)+SUMIFS(TabBDMenus[Quantité menu légume deux],TabBDMenus[Nom menu légume deux],$A15,TabBDMenus[Nom mois menu],$E$3)","v":0},{"$f":"SUMIFS(TabBDMenus[Quantité menu légumes],TabBDMenus[Nom menu légumes],$A15,TabBDMenus[Nom mois menu],$F$3)+SUMIFS(TabBDMenus[Quantité menu légume deux],TabBDMenus[Nom menu légume deux],$A15,TabBDMenus[Nom mois menu],$F$3)","v":0},{"$f":"SUMIFS(TabBDMenus[Quantité menu légumes],TabBDMenus[Nom menu légumes],$A15,TabBDMenus[Nom mois menu],$G$3)+SUMIFS(TabBDMenus[Quantité menu légume deux],TabBDMenus[Nom menu légume deux],$A15,TabBDMenus[Nom mois menu],$G$3)","v":0},{"$f":"SUMIFS(TabBDMenus[Quantité menu légumes],TabBDMenus[Nom menu légumes],$A15,TabBDMenus[Nom mois menu],$H$3)+SUMIFS(TabBDMenus[Quantité menu légume deux],TabBDMenus[Nom menu légume deux],$A15,TabBDMenus[Nom mois menu],$H$3)","v":0},{"$f":"SUMIFS(TabBDMenus[Quantité menu légumes],TabBDMenus[Nom menu légumes],$A15,TabBDMenus[Nom mois menu],$I$3)+SUMIFS(TabBDMenus[Quantité menu légume deux],TabBDMenus[Nom menu légume deux],$A15,TabBDMenus[Nom mois menu],$I$3)","v":0},{"$f":"SUMIFS(TabBDMenus[Quantité menu légumes],TabBDMenus[Nom menu légumes],$A15,TabBDMenus[Nom mois menu],$J$3)+SUMIFS(TabBDMenus[Quantité menu légume deux],TabBDMenus[Nom menu légume deux],$A15,TabBDMenus[Nom mois menu],$J$3)","v":0},{"$f":"SUMIFS(TabBDMenus[Quantité menu légumes],TabBDMenus[Nom menu légumes],$A15,TabBDMenus[Nom mois menu],$K$3)+SUMIFS(TabBDMenus[Quantité menu légume deux],TabBDMenus[Nom menu légume deux],$A15,TabBDMenus[Nom mois menu],$K$3)","v":0},{"$f":"SUMIFS(TabBDMenus[Quantité menu légumes],TabBDMenus[Nom menu légumes],$A15,TabBDMenus[Nom mois menu],$L$3)+SUMIFS(TabBDMenus[Quantité menu légume deux],TabBDMenus[Nom menu légume deux],$A15,TabBDMenus[Nom mois menu],$L$3)","v":0},{"$f":"SUMIFS(TabBDMenus[Quantité menu légumes],TabBDMenus[Nom menu légumes],$A15,TabBDMenus[Nom mois menu],$M$3)+SUMIFS(TabBDMenus[Quantité menu légume deux],TabBDMenus[Nom menu légume deux],$A15,TabBDMenus[Nom mois menu],$M$3)","v":0},0]
["Couscous",{"$f":"SUMIFS(TabBDMenus[Quantité menu légumes],TabBDMenus[Nom menu légumes],$A16,TabBDMenus[Nom mois menu],$B$3)+SUMIFS(TabBDMenus[Quantité menu légume deux],TabBDMenus[Nom menu légume deux],$A16,TabBDMenus[Nom mois menu],$B$3)","v":0},{"$f":"SUMIFS(TabBDMenus[Quantité menu légumes],TabBDMenus[Nom menu légumes],$A16,TabBDMenus[Nom mois menu],$C$3)+SUMIFS(TabBDMenus[Quantité menu légume deux],TabBDMenus[Nom menu légume deux],$A16,TabBDMenus[Nom mois menu],$C$3)","v":0},{"$f":"SUMIFS(TabBDMenus[Quantité menu légumes],TabBDMenus[Nom menu légumes],$A16,TabBDMenus[Nom mois menu],$D$3)+SUMIFS(TabBDMenus[Quantité menu légume deux],TabBDMenus[Nom menu légume deux],$A16,TabBDMenus[Nom mois menu],$D$3)","v":0},{"$f":"SUMIFS(TabBDMenus[Quantité menu légumes],TabBDMenus[Nom menu légumes],$A16,TabBDMenus[Nom mois menu],$E$3)+SUMIFS(TabBDMenus[Quantité menu légume deux],TabBDMenus[Nom menu légume deux],$A16,TabBDMenus[Nom mois menu],$E$3)","v":0},{"$f":"SUMIFS(TabBDMenus[Quantité menu légumes],TabBDMenus[Nom menu légumes],$A16,TabBDMenus[Nom mois menu],$F$3)+SUMIFS(TabBDMenus[Quantité menu légume deux],TabBDMenus[Nom menu légume deux],$A16,TabBDMenus[Nom mois menu],$F$3)","v":0},{"$f":"SUMIFS(TabBDMenus[Quantité menu légumes],TabBDMenus[Nom menu légumes],$A16,TabBDMenus[Nom mois menu],$G$3)+SUMIFS(TabBDMenus[Quantité menu légume deux],TabBDMenus[Nom menu légume deux],$A16,TabBDMenus[Nom mois menu],$G$3)","v":0},{"$f":"SUMIFS(TabBDMenus[Quantité menu légumes],TabBDMenus[Nom menu légumes],$A16,TabBDMenus[Nom mois menu],$H$3)+SUMIFS(TabBDMenus[Quantité menu légume deux],TabBDMenus[Nom menu légume deux],$A16,TabBDMenus[Nom mois menu],$H$3)","v":0},{"$f":"SUMIFS(TabBDMenus[Quantité menu légumes],TabBDMenus[Nom menu légumes],$A16,TabBDMenus[Nom mois menu],$I$3)+SUMIFS(TabBDMenus[Quantité menu légume deux],TabBDMenus[Nom menu légume deux],$A16,TabBDMenus[Nom mois menu],$I$3)","v":0},{"$f":"SUMIFS(TabBDMenus[Quantité menu légumes],TabBDMenus[Nom menu légumes],$A16,TabBDMenus[Nom mois menu],$J$3)+SUMIFS(TabBDMenus[Quantité menu légume deux],TabBDMenus[Nom menu légume deux],$A16,TabBDMenus[Nom mois menu],$J$3)","v":0},{"$f":"SUMIFS(TabBDMenus[Quantité menu légumes],TabBDMenus[Nom menu légumes],$A16,TabBDMenus[Nom mois menu],$K$3)+SUMIFS(TabBDMenus[Quantité menu légume deux],TabBDMenus[Nom menu légume deux],$A16,TabBDMenus[Nom mois menu],$K$3)","v":0},{"$f":"SUMIFS(TabBDMenus[Quantité menu légumes],TabBDMenus[Nom menu légumes],$A16,TabBDMenus[Nom mois menu],$L$3)+SUMIFS(TabBDMenus[Quantité menu légume deux],TabBDMenus[Nom menu légume deux],$A16,TabBDMenus[Nom mois menu],$L$3)","v":0},{"$f":"SUMIFS(TabBDMenus[Quantité menu légumes],TabBDMenus[Nom menu légumes],$A16,TabBDMenus[Nom mois menu],$M$3)+SUMIFS(TabBDMenus[Quantité menu légume deux],TabBDMenus[Nom menu légume deux],$A16,TabBDMenus[Nom mois menu],$M$3)","v":0},0]
["Endives",{"$f":"SUMIFS(TabBDMenus[Quantité menu légumes],TabBDMenus[Nom menu légumes],$A17,TabBDMenus[Nom mois menu],$B$3)+SUMIFS(TabBDMenus[Quantité menu légume deux],TabBDMenus[Nom menu légume deux],$A17,TabBDMenus[Nom mois menu],$B$3)","v":0},{"$f":"SUMIFS(TabBDMenus[Quantité menu légumes],TabBDMenus[Nom menu légumes],$A17,TabBDMenus[Nom mois menu],$C$3)+SUMIFS(TabBDMenus[Quantité menu légume deux],TabBDMenus[Nom menu légume deux],$A17,TabBDMenus[Nom mois menu],$C$3)","v":0},{"$f":"SUMIFS(TabBDMenus[Quantité menu légumes],TabBDMenus[Nom menu légumes],$A17,TabBDMenus[Nom mois menu],$D$3)+SUMIFS(TabBDMenus[Quantité menu légume deux],TabBDMenus[Nom menu légume deux],$A17,TabBDMenus[Nom mois menu],$D$3)","v":0},{"$f":"SUMIFS(TabBDMenus[Quantité menu légumes],TabBDMenus[Nom menu légumes],$A17,TabBDMenus[Nom mois menu],$E$3)+SUMIFS(TabBDMenus[Quantité menu légume deux],TabBDMenus[Nom menu légume deux],$A17,TabBDMenus[Nom mois menu],$E$3)","v":0},{"$f":"SUMIFS(TabBDMenus[Quantité menu légumes],TabBDMenus[Nom menu légumes],$A17,TabBDMenus[Nom mois menu],$F$3)+SUMIFS(TabBDMenus[Quantité menu légume deux],TabBDMenus[Nom menu légume deux],$A17,TabBDMenus[Nom mois menu],$F$3)","v":0},{"$f":"SUMIFS(TabBDMenus[Quantité menu légumes],TabBDMenus[Nom menu légumes],$A17,TabBDMenus[Nom mois menu],$G$3)+SUMIFS(TabBDMenus[Quantité menu légume deux],TabBDMenus[Nom menu légume deux],$A17,TabBDMenus[Nom mois menu],$G$3)","v":0},{"$f":"SUMIFS(TabBDMenus[Quantité menu légumes],TabBDMenus[Nom menu légumes],$A17,TabBDMenus[Nom mois menu],$H$3)+SUMIFS(TabBDMenus[Quantité menu légume deux],TabBDMenus[Nom menu légume deux],$A17,TabBDMenus[Nom mois menu],$H$3)","v":0},{"$f":"SUMIFS(TabBDMenus[Quantité menu légumes],TabBDMenus[Nom menu légumes],$A17,TabBDMenus[Nom mois menu],$I$3)+SUMIFS(TabBDMenus[Quantité menu légume deux],TabBDMenus[Nom menu légume deux],$A17,TabBDMenus[Nom mois menu],$I$3)","v":0},{"$f":"SUMIFS(TabBDMenus[Quantité menu légumes],TabBDMenus[Nom menu légumes],$A17,TabBDMenus[Nom mois menu],$J$3)+SUMIFS(TabBDMenus[Quantité menu légume deux],TabBDMenus[Nom menu légume deux],$A17,TabBDMenus[Nom mois menu],$J$3)","v":0},{"$f":"SUMIFS(TabBDMenus[Quantité menu légumes],TabBDMenus[Nom menu légumes],$A17,TabBDMenus[Nom mois menu],$K$3)+SUMIFS(TabBDMenus[Quantité menu légume deux],TabBDMenus[Nom menu légume deux],$A17,TabBDMenus[Nom mois menu],$K$3)","v":0},{"$f":"SUMIFS(TabBDMenus[Quantité menu légumes],TabBDMenus[Nom menu légumes],$A17,TabBDMenus[Nom mois menu],$L$3)+SUMIFS(TabBDMenus[Quantité menu légume deux],TabBDMenus[Nom menu légume deux],$A17,TabBDMenus[Nom mois menu],$L$3)","v":0},{"$f":"SUMIFS(TabBDMenus[Quantité menu légumes],TabBDMenus[Nom menu légumes],$A17,TabBDMenus[Nom mois menu],$M$3)+SUMIFS(TabBDMenus[Quantité menu légume deux],TabBDMenus[Nom menu légume deux],$A17,TabBDMenus[Nom mois menu],$M$3)","v":0},0]
["Frites",{"$f":"SUMIFS(TabBDMenus[Quantité menu légumes],TabBDMenus[Nom menu légumes],$A18,TabBDMenus[Nom mois menu],$B$3)+SUMIFS(TabBDMenus[Quantité menu légume deux],TabBDMenus[Nom menu légume deux],$A18,TabBDMenus[Nom mois menu],$B$3)","v":0},{"$f":"SUMIFS(TabBDMenus[Quantité menu légumes],TabBDMenus[Nom menu légumes],$A18,TabBDMenus[Nom mois menu],$C$3)+SUMIFS(TabBDMenus[Quantité menu légume deux],TabBDMenus[Nom menu légume deux],$A18,TabBDMenus[Nom mois menu],$C$3)","v":0},{"$f":"SUMIFS(TabBDMenus[Quantité menu légumes],TabBDMenus[Nom menu légumes],$A18,TabBDMenus[Nom mois menu],$D$3)+SUMIFS(TabBDMenus[Quantité menu légume deux],TabBDMenus[Nom menu légume deux],$A18,TabBDMenus[Nom mois menu],$D$3)","v":0},{"$f":"SUMIFS(TabBDMenus[Quantité menu légumes],TabBDMenus[Nom menu légumes],$A18,TabBDMenus[Nom mois menu],$E$3)+SUMIFS(TabBDMenus[Quantité menu légume deux],TabBDMenus[Nom menu légume deux],$A18,TabBDMenus[Nom mois menu],$E$3)","v":0},{"$f":"SUMIFS(TabBDMenus[Quantité menu légumes],TabBDMenus[Nom menu légumes],$A18,TabBDMenus[Nom mois menu],$F$3)+SUMIFS(TabBDMenus[Quantité menu légume deux],TabBDMenus[Nom menu légume deux],$A18,TabBDMenus[Nom mois menu],$F$3)","v":0},{"$f":"SUMIFS(TabBDMenus[Quantité menu légumes],TabBDMenus[Nom menu légumes],$A18,TabBDMenus[Nom mois menu],$G$3)+SUMIFS(TabBDMenus[Quantité menu légume deux],TabBDMenus[Nom menu légume deux],$A18,TabBDMenus[Nom mois menu],$G$3)","v":0},{"$f":"SUMIFS(TabBDMenus[Quantité menu légumes],TabBDMenus[Nom menu légumes],$A18,TabBDMenus[Nom mois menu],$H$3)+SUMIFS(TabBDMenus[Quantité menu légume deux],TabBDMenus[Nom menu légume deux],$A18,TabBDMenus[Nom mois menu],$H$3)","v":0},{"$f":"SUMIFS(TabBDMenus[Quantité menu légumes],TabBDMenus[Nom menu légumes],$A18,TabBDMenus[Nom mois menu],$I$3)+SUMIFS(TabBDMenus[Quantité menu légume deux],TabBDMenus[Nom menu légume deux],$A18,TabBDMenus[Nom mois menu],$I$3)","v":0},{"$f":"SUMIFS(TabBDMenus[Quantité menu légumes],TabBDMenus[Nom menu légumes],$A18,TabBDMenus[Nom mois menu],$J$3)+SUMIFS(TabBDMenus[Quantité menu légume deux],TabBDMenus[Nom menu légume deux],$A18,TabBDMenus[Nom mois menu],$J$3)","v":0},{"$f":"SUMIFS(TabBDMenus[Quantité menu légumes],TabBDMenus[Nom menu légumes],$A18,TabBDMenus[Nom mois menu],$K$3)+SUMIFS(TabBDMenus[Quantité menu légume deux],TabBDMenus[Nom menu légume deux],$A18,TabBDMenus[Nom mois menu],$K$3)","v":0},{"$f":"SUMIFS(TabBDMenus[Quantité menu légumes],TabBDMenus[Nom menu légumes],$A18,TabBDMenus[Nom mois menu],$L$3)+SUMIFS(TabBDMenus[Quantité menu légume deux],TabBDMenus[Nom menu légume deux],$A18,TabBDMenus[Nom mois menu],$L$3)","v":0},{"$f":"SUMIFS(TabBDMenus[Quantité menu légumes],TabBDMenus[Nom menu légumes],$A18,TabBDMenus[Nom mois menu],$M$3)+SUMIFS(TabBDMenus[Quantité menu légume deux],TabBDMenus[Nom menu légume deux],$A18,TabBDMenus[Nom mois menu],$M$3)","v":0},0]
["Haricots verts",{"$f":"SUMIFS(TabBDMenus[Quantité menu légumes],TabBDMenus[Nom menu légumes],$A19,TabBDMenus[Nom mois menu],$B$3)+SUMIFS(TabBDMenus[Quantité menu légume deux],TabBDMenus[Nom menu légume deux],$A19,TabBDMenus[Nom mois menu],$B$3)","v":0},{"$f":"SUMIFS(TabBDMenus[Quantité menu légumes],TabBDMenus[Nom menu légumes],$A19,TabBDMenus[Nom mois menu],$C$3)+SUMIFS(TabBDMenus[Quantité menu légume deux],TabBDMenus[Nom menu légume deux],$A19,TabBDMenus[Nom mois menu],$C$3)","v":0},{"$f":"SUMIFS(TabBDMenus[Quantité menu légumes],TabBDMenus[Nom menu légumes],$A19,TabBDMenus[Nom mois menu],$D$3)+SUMIFS(TabBDMenus[Quantité menu légume deux],TabBDMenus[Nom menu légume deux],$A19,TabBDMenus[Nom mois menu],$D$3)","v":0},{"$f":"SUMIFS(TabBDMenus[Quantité menu légumes],TabBDMenus[Nom menu légumes],$A19,TabBDMenus[Nom mois menu],$E$3)+SUMIFS(TabBDMenus[Quantité menu légume deux],TabBDMenus[Nom menu légume deux],$A19,TabBDMenus[Nom mois menu],$E$3)","v":0},{"$f":"SUMIFS(TabBDMenus[Quantité menu légumes],TabBDMenus[Nom menu légumes],$A19,TabBDMenus[Nom mois menu],$F$3)+SUMIFS(TabBDMenus[Quantité menu légume deux],TabBDMenus[Nom menu légume deux],$A19,TabBDMenus[Nom mois menu],$F$3)","v":0},{"$f":"SUMIFS(TabBDMenus[Quantité menu légumes],TabBDMenus[Nom menu légumes],$A19,TabBDMenus[Nom mois menu],$G$3)+SUMIFS(TabBDMenus[Quantité menu légume deux],TabBDMenus[Nom menu légume deux],$A19,TabBDMenus[Nom mois menu],$G$3)","v":0},{"$f":"SUMIFS(TabBDMenus[Quantité menu légumes],TabBDMenus[Nom menu légumes],$A19,TabBDMenus[Nom mois menu],$H$3)+SUMIFS(TabBDMenus[Quantité menu légume deux],TabBDMenus[Nom menu légume deux],$A19,TabBDMenus[Nom mois menu],$H$3)","v":0},{"$f":"SUMIFS(TabBDMenus[Quantité menu légumes],TabBDMenus[Nom menu légumes],$A19,TabBDMenus[Nom mois menu],$I$3)+SUMIFS(TabBDMenus[Quantité menu légume deux],TabBDMenus[Nom menu légume deux],$A19,TabBDMenus[Nom mois menu],$I$3)","v":0},{"$f":"SUMIFS(TabBDMenus[Quantité menu légumes],TabBDMenus[Nom menu légumes],$A19,TabBDMenus[Nom mois menu],$J$3)+SUMIFS(TabBDMenus[Quantité menu légume deux],TabBDMenus[Nom menu légume deux],$A19,TabBDMenus[Nom mois menu],$J$3)","v":0},{"$f":"SUMIFS(TabBDMenus[Quantité menu légumes],TabBDMenus[Nom menu légumes],$A19,TabBDMenus[Nom mois menu],$K$3)+SUMIFS(TabBDMenus[Quantité menu légume deux],TabBDMenus[Nom menu légume deux],$A19,TabBDMenus[Nom mois menu],$K$3)","v":0},{"$f":"SUMIFS(TabBDMenus[Quantité menu légumes],TabBDMenus[Nom menu légumes],$A19,TabBDMenus[Nom mois menu],$L$3)+SUMIFS(TabBDMenus[Quantité menu légume deux],TabBDMenus[Nom menu légume deux],$A19,TabBDMenus[Nom mois menu],$L$3)","v":0},{"$f":"SUMIFS(TabBDMenus[Quantité menu légumes],TabBDMenus[Nom menu légumes],$A19,TabBDMenus[Nom mois menu],$M$3)+SUMIFS(TabBDMenus[Quantité menu légume deux],TabBDMenus[Nom menu légume deux],$A19,TabBDMenus[Nom mois menu],$M$3)","v":0},0]
["Macédoine de légumes",{"$f":"SUMIFS(TabBDMenus[Quantité menu légumes],TabBDMenus[Nom menu légumes],$A20,TabBDMenus[Nom mois menu],$B$3)+SUMIFS(TabBDMenus[Quantité menu légume deux],TabBDMenus[Nom menu légume deux],$A20,TabBDMenus[Nom mois menu],$B$3)","v":0},{"$f":"SUMIFS(TabBDMenus[Quantité menu légumes],TabBDMenus[Nom menu légumes],$A20,TabBDMenus[Nom mois menu],$C$3)+SUMIFS(TabBDMenus[Quantité menu légume deux],TabBDMenus[Nom menu légume deux],$A20,TabBDMenus[Nom mois menu],$C$3)","v":0},{"$f":"SUMIFS(TabBDMenus[Quantité menu légumes],TabBDMenus[Nom menu légumes],$A20,TabBDMenus[Nom mois menu],$D$3)+SUMIFS(TabBDMenus[Quantité menu légume deux],TabBDMenus[Nom menu légume deux],$A20,TabBDMenus[Nom mois menu],$D$3)","v":0},{"$f":"SUMIFS(TabBDMenus[Quantité menu légumes],TabBDMenus[Nom menu légumes],$A20,TabBDMenus[Nom mois menu],$E$3)+SUMIFS(TabBDMenus[Quantité menu légume deux],TabBDMenus[Nom menu légume deux],$A20,TabBDMenus[Nom mois menu],$E$3)","v":0},{"$f":"SUMIFS(TabBDMenus[Quantité menu légumes],TabBDMenus[Nom menu légumes],$A20,TabBDMenus[Nom mois menu],$F$3)+SUMIFS(TabBDMenus[Quantité menu légume deux],TabBDMenus[Nom menu légume deux],$A20,TabBDMenus[Nom mois menu],$F$3)","v":0},{"$f":"SUMIFS(TabBDMenus[Quantité menu légumes],TabBDMenus[Nom menu légumes],$A20,TabBDMenus[Nom mois menu],$G$3)+SUMIFS(TabBDMenus[Quantité menu légume deux],TabBDMenus[Nom menu légume deux],$A20,TabBDMenus[Nom mois menu],$G$3)","v":0},{"$f":"SUMIFS(TabBDMenus[Quantité menu légumes],TabBDMenus[Nom menu légumes],$A20,TabBDMenus[Nom mois menu],$H$3)+SUMIFS(TabBDMenus[Quantité menu légume deux],TabBDMenus[Nom menu légume deux],$A20,TabBDMenus[Nom mois menu],$H$3)","v":0},{"$f":"SUMIFS(TabBDMenus[Quantité menu légumes],TabBDMenus[Nom menu légumes],$A20,TabBDMenus[Nom mois menu],$I$3)+SUMIFS(TabBDMenus[Quantité menu légume deux],TabBDMenus[Nom menu légume deux],$A20,TabBDMenus[Nom mois menu],$I$3)","v":0},{"$f":"SUMIFS(TabBDMenus[Quantité menu légumes],TabBDMenus[Nom menu légumes],$A20,TabBDMenus[Nom mois menu],$J$3)+SUMIFS(TabBDMenus[Quantité menu légume deux],TabBDMenus[Nom menu légume deux],$A20,TabBDMenus[Nom mois menu],$J$3)","v":0},{"$f":"SUMIFS(TabBDMenus[Quantité menu légumes],TabBDMenus[Nom menu légumes],$A20,TabBDMenus[Nom mois menu],$K$3)+SUMIFS(TabBDMenus[Quantité menu légume deux],TabBDMenus[Nom menu légume deux],$A20,TabBDMenus[Nom mois menu],$K$3)","v":0},{"$f":"SUMIFS(TabBDMenus[Quantité menu légumes],TabBDMenus[Nom menu légumes],$A20,TabBDMenus[Nom mois menu],$L$3)+SUMIFS(TabBDMenus[Quantité menu légume deux],TabBDMenus[Nom menu légume deux],$A20,TabBDMenus[Nom mois menu],$L$3)","v":0},{"$f":"SUMIFS(TabBDMenus[Quantité menu légumes],TabBDMenus[Nom menu légumes],$A20,TabBDMenus[Nom mois menu],$M$3)+SUMIFS(TabBDMenus[Quantité menu légume deux],TabBDMenus[Nom menu légume deux],$A20,TabBDMenus[Nom mois menu],$M$3)","v":0},0]
["Maïs",{"$f":"SUMIFS(TabBDMenus[Quantité menu légumes],TabBDMenus[Nom menu légumes],$A21,TabBDMenus[Nom mois menu],$B$3)+SUMIFS(TabBDMenus[Quantité menu légume deux],TabBDMenus[Nom menu légume deux],$A21,TabBDMenus[Nom mois menu],$B$3)","v":0},{"$f":"SUMIFS(TabBDMenus[Quantité menu légumes],TabBDMenus[Nom menu légumes],$A21,TabBDMenus[Nom mois menu],$C$3)+SUMIFS(TabBDMenus[Quantité menu légume deux],TabBDMenus[Nom menu légume deux],$A21,TabBDMenus[Nom mois menu],$C$3)","v":0},{"$f":"SUMIFS(TabBDMenus[Quantité menu légumes],TabBDMenus[Nom menu légumes],$A21,TabBDMenus[Nom mois menu],$D$3)+SUMIFS(TabBDMenus[Quantité menu légume deux],TabBDMenus[Nom menu légume deux],$A21,TabBDMenus[Nom mois menu],$D$3)","v":0},{"$f":"SUMIFS(TabBDMenus[Quantité menu légumes],TabBDMenus[Nom menu légumes],$A21,TabBDMenus[Nom mois menu],$E$3)+SUMIFS(TabBDMenus[Quantité menu légume deux],TabBDMenus[Nom menu légume deux],$A21,TabBDMenus[Nom mois menu],$E$3)","v":0},{"$f":"SUMIFS(TabBDMenus[Quantité menu légumes],TabBDMenus[Nom menu légumes],$A21,TabBDMenus[Nom mois menu],$F$3)+SUMIFS(TabBDMenus[Quantité menu légume deux],TabBDMenus[Nom menu légume deux],$A21,TabBDMenus[Nom mois menu],$F$3)","v":0},{"$f":"SUMIFS(TabBDMenus[Quantité menu légumes],TabBDMenus[Nom menu légumes],$A21,TabBDMenus[Nom mois menu],$G$3)+SUMIFS(TabBDMenus[Quantité menu légume deux],TabBDMenus[Nom menu légume deux],$A21,TabBDMenus[Nom mois menu],$G$3)","v":0},{"$f":"SUMIFS(TabBDMenus[Quantité menu légumes],TabBDMenus[Nom menu légumes],$A21,TabBDMenus[Nom mois menu],$H$3)+SUMIFS(TabBDMenus[Quantité menu légume deux],TabBDMenus[Nom menu légume deux],$A21,TabBDMenus[Nom mois menu],$H$3)","v":0},{"$f":"SUMIFS(TabBDMenus[Quantité menu légumes],TabBDMenus[Nom menu légumes],$A21,TabBDMenus[Nom mois menu],$I$3)+SUMIFS(TabBDMenus[Quantité menu légume deux],TabBDMenus[Nom menu légume deux],$A21,TabBDMenus[Nom mois menu],$I$3)","v":0},{"$f":"SUMIFS(TabBDMenus[Quantité menu légumes],TabBDMenus[Nom menu légumes],$A21,TabBDMenus[Nom mois menu],$J$3)+SUMIFS(TabBDMenus[Quantité menu légume deux],TabBDMenus[Nom menu légume deux],$A21,TabBDMenus[Nom mois menu],$J$3)","v":0},{"$f":"SUMIFS(TabBDMenus[Quantité menu légumes],TabBDMenus[Nom menu légumes],$A21,TabBDMenus[Nom mois menu],$K$3)+SUMIFS(TabBDMenus[Quantité menu légume deux],TabBDMenus[Nom menu légume deux],$A21,TabBDMenus[Nom mois menu],$K$3)","v":0},{"$f":"SUMIFS(TabBDMenus[Quantité menu légumes],TabBDMenus[Nom menu légumes],$A21,TabBDMenus[Nom mois menu],$L$3)+SUMIFS(TabBDMenus[Quantité menu légume deux],TabBDMenus[Nom menu légume deux],$A21,TabBDMenus[Nom mois menu],$L$3)","v":0},{"$f":"SUMIFS(TabBDMenus[Quantité menu légumes],TabBDMenus[Nom menu légumes],$A21,TabBDMenus[Nom mois menu],$M$3)+SUMIFS(TabBDMenus[Quantité menu légume deux],TabBDMenus[Nom menu légume deux],$A21,TabBDMenus[Nom mois menu],$M$3)","v":0},0]
["Paella",{"$f":"SUMIFS(TabBDMenus[Quantité menu légumes],TabBDMenus[Nom menu légumes],$A22,TabBDMenus[Nom mois menu],$B$3)+SUMIFS(TabBDMenus[Quantité menu légume deux],TabBDMenus[Nom menu légume deux],$A22,TabBDMenus[Nom mois menu],$B$3)","v":0},{"$f":"SUMIFS(TabBDMenus[Quantité menu légumes],TabBDMenus[Nom menu légumes],$A22,TabBDMenus[Nom mois menu],$C$3)+SUMIFS(TabBDMenus[Quantité menu légume deux],TabBDMenus[Nom menu légume deux],$A22,TabBDMenus[Nom mois menu],$C$3)","v":0},{"$f":"SUMIFS(TabBDMenus[Quantité menu légumes],TabBDMenus[Nom menu légumes],$A22,TabBDMenus[Nom mois menu],$D$3)+SUMIFS(TabBDMenus[Quantité menu légume deux],TabBDMenus[Nom menu légume deux],$A22,TabBDMenus[Nom mois menu],$D$3)","v":0},{"$f":"SUMIFS(TabBDMenus[Quantité menu légumes],TabBDMenus[Nom menu légumes],$A22,TabBDMenus[Nom mois menu],$E$3)+SUMIFS(TabBDMenus[Quantité menu légume deux],TabBDMenus[Nom menu légume deux],$A22,TabBDMenus[Nom mois menu],$E$3)","v":0},{"$f":"SUMIFS(TabBDMenus[Quantité menu légumes],TabBDMenus[Nom menu légumes],$A22,TabBDMenus[Nom mois menu],$F$3)+SUMIFS(TabBDMenus[Quantité menu légume deux],TabBDMenus[Nom menu légume deux],$A22,TabBDMenus[Nom mois menu],$F$3)","v":0},{"$f":"SUMIFS(TabBDMenus[Quantité menu légumes],TabBDMenus[Nom menu légumes],$A22,TabBDMenus[Nom mois menu],$G$3)+SUMIFS(TabBDMenus[Quantité menu légume deux],TabBDMenus[Nom menu légume deux],$A22,TabBDMenus[Nom mois menu],$G$3)","v":0},{"$f":"SUMIFS(TabBDMenus[Quantité menu légumes],TabBDMenus[Nom menu légumes],$A22,TabBDMenus[Nom mois menu],$H$3)+SUMIFS(TabBDMenus[Quantité menu légume deux],TabBDMenus[Nom menu légume deux],$A22,TabBDMenus[Nom mois menu],$H$3)","v":0},{"$f":"SUMIFS(TabBDMenus[Quantité menu légumes],TabBDMenus[Nom menu légumes],$A22,TabBDMenus[Nom mois menu],$I$3)+SUMIFS(TabBDMenus[Quantité menu légume deux],TabBDMenus[Nom menu légume deux],$A22,TabBDMenus[Nom mois menu],$I$3)","v":0},{"$f":"SUMIFS(TabBDMenus[Quantité menu légumes],TabBDMenus[Nom menu légumes],$A22,TabBDMenus[Nom mois menu],$J$3)+SUMIFS(TabBDMenus[Quantité menu légume deux],TabBDMenus[Nom menu légume deux],$A22,TabBDMenus[Nom mois menu],$J$3)","v":0},{"$f":"SUMIFS(TabBDMenus[Quantité menu légumes],TabBDMenus[Nom menu légumes],$A22,TabBDMenus[Nom mois menu],$K$3)+SUMIFS(TabBDMenus[Quantité menu légume deux],TabBDMenus[Nom menu légume deux],$A22,TabBDMenus[Nom mois menu],$K$3)","v":0},{"$f":"SUMIFS(TabBDMenus[Quantité menu légumes],TabBDMenus[Nom menu légumes],$A22,TabBDMenus[Nom mois menu],$L$3)+SUMIFS(TabBDMenus[Quantité menu légume deux],TabBDMenus[Nom menu légume deux],$A22,TabBDMenus[Nom mois menu],$L$3)","v":0},{"$f":"SUMIFS(TabBDMenus[Quantité menu légumes],TabBDMenus[Nom menu légumes],$A22,TabBDMenus[Nom mois menu],$M$3)+SUMIFS(TabBDMenus[Quantité menu légume deux],TabBDMenus[Nom menu légume deux],$A22,TabBDMenus[Nom mois menu],$M$3)","v":0},0]
["Pâtes à la sauce tomates",{"$f":"SUMIFS(TabBDMenus[Quantité menu légumes],TabBDMenus[Nom menu légumes],$A23,TabBDMenus[Nom mois menu],$B$3)+SUMIFS(TabBDMenus[Quantité menu légume deux],TabBDMenus[Nom menu légume deux],$A23,TabBDMenus[Nom mois menu],$B$3)","v":0},{"$f":"SUMIFS(TabBDMenus[Quantité menu légumes],TabBDMenus[Nom menu légumes],$A23,TabBDMenus[Nom mois menu],$C$3)+SUMIFS(TabBDMenus[Quantité menu légume deux],TabBDMenus[Nom menu légume deux],$A23,TabBDMenus[Nom mois menu],$C$3)","v":0},{"$f":"SUMIFS(TabBDMenus[Quantité menu légumes],TabBDMenus[Nom menu légumes],$A23,TabBDMenus[Nom mois menu],$D$3)+SUMIFS(TabBDMenus[Quantité menu légume deux],TabBDMenus[Nom menu légume deux],$A23,TabBDMenus[Nom mois menu],$D$3)","v":0},{"$f":"SUMIFS(TabBDMenus[Quantité menu légumes],TabBDMenus[Nom menu légumes],$A23,TabBDMenus[Nom mois menu],$E$3)+SUMIFS(TabBDMenus[Quantité menu légume deux],TabBDMenus[Nom menu légume deux],$A23,TabBDMenus[Nom mois menu],$E$3)","v":0},{"$f":"SUMIFS(TabBDMenus[Quantité menu légumes],TabBDMenus[Nom menu légumes],$A23,TabBDMenus[Nom mois menu],$F$3)+SUMIFS(TabBDMenus[Quantité menu légume deux],TabBDMenus[Nom menu légume deux],$A23,TabBDMenus[Nom mois menu],$F$3)","v":0},{"$f":"SUMIFS(TabBDMenus[Quantité menu légumes],TabBDMenus[Nom menu légumes],$A23,TabBDMenus[Nom mois menu],$G$3)+SUMIFS(TabBDMenus[Quantité menu légume deux],TabBDMenus[Nom menu légume deux],$A23,TabBDMenus[Nom mois menu],$G$3)","v":0},{"$f":"SUMIFS(TabBDMenus[Quantité menu légumes],TabBDMenus[Nom menu légumes],$A23,TabBDMenus[Nom mois menu],$H$3)+SUMIFS(TabBDMenus[Quantité menu légume deux],TabBDMenus[Nom menu légume deux],$A23,TabBDMenus[Nom mois menu],$H$3)","v":0},{"$f":"SUMIFS(TabBDMenus[Quantité menu légumes],TabBDMenus[Nom menu légumes],$A23,TabBDMenus[Nom mois menu],$I$3)+SUMIFS(TabBDMenus[Quantité menu légume deux],TabBDMenus[Nom menu légume deux],$A23,TabBDMenus[Nom mois menu],$I$3)","v":0},{"$f":"SUMIFS(TabBDMenus[Quantité menu légumes],TabBDMenus[Nom menu légumes],$A23,TabBDMenus[Nom mois menu],$J$3)+SUMIFS(TabBDMenus[Quantité menu légume deux],TabBDMenus[Nom menu légume deux],$A23,TabBDMenus[Nom mois menu],$J$3)","v":0},{"$f":"SUMIFS(TabBDMenus[Quantité menu légumes],TabBDMenus[Nom menu légumes],$A23,TabBDMenus[Nom mois menu],$K$3)+SUMIFS(TabBDMenus[Quantité menu légume deux],TabBDMenus[Nom menu légume deux],$A23,TabBDMenus[Nom mois menu],$K$3)","v":0},{"$f":"SUMIFS(TabBDMenus[Quantité menu légumes],TabBDMenus[Nom menu légumes],$A23,TabBDMenus[Nom mois menu],$L$3)+SUMIFS(TabBDMenus[Quantité menu légume deux],TabBDMenus[Nom menu légume deux],$A23,TabBDMenus[Nom mois menu],$L$3)","v":0},{"$f":"SUMIFS(TabBDMenus[Quantité menu légumes],TabBDMenus[Nom menu légumes],$A23,TabBDMenus[Nom mois menu],$M$3)+SUMIFS(TabBDMenus[Quantité menu légume deux],TabBDMenus[Nom menu légume deux],$A23,TabBDMenus[Nom mois menu],$M$3)","v":0},0]
["Pâtes au beurre",{"$f":"SUMIFS(TabBDMenus[Quantité menu légumes],TabBDMenus[Nom menu légumes],$A24,TabBDMenus[Nom mois menu],$B$3)+SUMIFS(TabBDMenus[Quantité menu légume deux],TabBDMenus[Nom menu légume deux],$A24,TabBDMenus[Nom mois menu],$B$3)","v":0},{"$f":"SUMIFS(TabBDMenus[Quantité menu légumes],TabBDMenus[Nom menu légumes],$A24,TabBDMenus[Nom mois menu],$C$3)+SUMIFS(TabBDMenus[Quantité menu légume deux],TabBDMenus[Nom menu légume deux],$A24,TabBDMenus[Nom mois menu],$C$3)","v":0},{"$f":"SUMIFS(TabBDMenus[Quantité menu légumes],TabBDMenus[Nom menu légumes],$A24,TabBDMenus[Nom mois menu],$D$3)+SUMIFS(TabBDMenus[Quantité menu légume deux],TabBDMenus[Nom menu légume deux],$A24,TabBDMenus[Nom mois menu],$D$3)","v":0},{"$f":"SUMIFS(TabBDMenus[Quantité menu légumes],TabBDMenus[Nom menu légumes],$A24,TabBDMenus[Nom mois menu],$E$3)+SUMIFS(TabBDMenus[Quantité menu légume deux],TabBDMenus[Nom menu légume deux],$A24,TabBDMenus[Nom mois menu],$E$3)","v":0},{"$f":"SUMIFS(TabBDMenus[Quantité menu légumes],TabBDMenus[Nom menu légumes],$A24,TabBDMenus[Nom mois menu],$F$3)+SUMIFS(TabBDMenus[Quantité menu légume deux],TabBDMenus[Nom menu légume deux],$A24,TabBDMenus[Nom mois menu],$F$3)","v":0},{"$f":"SUMIFS(TabBDMenus[Quantité menu légumes],TabBDMenus[Nom menu légumes],$A24,TabBDMenus[Nom mois menu],$G$3)+SUMIFS(TabBDMenus[Quantité menu légume deux],TabBDMenus[Nom menu légume deux],$A24,TabBDMenus[Nom mois menu],$G$3)","v":0},{"$f":"SUMIFS(TabBDMenus[Quantité menu légumes],TabBDMenus[Nom menu légumes],$A24,TabBDMenus[Nom mois menu],$H$3)+SUMIFS(TabBDMenus[Quantité menu légume deux],TabBDMenus[Nom menu légume deux],$A24,TabBDMenus[Nom mois menu],$H$3)","v":0},{"$f":"SUMIFS(TabBDMenus[Quantité menu légumes],TabBDMenus[Nom menu légumes],$A24,TabBDMenus[Nom mois menu],$I$3)+SUMIFS(TabBDMenus[Quantité menu légume deux],TabBDMenus[Nom menu légume deux],$A24,TabBDMenus[Nom mois menu],$I$3)","v":0},{"$f":"SUMIFS(TabBDMenus[Quantité menu légumes],TabBDMenus[Nom menu légumes],$A24,TabBDMenus[Nom mois menu],$J$3)+SUMIFS(TabBDMenus[Quantité menu légume deux],TabBDMenus[Nom menu légume deux],$A24,TabBDMenus[Nom mois menu],$J$3)","v":0},{"$f":"SUMIFS(TabBDMenus[Quantité menu légumes],TabBDMenus[Nom menu légumes],$A24,TabBDMenus[Nom mois menu],$K$3)+SUMIFS(TabBDMenus[Quantité menu légume deux],TabBDMenus[Nom menu légume deux],$A24,TabBDMenus[Nom mois menu],$K$3)","v":0},{"$f":"SUMIFS(TabBDMenus[Quantité menu légumes],TabBDMenus[Nom menu légumes],$A24,TabBDMenus[Nom mois menu],$L$3)+SUMIFS(TabBDMenus[Quantité menu légume deux],TabBDMenus[Nom menu légume deux],$A24,TabBDMenus[Nom mois menu],$L$3)","v":0},{"$f":"SUMIFS(TabBDMenus[Quantité menu légumes],TabBDMenus[Nom menu légumes],$A24,TabBDMenus[Nom mois menu],$M$3)+SUMIFS(TabBDMenus[Quantité menu légume deux],TabBDMenus[Nom menu légume deux],$A24,TabBDMenus[Nom mois menu],$M$3)","v":0},0]
["Pâtes au fromage râpé",{"$f":"SUMIFS(TabBDMenus[Quantité menu légumes],TabBDMenus[Nom menu légumes],$A25,TabBDMenus[Nom mois menu],$B$3)+SUMIFS(TabBDMenus[Quantité menu légume deux],TabBDMenus[Nom menu légume deux],$A25,TabBDMenus[Nom mois menu],$B$3)","v":0},{"$f":"SUMIFS(TabBDMenus[Quantité menu légumes],TabBDMenus[Nom menu légumes],$A25,TabBDMenus[Nom mois menu],$C$3)+SUMIFS(TabBDMenus[Quantité menu légume deux],TabBDMenus[Nom menu légume deux],$A25,TabBDMenus[Nom mois menu],$C$3)","v":0},{"$f":"SUMIFS(TabBDMenus[Quantité menu légumes],TabBDMenus[Nom menu légumes],$A25,TabBDMenus[Nom mois menu],$D$3)+SUMIFS(TabBDMenus[Quantité menu légume deux],TabBDMenus[Nom menu légume deux],$A25,TabBDMenus[Nom mois menu],$D$3)","v":0},{"$f":"SUMIFS(TabBDMenus[Quantité menu légumes],TabBDMenus[Nom menu légumes],$A25,TabBDMenus[Nom mois menu],$E$3)+SUMIFS(TabBDMenus[Quantité menu légume deux],TabBDMenus[Nom menu légume deux],$A25,TabBDMenus[Nom mois menu],$E$3)","v":0},{"$f":"SUMIFS(TabBDMenus[Quantité menu légumes],TabBDMenus[Nom menu légumes],$A25,TabBDMenus[Nom mois menu],$F$3)+SUMIFS(TabBDMenus[Quantité menu légume deux],TabBDMenus[Nom menu légume deux],$A25,TabBDMenus[Nom mois menu],$F$3)","v":0},{"$f":"SUMIFS(TabBDMenus[Quantité menu légumes],TabBDMenus[Nom menu légumes],$A25,TabBDMenus[Nom mois menu],$G$3)+SUMIFS(TabBDMenus[Quantité menu légume deux],TabBDMenus[Nom menu légume deux],$A25,TabBDMenus[Nom mois menu],$G$3)","v":0},{"$f":"SUMIFS(TabBDMenus[Quantité menu légumes],TabBDMenus[Nom menu légumes],$A25,TabBDMenus[Nom mois menu],$H$3)+SUMIFS(TabBDMenus[Quantité menu légume deux],TabBDMenus[Nom menu légume deux],$A25,TabBDMenus[Nom mois menu],$H$3)","v":0},{"$f":"SUMIFS(TabBDMenus[Quantité menu légumes],TabBDMenus[Nom menu légumes],$A25,TabBDMenus[Nom mois menu],$I$3)+SUMIFS(TabBDMenus[Quantité menu légume deux],TabBDMenus[Nom menu légume deux],$A25,TabBDMenus[Nom mois menu],$I$3)","v":0},{"$f":"SUMIFS(TabBDMenus[Quantité menu légumes],TabBDMenus[Nom menu légumes],$A25,TabBDMenus[Nom mois menu],$J$3)+SUMIFS(TabBDMenus[Quantité menu légume deux],TabBDMenus[Nom menu légume deux],$A25,TabBDMenus[Nom mois menu],$J$3)","v":0},{"$f":"SUMIFS(TabBDMenus[Quantité menu légumes],TabBDMenus[Nom menu légumes],$A25,TabBDMenus[Nom mois menu],$K$3)+SUMIFS(TabBDMenus[Quantité menu légume deux],TabBDMenus[Nom menu légume deux],$A25,TabBDMenus[Nom mois menu],$K$3)","v":0},{"$f":"SUMIFS(TabBDMenus[Quantité menu légumes],TabBDMenus[Nom menu légumes],$A25,TabBDMenus[Nom mois menu],$L$3)+SUMIFS(TabBDMenus[Quantité menu légume deux],TabBDMenus[Nom menu légume deux],$A25,TabBDMenus[Nom mois menu],$L$3)","v":0},{"$f":"SUMIFS(TabBDMenus[Quantité menu légumes],TabBDMenus[Nom menu légumes],$A25,TabBDMenus[Nom mois menu],$M$3)+SUMIFS(TabBDMenus[Quantité menu légume deux],TabBDMenus[Nom menu légume deux],$A25,TabBDMenus[Nom mois menu],$M$3)","v":0},0]
["Petits pois",{"$f":"SUMIFS(TabBDMenus[Quantité menu légumes],TabBDMenus[Nom menu légumes],$A26,TabBDMenus[Nom mois menu],$B$3)+SUMIFS(TabBDMenus[Quantité menu légume deux],TabBDMenus[Nom menu légume deux],$A26,TabBDMenus[Nom mois menu],$B$3)","v":0},{"$f":"SUMIFS(TabBDMenus[Quantité menu légumes],TabBDMenus[Nom menu légumes],$A26,TabBDMenus[Nom mois menu],$C$3)+SUMIFS(TabBDMenus[Quantité menu légume deux],TabBDMenus[Nom menu légume deux],$A26,TabBDMenus[Nom mois menu],$C$3)","v":0},{"$f":"SUMIFS(TabBDMenus[Quantité menu légumes],TabBDMenus[Nom menu légumes],$A26,TabBDMenus[Nom mois menu],$D$3)+SUMIFS(TabBDMenus[Quantité menu légume deux],TabBDMenus[Nom menu légume deux],$A26,TabBDMenus[Nom mois menu],$D$3)","v":0},{"$f":"SUMIFS(TabBDMenus[Quantité menu légumes],TabBDMenus[Nom menu légumes],$A26,TabBDMenus[Nom mois menu],$E$3)+SUMIFS(TabBDMenus[Quantité menu légume deux],TabBDMenus[Nom menu légume deux],$A26,TabBDMenus[Nom mois menu],$E$3)","v":0},{"$f":"SUMIFS(TabBDMenus[Quantité menu légumes],TabBDMenus[Nom menu légumes],$A26,TabBDMenus[Nom mois menu],$F$3)+SUMIFS(TabBDMenus[Quantité menu légume deux],TabBDMenus[Nom menu légume deux],$A26,TabBDMenus[Nom mois menu],$F$3)","v":0},{"$f":"SUMIFS(TabBDMenus[Quantité menu légumes],TabBDMenus[Nom menu légumes],$A26,TabBDMenus[Nom mois menu],$G$3)+SUMIFS(TabBDMenus[Quantité menu légume deux],TabBDMenus[Nom menu légume deux],$A26,TabBDMenus[Nom mois menu],$G$3)","v":0},{"$f":"SUMIFS(TabBDMenus[Quantité menu légumes],TabBDMenus[Nom menu légumes],$A26,TabBDMenus[Nom mois menu],$H$3)+SUMIFS(TabBDMenus[Quantité menu légume deux],TabBDMenus[Nom menu légume deux],$A26,TabBDMenus[Nom mois menu],$H$3)","v":0},{"$f":"SUMIFS(TabBDMenus[Quantité menu légumes],TabBDMenus[Nom menu légumes],$A26,TabBDMenus[Nom mois menu],$I$3)+SUMIFS(TabBDMenus[Quantité menu légume deux],TabBDMenus[Nom menu légume deux],$A26,TabBDMenus[Nom mois menu],$I$3)","v":0},{"$f":"SUMIFS(TabBDMenus[Quantité menu légumes],TabBDMenus[Nom menu légumes],$A26,TabBDMenus[Nom mois menu],$J$3)+SUMIFS(TabBDMenus[Quantité menu légume deux],TabBDMenus[Nom menu légume deux],$A26,TabBDMenus[Nom mois menu],$J$3)","v":0},{"$f":"SUMIFS(TabBDMenus[Quantité menu légumes],TabBDMenus[Nom menu légumes],$A26,TabBDMenus[Nom mois menu],$K$3)+SUMIFS(TabBDMenus[Quantité menu légume deux],TabBDMenus[Nom menu légume deux],$A26,TabBDMenus[Nom mois menu],$K$3)","v":0},{"$f":"SUMIFS(TabBDMenus[Quantité menu légumes],TabBDMenus[Nom menu légumes],$A26,TabBDMenus[Nom mois menu],$L$3)+SUMIFS(TabBDMenus[Quantité menu légume deux],TabBDMenus[Nom menu légume deux],$A26,TabBDMenus[Nom mois menu],$L$3)","v":0},{"$f":"SUMIFS(TabBDMenus[Quantité menu légumes],TabBDMenus[Nom menu légumes],$A26,TabBDMenus[Nom mois menu],$M$3)+SUMIFS(TabBDMenus[Quantité menu légume deux],TabBDMenus[Nom menu légume deux],$A26,TabBDMenus[Nom mois menu],$M$3)","v":0},0]
["Petits pois et jeunes carottes",{"$f":"SUMIFS(TabBDMenus[Quantité menu légumes],TabBDMenus[Nom menu légumes],$A27,TabBDMenus[Nom mois menu],$B$3)+SUMIFS(TabBDMenus[Quantité menu légume deux],TabBDMenus[Nom menu légume deux],$A27,TabBDMenus[Nom mois menu],$B$3)","v":0},{"$f":"SUMIFS(TabBDMenus[Quantité menu légumes],TabBDMenus[Nom menu légumes],$A27,TabBDMenus[Nom mois menu],$C$3)+SUMIFS(TabBDMenus[Quantité menu légume deux],TabBDMenus[Nom menu légume deux],$A27,TabBDMenus[Nom mois menu],$C$3)","v":0},{"$f":"SUMIFS(TabBDMenus[Quantité menu légumes],TabBDMenus[Nom menu légumes],$A27,TabBDMenus[Nom mois menu],$D$3)+SUMIFS(TabBDMenus[Quantité menu légume deux],TabBDMenus[Nom menu légume deux],$A27,TabBDMenus[Nom mois menu],$D$3)","v":0},{"$f":"SUMIFS(TabBDMenus[Quantité menu légumes],TabBDMenus[Nom menu légumes],$A27,TabBDMenus[Nom mois menu],$E$3)+SUMIFS(TabBDMenus[Quantité menu légume deux],TabBDMenus[Nom menu légume deux],$A27,TabBDMenus[Nom mois menu],$E$3)","v":0},{"$f":"SUMIFS(TabBDMenus[Quantité menu légumes],TabBDMenus[Nom menu légumes],$A27,TabBDMenus[Nom mois menu],$F$3)+SUMIFS(TabBDMenus[Quantité menu légume deux],TabBDMenus[Nom menu légume deux],$A27,TabBDMenus[Nom mois menu],$F$3)","v":0},{"$f":"SUMIFS(TabBDMenus[Quantité menu légumes],TabBDMenus[Nom menu légumes],$A27,TabBDMenus[Nom mois menu],$G$3)+SUMIFS(TabBDMenus[Quantité menu légume deux],TabBDMenus[Nom menu légume deux],$A27,TabBDMenus[Nom mois menu],$G$3)","v":0},{"$f":"SUMIFS(TabBDMenus[Quantité menu légumes],TabBDMenus[Nom menu légumes],$A27,TabBDMenus[Nom mois menu],$H$3)+SUMIFS(TabBDMenus[Quantité menu légume deux],TabBDMenus[Nom menu légume deux],$A27,TabBDMenus[Nom mois menu],$H$3)","v":0},{"$f":"SUMIFS(TabBDMenus[Quantité menu légumes],TabBDMenus[Nom menu légumes],$A27,TabBDMenus[Nom mois menu],$I$3)+SUMIFS(TabBDMenus[Quantité menu légume deux],TabBDMenus[Nom menu légume deux],$A27,TabBDMenus[Nom mois menu],$I$3)","v":0},{"$f":"SUMIFS(TabBDMenus[Quantité menu légumes],TabBDMenus[Nom menu légumes],$A27,TabBDMenus[Nom mois menu],$J$3)+SUMIFS(TabBDMenus[Quantité menu légume deux],TabBDMenus[Nom menu légume deux],$A27,TabBDMenus[Nom mois menu],$J$3)","v":0},{"$f":"SUMIFS(TabBDMenus[Quantité menu légumes],TabBDMenus[Nom menu légumes],$A27,TabBDMenus[Nom mois menu],$K$3)+SUMIFS(TabBDMenus[Quantité menu légume deux],TabBDMenus[Nom menu légume deux],$A27,TabBDMenus[Nom mois menu],$K$3)","v":0},{"$f":"SUMIFS(TabBDMenus[Quantité menu légumes],TabBDMenus[Nom menu légumes],$A27,TabBDMenus[Nom mois menu],$L$3)+SUMIFS(TabBDMenus[Quantité menu légume deux],TabBDMenus[Nom menu légume deux],$A27,TabBDMenus[Nom mois menu],$L$3)","v":0},{"$f":"SUMIFS(TabBDMenus[Quantité menu légumes],TabBDMenus[Nom menu légumes],$A27,TabBDMenus[Nom mois menu],$M$3)+SUMIFS(TabBDMenus[Quantité menu légume deux],TabBDMenus[Nom menu légume deux],$A27,TabBDMenus[Nom mois menu],$M$3)","v":0},0]
["Poireau",{"$f":"SUMIFS(TabBDMenus[Quantité menu légumes],TabBDMenus[Nom menu légumes],$A28,TabBDMenus[Nom mois menu],$B$3)+SUMIFS(TabBDMenus[Quantité menu légume deux],TabBDMenus[Nom menu légume deux],$A28,TabBDMenus[Nom mois menu],$B$3)","v":0},{"$f":"SUMIFS(TabBDMenus[Quantité menu légumes],TabBDMenus[Nom menu légumes],$A28,TabBDMenus[Nom mois menu],$C$3)+SUMIFS(TabBDMenus[Quantité menu légume deux],TabBDMenus[Nom menu légume deux],$A28,TabBDMenus[Nom mois menu],$C$3)","v":0},{"$f":"SUMIFS(TabBDMenus[Quantité menu légumes],TabBDMenus[Nom menu légumes],$A28,TabBDMenus[Nom mois menu],$D$3)+SUMIFS(TabBDMenus[Quantité menu légume deux],TabBDMenus[Nom menu légume deux],$A28,TabBDMenus[Nom mois menu],$D$3)","v":0},{"$f":"SUMIFS(TabBDMenus[Quantité menu légumes],TabBDMenus[Nom menu légumes],$A28,TabBDMenus[Nom mois menu],$E$3)+SUMIFS(TabBDMenus[Quantité menu légume deux],TabBDMenus[Nom menu légume deux],$A28,TabBDMenus[Nom mois menu],$E$3)","v":0},{"$f":"SUMIFS(TabBDMenus[Quantité menu légumes],TabBDMenus[Nom menu légumes],$A28,TabBDMenus[Nom mois menu],$F$3)+SUMIFS(TabBDMenus[Quantité menu légume deux],TabBDMenus[Nom menu légume deux],$A28,TabBDMenus[Nom mois menu],$F$3)","v":0},{"$f":"SUMIFS(TabBDMenus[Quantité menu légumes],TabBDMenus[Nom menu légumes],$A28,TabBDMenus[Nom mois menu],$G$3)+SUMIFS(TabBDMenus[Quantité menu légume deux],TabBDMenus[Nom menu légume deux],$A28,TabBDMenus[Nom mois menu],$G$3)","v":0},{"$f":"SUMIFS(TabBDMenus[Quantité menu légumes],TabBDMenus[Nom menu légumes],$A28,TabBDMenus[Nom mois menu],$H$3)+SUMIFS(TabBDMenus[Quantité menu légume deux],TabBDMenus[Nom menu légume deux],$A28,TabBDMenus[Nom mois menu],$H$3)","v":0},{"$f":"SUMIFS(TabBDMenus[Quantité menu légumes],TabBDMenus[Nom menu légumes],$A28,TabBDMenus[Nom mois menu],$I$3)+SUMIFS(TabBDMenus[Quantité menu légume deux],TabBDMenus[Nom menu légume deux],$A28,TabBDMenus[Nom mois menu],$I$3)","v":0},{"$f":"SUMIFS(TabBDMenus[Quantité menu légumes],TabBDMenus[Nom menu légumes],$A28,TabBDMenus[Nom mois menu],$J$3)+SUMIFS(TabBDMenus[Quantité menu légume deux],TabBDMenus[Nom menu légume deux],$A28,TabBDMenus[Nom mois menu],$J$3)","v":0},{"$f":"SUMIFS(TabBDMenus[Quantité menu légumes],TabBDMenus[Nom menu légumes],$A28,TabBDMenus[Nom mois menu],$K$3)+SUMIFS(TabBDMenus[Quantité menu légume deux],TabBDMenus[Nom menu légume deux],$A28,TabBDMenus[Nom mois menu],$K$3)","v":0},{"$f":"SUMIFS(TabBDMenus[Quantité menu légumes],TabBDMenus[Nom menu légumes],$A28,TabBDMenus[Nom mois menu],$L$3)+SUMIFS(TabBDMenus[Quantité menu légume deux],TabBDMenus[Nom menu légume deux],$A28,TabBDMenus[Nom mois menu],$L$3)","v":0},{"$f":"SUMIFS(TabBDMenus[Quantité menu légumes],TabBDMenus[Nom menu légumes],$A28,TabBDMenus[Nom mois menu],$M$3)+SUMIFS(TabBDMenus[Quantité menu légume deux],TabBDMenus[Nom menu légume deux],$A28,TabBDMenus[Nom mois menu],$M$3)","v":0},0]
["Pomme de terre",{"$f":"SUMIFS(TabBDMenus[Quantité menu légumes],TabBDMenus[Nom menu légumes],$A29,TabBDMenus[Nom mois menu],$B$3)+SUMIFS(TabBDMenus[Quantité menu légume deux],TabBDMenus[Nom menu légume deux],$A29,TabBDMenus[Nom mois menu],$B$3)","v":0},{"$f":"SUMIFS(TabBDMenus[Quantité menu légumes],TabBDMenus[Nom menu légumes],$A29,TabBDMenus[Nom mois menu],$C$3)+SUMIFS(TabBDMenus[Quantité menu légume deux],TabBDMenus[Nom menu légume deux],$A29,TabBDMenus[Nom mois menu],$C$3)","v":0},{"$f":"SUMIFS(TabBDMenus[Quantité menu légumes],TabBDMenus[Nom menu légumes],$A29,TabBDMenus[Nom mois menu],$D$3)+SUMIFS(TabBDMenus[Quantité menu légume deux],TabBDMenus[Nom menu légume deux],$A29,TabBDMenus[Nom mois menu],$D$3)","v":0},{"$f":"SUMIFS(TabBDMenus[Quantité menu légumes],TabBDMenus[Nom menu légumes],$A29,TabBDMenus[Nom mois menu],$E$3)+SUMIFS(TabBDMenus[Quantité menu légume deux],TabBDMenus[Nom menu légume deux],$A29,TabBDMenus[Nom mois menu],$E$3)","v":0},{"$f":"SUMIFS(TabBDMenus[Quantité menu légumes],TabBDMenus[Nom menu légumes],$A29,TabBDMenus[Nom mois menu],$F$3)+SUMIFS(TabBDMenus[Quantité menu légume deux],TabBDMenus[Nom menu légume deux],$A29,TabBDMenus[Nom mois menu],$F$3)","v":0},{"$f":"SUMIFS(TabBDMenus[Quantité menu légumes],TabBDMenus[Nom menu légumes],$A29,TabBDMenus[Nom mois menu],$G$3)+SUMIFS(TabBDMenus[Quantité menu légume deux],TabBDMenus[Nom menu légume deux],$A29,TabBDMenus[Nom mois menu],$G$3)","v":0},{"$f":"SUMIFS(TabBDMenus[Quantité menu légumes],TabBDMenus[Nom menu légumes],$A29,TabBDMenus[Nom mois menu],$H$3)+SUMIFS(TabBDMenus[Quantité menu légume deux],TabBDMenus[Nom menu légume deux],$A29,TabBDMenus[Nom mois menu],$H$3)","v":0},{"$f":"SUMIFS(TabBDMenus[Quantité menu légumes],TabBDMenus[Nom menu légumes],$A29,TabBDMenus[Nom mois menu],$I$3)+SUMIFS(TabBDMenus[Quantité menu légume deux],TabBDMenus[Nom menu légume deux],$A29,TabBDMenus[Nom mois menu],$I$3)","v":0},{"$f":"SUMIFS(TabBDMenus[Quantité menu légumes],TabBDMenus[Nom menu légumes],$A29,TabBDMenus[Nom mois menu],$J$3)+SUMIFS(TabBDMenus[Quantité menu légume deux],TabBDMenus[Nom menu légume deux],$A29,TabBDMenus[Nom mois menu],$J$3)","v":0},{"$f":"SUMIFS(TabBDMenus[Quantité menu légumes],TabBDMenus[Nom menu légumes],$A29,TabBDMenus[Nom mois menu],$K$3)+SUMIFS(TabBDMenus[Quantité menu légume deux],TabBDMenus[Nom menu légume deux],$A29,TabBDMenus[Nom mois menu],$K$3)","v":0},{"$f":"SUMIFS(TabBDMenus[Quantité menu légumes],TabBDMenus[Nom menu légumes],$A29,TabBDMenus[Nom mois menu],$L$3)+SUMIFS(TabBDMenus[Quantité menu légume deux],TabBDMenus[Nom menu légume deux],$A29,TabBDMenus[Nom mois menu],$L$3)","v":0},{"$f":"SUMIFS(TabBDMenus[Quantité menu légumes],TabBDMenus[Nom menu légumes],$A29,TabBDMenus[Nom mois menu],$M$3)+SUMIFS(TabBDMenus[Quantité menu légume deux],TabBDMenus[Nom menu légume deux],$A29,TabBDMenus[Nom mois menu],$M$3)","v":0},0]
["Purée",{"$f":"SUMIFS(TabBDMenus[Quantité menu légumes],TabBDMenus[Nom menu légumes],$A30,TabBDMenus[Nom mois menu],$B$3)+SUMIFS(TabBDMenus[Quantité menu légume deux],TabBDMenus[Nom menu légume deux],$A30,TabBDMenus[Nom mois menu],$B$3)","v":0},{"$f":"SUMIFS(TabBDMenus[Quantité menu légumes],TabBDMenus[Nom menu légumes],$A30,TabBDMenus[Nom mois menu],$C$3)+SUMIFS(TabBDMenus[Quantité menu légume deux],TabBDMenus[Nom menu légume deux],$A30,TabBDMenus[Nom mois menu],$C$3)","v":0},{"$f":"SUMIFS(TabBDMenus[Quantité menu légumes],TabBDMenus[Nom menu légumes],$A30,TabBDMenus[Nom mois menu],$D$3)+SUMIFS(TabBDMenus[Quantité menu légume deux],TabBDMenus[Nom menu légume deux],$A30,TabBDMenus[Nom mois menu],$D$3)","v":0},{"$f":"SUMIFS(TabBDMenus[Quantité menu légumes],TabBDMenus[Nom menu légumes],$A30,TabBDMenus[Nom mois menu],$E$3)+SUMIFS(TabBDMenus[Quantité menu légume deux],TabBDMenus[Nom menu légume deux],$A30,TabBDMenus[Nom mois menu],$E$3)","v":0},{"$f":"SUMIFS(TabBDMenus[Quantité menu légumes],TabBDMenus[Nom menu légumes],$A30,TabBDMenus[Nom mois menu],$F$3)+SUMIFS(TabBDMenus[Quantité menu légume deux],TabBDMenus[Nom menu légume deux],$A30,TabBDMenus[Nom mois menu],$F$3)","v":0},{"$f":"SUMIFS(TabBDMenus[Quantité menu légumes],TabBDMenus[Nom menu légumes],$A30,TabBDMenus[Nom mois menu],$G$3)+SUMIFS(TabBDMenus[Quantité menu légume deux],TabBDMenus[Nom menu légume deux],$A30,TabBDMenus[Nom mois menu],$G$3)","v":0},{"$f":"SUMIFS(TabBDMenus[Quantité menu légumes],TabBDMenus[Nom menu légumes],$A30,TabBDMenus[Nom mois menu],$H$3)+SUMIFS(TabBDMenus[Quantité menu légume deux],TabBDMenus[Nom menu légume deux],$A30,TabBDMenus[Nom mois menu],$H$3)","v":0},{"$f":"SUMIFS(TabBDMenus[Quantité menu légumes],TabBDMenus[Nom menu légumes],$A30,TabBDMenus[Nom mois menu],$I$3)+SUMIFS(TabBDMenus[Quantité menu légume deux],TabBDMenus[Nom menu légume deux],$A30,TabBDMenus[Nom mois menu],$I$3)","v":0},{"$f":"SUMIFS(TabBDMenus[Quantité menu légumes],TabBDMenus[Nom menu légumes],$A30,TabBDMenus[Nom mois menu],$J$3)+SUMIFS(TabBDMenus[Quantité menu légume deux],TabBDMenus[Nom menu légume deux],$A30,TabBDMenus[Nom mois menu],$J$3)","v":0},{"$f":"SUMIFS(TabBDMenus[Quantité menu légumes],TabBDMenus[Nom menu légumes],$A30,TabBDMenus[Nom mois menu],$K$3)+SUMIFS(TabBDMenus[Quantité menu légume deux],TabBDMenus[Nom menu légume deux],$A30,TabBDMenus[Nom mois menu],$K$3)","v":0},{"$f":"SUMIFS(TabBDMenus[Quantité menu légumes],TabBDMenus[Nom menu légumes],$A30,TabBDMenus[Nom mois menu],$L$3)+SUMIFS(TabBDMenus[Quantité menu légume deux],TabBDMenus[Nom menu légume deux],$A30,TabBDMenus[Nom mois menu],$L$3)","v":0},{"$f":"SUMIFS(TabBDMenus[Quantité menu légumes],TabBDMenus[Nom menu légumes],$A30,TabBDMenus[Nom mois menu],$M$3)+SUMIFS(TabBDMenus[Quantité menu légume deux],TabBDMenus[Nom menu légume deux],$A30,TabBDMenus[Nom mois menu],$M$3)","v":0},0]
["Quenelles",{"$f":"SUMIFS(TabBDMenus[Quantité menu légumes],TabBDMenus[Nom menu légumes],$A31,TabBDMenus[Nom mois menu],$B$3)+SUMIFS(TabBDMenus[Quantité menu légume deux],TabBDMenus[Nom menu légume deux],$A31,TabBDMenus[Nom mois menu],$B$3)","v":0},{"$f":"SUMIFS(TabBDMenus[Quantité menu légumes],TabBDMenus[Nom menu légumes],$A31,TabBDMenus[Nom mois menu],$C$3)+SUMIFS(TabBDMenus[Quantité menu légume deux],TabBDMenus[Nom menu légume deux],$A31,TabBDMenus[Nom mois menu],$C$3)","v":0},{"$f":"SUMIFS(TabBDMenus[Quantité menu légumes],TabBDMenus[Nom menu légumes],$A31,TabBDMenus[Nom mois menu],$D$3)+SUMIFS(TabBDMenus[Quantité menu légume deux],TabBDMenus[Nom menu légume deux],$A31,TabBDMenus[Nom mois menu],$D$3)","v":0},{"$f":"SUMIFS(TabBDMenus[Quantité menu légumes],TabBDMenus[Nom menu légumes],$A31,TabBDMenus[Nom mois menu],$E$3)+SUMIFS(TabBDMenus[Quantité menu légume deux],TabBDMenus[Nom menu légume deux],$A31,TabBDMenus[Nom mois menu],$E$3)","v":0},{"$f":"SUMIFS(TabBDMenus[Quantité menu légumes],TabBDMenus[Nom menu légumes],$A31,TabBDMenus[Nom mois menu],$F$3)+SUMIFS(TabBDMenus[Quantité menu légume deux],TabBDMenus[Nom menu légume deux],$A31,TabBDMenus[Nom mois menu],$F$3)","v":0},{"$f":"SUMIFS(TabBDMenus[Quantité menu légumes],TabBDMenus[Nom menu légumes],$A31,TabBDMenus[Nom mois menu],$G$3)+SUMIFS(TabBDMenus[Quantité menu légume deux],TabBDMenus[Nom menu légume deux],$A31,TabBDMenus[Nom mois menu],$G$3)","v":0},{"$f":"SUMIFS(TabBDMenus[Quantité menu légumes],TabBDMenus[Nom menu légumes],$A31,TabBDMenus[Nom mois menu],$H$3)+SUMIFS(TabBDMenus[Quantité menu légume deux],TabBDMenus[Nom menu légume deux],$A31,TabBDMenus[Nom mois menu],$H$3)","v":0},{"$f":"SUMIFS(TabBDMenus[Quantité menu légumes],TabBDMenus[Nom menu légumes],$A31,TabBDMenus[Nom mois menu],$I$3)+SUMIFS(TabBDMenus[Quantité menu légume deux],TabBDMenus[Nom menu légume deux],$A31,TabBDMenus[Nom mois menu],$I$3)","v":0},{"$f":"SUMIFS(TabBDMenus[Quantité menu légumes],TabBDMenus[Nom menu légumes],$A31,TabBDMenus[Nom mois menu],$J$3)+SUMIFS(TabBDMenus[Quantité menu légume deux],TabBDMenus[Nom menu légume deux],$A31,TabBDMenus[Nom mois menu],$J$3)","v":0},{"$f":"SUMIFS(TabBDMenus[Quantité menu légumes],TabBDMenus[Nom menu légumes],$A31,TabBDMenus[Nom mois menu],$K$3)+SUMIFS(TabBDMenus[Quantité menu légume deux],TabBDMenus[Nom menu légume deux],$A31,TabBDMenus[Nom mois menu],$K$3)","v":0},{"$f":"SUMIFS(TabBDMenus[Quantité menu légumes],TabBDMenus[Nom menu légumes],$A31,TabBDMenus[Nom mois menu],$L$3)+SUMIFS(TabBDMenus[Quantité menu légume deux],TabBDMenus[Nom menu légume deux],$A31,TabBDMenus[Nom mois menu],$L$3)","v":0},{"$f":"SUMIFS(TabBDMenus[Quantité menu légumes],TabBDMenus[Nom menu légumes],$A31,TabBDMenus[Nom mois menu],$M$3)+SUMIFS(TabBDMenus[Quantité menu légume deux],TabBDMenus[Nom menu légume deux],$A31,TabBDMenus[Nom mois menu],$M$3)","v":0},0]
["Radis",{"$f":"SUMIFS(TabBDMenus[Quantité menu légumes],TabBDMenus[Nom menu légumes],$A32,TabBDMenus[Nom mois menu],$B$3)+SUMIFS(TabBDMenus[Quantité menu légume deux],TabBDMenus[Nom menu légume deux],$A32,TabBDMenus[Nom mois menu],$B$3)","v":0},{"$f":"SUMIFS(TabBDMenus[Quantité menu légumes],TabBDMenus[Nom menu légumes],$A32,TabBDMenus[Nom mois menu],$C$3)+SUMIFS(TabBDMenus[Quantité menu légume deux],TabBDMenus[Nom menu légume deux],$A32,TabBDMenus[Nom mois menu],$C$3)","v":0},{"$f":"SUMIFS(TabBDMenus[Quantité menu légumes],TabBDMenus[Nom menu légumes],$A32,TabBDMenus[Nom mois menu],$D$3)+SUMIFS(TabBDMenus[Quantité menu légume deux],TabBDMenus[Nom menu légume deux],$A32,TabBDMenus[Nom mois menu],$D$3)","v":0},{"$f":"SUMIFS(TabBDMenus[Quantité menu légumes],TabBDMenus[Nom menu légumes],$A32,TabBDMenus[Nom mois menu],$E$3)+SUMIFS(TabBDMenus[Quantité menu légume deux],TabBDMenus[Nom menu légume deux],$A32,TabBDMenus[Nom mois menu],$E$3)","v":0},{"$f":"SUMIFS(TabBDMenus[Quantité menu légumes],TabBDMenus[Nom menu légumes],$A32,TabBDMenus[Nom mois menu],$F$3)+SUMIFS(TabBDMenus[Quantité menu légume deux],TabBDMenus[Nom menu légume deux],$A32,TabBDMenus[Nom mois menu],$F$3)","v":0},{"$f":"SUMIFS(TabBDMenus[Quantité menu légumes],TabBDMenus[Nom menu légumes],$A32,TabBDMenus[Nom mois menu],$G$3)+SUMIFS(TabBDMenus[Quantité menu légume deux],TabBDMenus[Nom menu légume deux],$A32,TabBDMenus[Nom mois menu],$G$3)","v":0},{"$f":"SUMIFS(TabBDMenus[Quantité menu légumes],TabBDMenus[Nom menu légumes],$A32,TabBDMenus[Nom mois menu],$H$3)+SUMIFS(TabBDMenus[Quantité menu légume deux],TabBDMenus[Nom menu légume deux],$A32,TabBDMenus[Nom mois menu],$H$3)","v":0},{"$f":"SUMIFS(TabBDMenus[Quantité menu légumes],TabBDMenus[Nom menu légumes],$A32,TabBDMenus[Nom mois menu],$I$3)+SUMIFS(TabBDMenus[Quantité menu légume deux],TabBDMenus[Nom menu légume deux],$A32,TabBDMenus[Nom mois menu],$I$3)","v":0},{"$f":"SUMIFS(TabBDMenus[Quantité menu légumes],TabBDMenus[Nom menu légumes],$A32,TabBDMenus[Nom mois menu],$J$3)+SUMIFS(TabBDMenus[Quantité menu légume deux],TabBDMenus[Nom menu légume deux],$A32,TabBDMenus[Nom mois menu],$J$3)","v":0},{"$f":"SUMIFS(TabBDMenus[Quantité menu légumes],TabBDMenus[Nom menu légumes],$A32,TabBDMenus[Nom mois menu],$K$3)+SUMIFS(TabBDMenus[Quantité menu légume deux],TabBDMenus[Nom menu légume deux],$A32,TabBDMenus[Nom mois menu],$K$3)","v":0},{"$f":"SUMIFS(TabBDMenus[Quantité menu légumes],TabBDMenus[Nom menu légumes],$A32,TabBDMenus[Nom mois menu],$L$3)+SUMIFS(TabBDMenus[Quantité menu légume deux],TabBDMenus[Nom menu légume deux],$A32,TabBDMenus[Nom mois menu],$L$3)","v":0},{"$f":"SUMIFS(TabBDMenus[Quantité menu légumes],TabBDMenus[Nom menu légumes],$A32,TabBDMenus[Nom mois menu],$M$3)+SUMIFS(TabBDMenus[Quantité menu légume deux],TabBDMenus[Nom menu légume deux],$A32,TabBDMenus[Nom mois menu],$M$3)","v":0},0]
["Ratatouille",{"$f":"SUMIFS(TabBDMenus[Quantité menu légumes],TabBDMenus[Nom menu légumes],$A33,TabBDMenus[Nom mois menu],$B$3)+SUMIFS(TabBDMenus[Quantité menu légume deux],TabBDMenus[Nom menu légume deux],$A33,TabBDMenus[Nom mois menu],$B$3)","v":0},{"$f":"SUMIFS(TabBDMenus[Quantité menu légumes],TabBDMenus[Nom menu légumes],$A33,TabBDMenus[Nom mois menu],$C$3)+SUMIFS(TabBDMenus[Quantité menu légume deux],TabBDMenus[Nom menu légume deux],$A33,TabBDMenus[Nom mois menu],$C$3)","v":0},{"$f":"SUMIFS(TabBDMenus[Quantité menu légumes],TabBDMenus[Nom menu légumes],$A33,TabBDMenus[Nom mois menu],$D$3)+SUMIFS(TabBDMenus[Quantité menu légume deux],TabBDMenus[Nom menu légume deux],$A33,TabBDMenus[Nom mois menu],$D$3)","v":0},{"$f":"SUMIFS(TabBDMenus[Quantité menu légumes],TabBDMenus[Nom menu légumes],$A33,TabBDMenus[Nom mois menu],$E$3)+SUMIFS(TabBDMenus[Quantité menu légume deux],TabBDMenus[Nom menu légume deux],$A33,TabBDMenus[Nom mois menu],$E$3)","v":0},{"$f":"SUMIFS(TabBDMenus[Quantité menu légumes],TabBDMenus[Nom menu légumes],$A33,TabBDMenus[Nom mois menu],$F$3)+SUMIFS(TabBDMenus[Quantité menu légume deux],TabBDMenus[Nom menu légume deux],$A33,TabBDMenus[Nom mois menu],$F$3)","v":0},{"$f":"SUMIFS(TabBDMenus[Quantité menu légumes],TabBDMenus[Nom menu légumes],$A33,TabBDMenus[Nom mois menu],$G$3)+SUMIFS(TabBDMenus[Quantité menu légume deux],TabBDMenus[Nom menu légume deux],$A33,TabBDMenus[Nom mois menu],$G$3)","v":0},{"$f":"SUMIFS(TabBDMenus[Quantité menu légumes],TabBDMenus[Nom menu légumes],$A33,TabBDMenus[Nom mois menu],$H$3)+SUMIFS(TabBDMenus[Quantité menu légume deux],TabBDMenus[Nom menu légume deux],$A33,TabBDMenus[Nom mois menu],$H$3)","v":0},{"$f":"SUMIFS(TabBDMenus[Quantité menu légumes],TabBDMenus[Nom menu légumes],$A33,TabBDMenus[Nom mois menu],$I$3)+SUMIFS(TabBDMenus[Quantité menu légume deux],TabBDMenus[Nom menu légume deux],$A33,TabBDMenus[Nom mois menu],$I$3)","v":0},{"$f":"SUMIFS(TabBDMenus[Quantité menu légumes],TabBDMenus[Nom menu légumes],$A33,TabBDMenus[Nom mois menu],$J$3)+SUMIFS(TabBDMenus[Quantité menu légume deux],TabBDMenus[Nom menu légume deux],$A33,TabBDMenus[Nom mois menu],$J$3)","v":0},{"$f":"SUMIFS(TabBDMenus[Quantité menu légumes],TabBDMenus[Nom menu légumes],$A33,TabBDMenus[Nom mois menu],$K$3)+SUMIFS(TabBDMenus[Quantité menu légume deux],TabBDMenus[Nom menu légume deux],$A33,TabBDMenus[Nom mois menu],$K$3)","v":0},{"$f":"SUMIFS(TabBDMenus[Quantité menu légumes],TabBDMenus[Nom menu légumes],$A33,TabBDMenus[Nom mois menu],$L$3)+SUMIFS(TabBDMenus[Quantité menu légume deux],TabBDMenus[Nom menu légume deux],$A33,TabBDMenus[Nom mois menu],$L$3)","v":0},{"$f":"SUMIFS(TabBDMenus[Quantité menu légumes],TabBDMenus[Nom menu légumes],$A33,TabBDMenus[Nom mois menu],$M$3)+SUMIFS(TabBDMenus[Quantité menu légume deux],TabBDMenus[Nom menu légume deux],$A33,TabBDMenus[Nom mois menu],$M$3)","v":0},0]
["Raviolis",{"$f":"SUMIFS(TabBDMenus[Quantité menu légumes],TabBDMenus[Nom menu légumes],$A34,TabBDMenus[Nom mois menu],$B$3)+SUMIFS(TabBDMenus[Quantité menu légume deux],TabBDMenus[Nom menu légume deux],$A34,TabBDMenus[Nom mois menu],$B$3)","v":0},{"$f":"SUMIFS(TabBDMenus[Quantité menu légumes],TabBDMenus[Nom menu légumes],$A34,TabBDMenus[Nom mois menu],$C$3)+SUMIFS(TabBDMenus[Quantité menu légume deux],TabBDMenus[Nom menu légume deux],$A34,TabBDMenus[Nom mois menu],$C$3)","v":0},{"$f":"SUMIFS(TabBDMenus[Quantité menu légumes],TabBDMenus[Nom menu légumes],$A34,TabBDMenus[Nom mois menu],$D$3)+SUMIFS(TabBDMenus[Quantité menu légume deux],TabBDMenus[Nom menu légume deux],$A34,TabBDMenus[Nom mois menu],$D$3)","v":0},{"$f":"SUMIFS(TabBDMenus[Quantité menu légumes],TabBDMenus[Nom menu légumes],$A34,TabBDMenus[Nom mois menu],$E$3)+SUMIFS(TabBDMenus[Quantité menu légume deux],TabBDMenus[Nom menu légume deux],$A34,TabBDMenus[Nom mois menu],$E$3)","v":0},{"$f":"SUMIFS(TabBDMenus[Quantité menu légumes],TabBDMenus[Nom menu légumes],$A34,TabBDMenus[Nom mois menu],$F$3)+SUMIFS(TabBDMenus[Quantité menu légume deux],TabBDMenus[Nom menu légume deux],$A34,TabBDMenus[Nom mois menu],$F$3)","v":0},{"$f":"SUMIFS(TabBDMenus[Quantité menu légumes],TabBDMenus[Nom menu légumes],$A34,TabBDMenus[Nom mois menu],$G$3)+SUMIFS(TabBDMenus[Quantité menu légume deux],TabBDMenus[Nom menu légume deux],$A34,TabBDMenus[Nom mois menu],$G$3)","v":0},{"$f":"SUMIFS(TabBDMenus[Quantité menu légumes],TabBDMenus[Nom menu légumes],$A34,TabBDMenus[Nom mois menu],$H$3)+SUMIFS(TabBDMenus[Quantité menu légume deux],TabBDMenus[Nom menu légume deux],$A34,TabBDMenus[Nom mois menu],$H$3)","v":0},{"$f":"SUMIFS(TabBDMenus[Quantité menu légumes],TabBDMenus[Nom menu légumes],$A34,TabBDMenus[Nom mois menu],$I$3)+SUMIFS(TabBDMenus[Quantité menu légume deux],TabBDMenus[Nom menu légume deux],$A34,TabBDMenus[Nom mois menu],$I$3)","v":0},{"$f":"SUMIFS(TabBDMenus[Quantité menu légumes],TabBDMenus[Nom menu légumes],$A34,TabBDMenus[Nom mois menu],$J$3)+SUMIFS(TabBDMenus[Quantité menu légume deux],TabBDMenus[Nom menu légume deux],$A34,TabBDMenus[Nom mois menu],$J$3)","v":0},{"$f":"SUMIFS(TabBDMenus[Quantité menu légumes],TabBDMenus[Nom menu légumes],$A34,TabBDMenus[Nom mois menu],$K$3)+SUMIFS(TabBDMenus[Quantité menu légume deux],TabBDMenus[Nom menu légume deux],$A34,TabBDMenus[Nom mois menu],$K$3)","v":0},{"$f":"SUMIFS(TabBDMenus[Quantité menu légumes],TabBDMenus[Nom menu légumes],$A34,TabBDMenus[Nom mois menu],$L$3)+SUMIFS(TabBDMenus[Quantité menu légume deux],TabBDMenus[Nom menu légume deux],$A34,TabBDMenus[Nom mois menu],$L$3)","v":0},{"$f":"SUMIFS(TabBDMenus[Quantité menu légumes],TabBDMenus[Nom menu légumes],$A34,TabBDMenus[Nom mois menu],$M$3)+SUMIFS(TabBDMenus[Quantité menu légume deux],TabBDMenus[Nom menu légume deux],$A34,TabBDMenus[Nom mois menu],$M$3)","v":0},0]
["Riz",{"$f":"SUMIFS(TabBDMenus[Quantité menu légumes],TabBDMenus[Nom menu légumes],$A35,TabBDMenus[Nom mois menu],$B$3)+SUMIFS(TabBDMenus[Quantité menu légume deux],TabBDMenus[Nom menu légume deux],$A35,TabBDMenus[Nom mois menu],$B$3)","v":0},{"$f":"SUMIFS(TabBDMenus[Quantité menu légumes],TabBDMenus[Nom menu légumes],$A35,TabBDMenus[Nom mois menu],$C$3)+SUMIFS(TabBDMenus[Quantité menu légume deux],TabBDMenus[Nom menu légume deux],$A35,TabBDMenus[Nom mois menu],$C$3)","v":0},{"$f":"SUMIFS(TabBDMenus[Quantité menu légumes],TabBDMenus[Nom menu légumes],$A35,TabBDMenus[Nom mois menu],$D$3)+SUMIFS(TabBDMenus[Quantité menu légume deux],TabBDMenus[Nom menu légume deux],$A35,TabBDMenus[Nom mois menu],$D$3)","v":0},{"$f":"SUMIFS(TabBDMenus[Quantité menu légumes],TabBDMenus[Nom menu légumes],$A35,TabBDMenus[Nom mois menu],$E$3)+SUMIFS(TabBDMenus[Quantité menu légume deux],TabBDMenus[Nom menu légume deux],$A35,TabBDMenus[Nom mois menu],$E$3)","v":0},{"$f":"SUMIFS(TabBDMenus[Quantité menu légumes],TabBDMenus[Nom menu légumes],$A35,TabBDMenus[Nom mois menu],$F$3)+SUMIFS(TabBDMenus[Quantité menu légume deux],TabBDMenus[Nom menu légume deux],$A35,TabBDMenus[Nom mois menu],$F$3)","v":0},{"$f":"SUMIFS(TabBDMenus[Quantité menu légumes],TabBDMenus[Nom menu légumes],$A35,TabBDMenus[Nom mois menu],$G$3)+SUMIFS(TabBDMenus[Quantité menu légume deux],TabBDMenus[Nom menu légume deux],$A35,TabBDMenus[Nom mois menu],$G$3)","v":0},{"$f":"SUMIFS(TabBDMenus[Quantité menu légumes],TabBDMenus[Nom menu légumes],$A35,TabBDMenus[Nom mois menu],$H$3)+SUMIFS(TabBDMenus[Quantité menu légume deux],TabBDMenus[Nom menu légume deux],$A35,TabBDMenus[Nom mois menu],$H$3)","v":0},{"$f":"SUMIFS(TabBDMenus[Quantité menu légumes],TabBDMenus[Nom menu légumes],$A35,TabBDMenus[Nom mois menu],$I$3)+SUMIFS(TabBDMenus[Quantité menu légume deux],TabBDMenus[Nom menu légume deux],$A35,TabBDMenus[Nom mois menu],$I$3)","v":0},{"$f":"SUMIFS(TabBDMenus[Quantité menu légumes],TabBDMenus[Nom menu légumes],$A35,TabBDMenus[Nom mois menu],$J$3)+SUMIFS(TabBDMenus[Quantité menu légume deux],TabBDMenus[Nom menu légume deux],$A35,TabBDMenus[Nom mois menu],$J$3)","v":0},{"$f":"SUMIFS(TabBDMenus[Quantité menu légumes],TabBDMenus[Nom menu légumes],$A35,TabBDMenus[Nom mois menu],$K$3)+SUMIFS(TabBDMenus[Quantité menu légume deux],TabBDMenus[Nom menu légume deux],$A35,TabBDMenus[Nom mois menu],$K$3)","v":0},{"$f":"SUMIFS(TabBDMenus[Quantité menu légumes],TabBDMenus[Nom menu légumes],$A35,TabBDMenus[Nom mois menu],$L$3)+SUMIFS(TabBDMenus[Quantité menu légume deux],TabBDMenus[Nom menu légume deux],$A35,TabBDMenus[Nom mois menu],$L$3)","v":0},{"$f":"SUMIFS(TabBDMenus[Quantité menu légumes],TabBDMenus[Nom menu légumes],$A35,TabBDMenus[Nom mois menu],$M$3)+SUMIFS(TabBDMenus[Quantité menu légume deux],TabBDMenus[Nom menu légume deux],$A35,TabBDMenus[Nom mois menu],$M$3)","v":0},0]
["Salade",{"$f":"SUMIFS(TabBDMenus[Quantité menu légumes],TabBDMenus[Nom menu légumes],$A36,TabBDMenus[Nom mois menu],$B$3)+SUMIFS(TabBDMenus[Quantité menu légume deux],TabBDMenus[Nom menu légume deux],$A36,TabBDMenus[Nom mois menu],$B$3)","v":0},{"$f":"SUMIFS(TabBDMenus[Quantité menu légumes],TabBDMenus[Nom menu légumes],$A36,TabBDMenus[Nom mois menu],$C$3)+SUMIFS(TabBDMenus[Quantité menu légume deux],TabBDMenus[Nom menu légume deux],$A36,TabBDMenus[Nom mois menu],$C$3)","v":0},{"$f":"SUMIFS(TabBDMenus[Quantité menu légumes],TabBDMenus[Nom menu légumes],$A36,TabBDMenus[Nom mois menu],$D$3)+SUMIFS(TabBDMenus[Quantité menu légume deux],TabBDMenus[Nom menu légume deux],$A36,TabBDMenus[Nom mois menu],$D$3)","v":0},{"$f":"SUMIFS(TabBDMenus[Quantité menu légumes],TabBDMenus[Nom menu légumes],$A36,TabBDMenus[Nom mois menu],$E$3)+SUMIFS(TabBDMenus[Quantité menu légume deux],TabBDMenus[Nom menu légume deux],$A36,TabBDMenus[Nom mois menu],$E$3)","v":0},{"$f":"SUMIFS(TabBDMenus[Quantité menu légumes],TabBDMenus[Nom menu légumes],$A36,TabBDMenus[Nom mois menu],$F$3)+SUMIFS(TabBDMenus[Quantité menu légume deux],TabBDMenus[Nom menu légume deux],$A36,TabBDMenus[Nom mois menu],$F$3)","v":0},{"$f":"SUMIFS(TabBDMenus[Quantité menu légumes],TabBDMenus[Nom menu légumes],$A36,TabBDMenus[Nom mois menu],$G$3)+SUMIFS(TabBDMenus[Quantité menu légume deux],TabBDMenus[Nom menu légume deux],$A36,TabBDMenus[Nom mois menu],$G$3)","v":0},{"$f":"SUMIFS(TabBDMenus[Quantité menu légumes],TabBDMenus[Nom menu légumes],$A36,TabBDMenus[Nom mois menu],$H$3)+SUMIFS(TabBDMenus[Quantité menu légume deux],TabBDMenus[Nom menu légume deux],$A36,TabBDMenus[Nom mois menu],$H$3)","v":0},{"$f":"SUMIFS(TabBDMenus[Quantité menu légumes],TabBDMenus[Nom menu légumes],$A36,TabBDMenus[Nom mois menu],$I$3)+SUMIFS(TabBDMenus[Quantité menu légume deux],TabBDMenus[Nom menu légume deux],$A36,TabBDMenus[Nom mois menu],$I$3)","v":0},{"$f":"SUMIFS(TabBDMenus[Quantité menu légumes],TabBDMenus[Nom menu légumes],$A36,TabBDMenus[Nom mois menu],$J$3)+SUMIFS(TabBDMenus[Quantité menu légume deux],TabBDMenus[Nom menu légume deux],$A36,TabBDMenus[Nom mois menu],$J$3)","v":0},{"$f":"SUMIFS(TabBDMenus[Quantité menu légumes],TabBDMenus[Nom menu légumes],$A36,TabBDMenus[Nom mois menu],$K$3)+SUMIFS(TabBDMenus[Quantité menu légume deux],TabBDMenus[Nom menu légume deux],$A36,TabBDMenus[Nom mois menu],$K$3)","v":0},{"$f":"SUMIFS(TabBDMenus[Quantité menu légumes],TabBDMenus[Nom menu légumes],$A36,TabBDMenus[Nom mois menu],$L$3)+SUMIFS(TabBDMenus[Quantité menu légume deux],TabBDMenus[Nom menu légume deux],$A36,TabBDMenus[Nom mois menu],$L$3)","v":0},{"$f":"SUMIFS(TabBDMenus[Quantité menu légumes],TabBDMenus[Nom menu légumes],$A36,TabBDMenus[Nom mois menu],$M$3)+SUMIFS(TabBDMenus[Quantité menu légume deux],TabBDMenus[Nom menu légume deux],$A36,TabBDMenus[Nom mois menu],$M$3)","v":0},0]
["Salsifis",{"$f":"SUMIFS(TabBDMenus[Quantité menu légumes],TabBDMenus[Nom menu légumes],$A37,TabBDMenus[Nom mois menu],$B$3)+SUMIFS(TabBDMenus[Quantité menu légume deux],TabBDMenus[Nom menu légume deux],$A37,TabBDMenus[Nom mois menu],$B$3)","v":0},{"$f":"SUMIFS(TabBDMenus[Quantité menu légumes],TabBDMenus[Nom menu légumes],$A37,TabBDMenus[Nom mois menu],$C$3)+SUMIFS(TabBDMenus[Quantité menu légume deux],TabBDMenus[Nom menu légume deux],$A37,TabBDMenus[Nom mois menu],$C$3)","v":0},{"$f":"SUMIFS(TabBDMenus[Quantité menu légumes],TabBDMenus[Nom menu légumes],$A37,TabBDMenus[Nom mois menu],$D$3)+SUMIFS(TabBDMenus[Quantité menu légume deux],TabBDMenus[Nom menu légume deux],$A37,TabBDMenus[Nom mois menu],$D$3)","v":0},{"$f":"SUMIFS(TabBDMenus[Quantité menu légumes],TabBDMenus[Nom menu légumes],$A37,TabBDMenus[Nom mois menu],$E$3)+SUMIFS(TabBDMenus[Quantité menu légume deux],TabBDMenus[Nom menu légume deux],$A37,TabBDMenus[Nom mois menu],$E$3)","v":0},{"$f":"SUMIFS(TabBDMenus[Quantité menu légumes],TabBDMenus[Nom menu légumes],$A37,TabBDMenus[Nom mois menu],$F$3)+SUMIFS(TabBDMenus[Quantité menu légume deux],TabBDMenus[Nom menu légume deux],$A37,TabBDMenus[Nom mois menu],$F$3)","v":0},{"$f":"SUMIFS(TabBDMenus[Quantité menu légumes],TabBDMenus[Nom menu légumes],$A37,TabBDMenus[Nom mois menu],$G$3)+SUMIFS(TabBDMenus[Quantité menu légume deux],TabBDMenus[Nom menu légume deux],$A37,TabBDMenus[Nom mois menu],$G$3)","v":0},{"$f":"SUMIFS(TabBDMenus[Quantité menu légumes],TabBDMenus[Nom menu légumes],$A37,TabBDMenus[Nom mois menu],$H$3)+SUMIFS(TabBDMenus[Quantité menu légume deux],TabBDMenus[Nom menu légume deux],$A37,TabBDMenus[Nom mois menu],$H$3)","v":0},{"$f":"SUMIFS(TabBDMenus[Quantité menu légumes],TabBDMenus[Nom menu légumes],$A37,TabBDMenus[Nom mois menu],$I$3)+SUMIFS(TabBDMenus[Quantité menu légume deux],TabBDMenus[Nom menu légume deux],$A37,TabBDMenus[Nom mois menu],$I$3)","v":0},{"$f":"SUMIFS(TabBDMenus[Quantité menu légumes],TabBDMenus[Nom menu légumes],$A37,TabBDMenus[Nom mois menu],$J$3)+SUMIFS(TabBDMenus[Quantité menu légume deux],TabBDMenus[Nom menu légume deux],$A37,TabBDMenus[Nom mois menu],$J$3)","v":0},{"$f":"SUMIFS(TabBDMenus[Quantité menu légumes],TabBDMenus[Nom menu légumes],$A37,TabBDMenus[Nom mois menu],$K$3)+SUMIFS(TabBDMenus[Quantité menu légume deux],TabBDMenus[Nom menu légume deux],$A37,TabBDMenus[Nom mois menu],$K$3)","v":0},{"$f":"SUMIFS(TabBDMenus[Quantité menu légumes],TabBDMenus[Nom menu légumes],$A37,TabBDMenus[Nom mois menu],$L$3)+SUMIFS(TabBDMenus[Quantité menu légume deux],TabBDMenus[Nom menu légume deux],$A37,TabBDMenus[Nom mois menu],$L$3)","v":0},{"$f":"SUMIFS(TabBDMenus[Quantité menu légumes],TabBDMenus[Nom menu légumes],$A37,TabBDMenus[Nom mois menu],$M$3)+SUMIFS(TabBDMenus[Quantité menu légume deux],TabBDMenus[Nom menu légume deux],$A37,TabBDMenus[Nom mois menu],$M$3)","v":0},0]
["Tomates",{"$f":"SUMIFS(TabBDMenus[Quantité menu légumes],TabBDMenus[Nom menu légumes],$A38,TabBDMenus[Nom mois menu],$B$3)+SUMIFS(TabBDMenus[Quantité menu légume deux],TabBDMenus[Nom menu légume deux],$A38,TabBDMenus[Nom mois menu],$B$3)","v":0},{"$f":"SUMIFS(TabBDMenus[Quantité menu légumes],TabBDMenus[Nom menu légumes],$A38,TabBDMenus[Nom mois menu],$C$3)+SUMIFS(TabBDMenus[Quantité menu légume deux],TabBDMenus[Nom menu légume deux],$A38,TabBDMenus[Nom mois menu],$C$3)","v":0},{"$f":"SUMIFS(TabBDMenus[Quantité menu légumes],TabBDMenus[Nom menu légumes],$A38,TabBDMenus[Nom mois menu],$D$3)+SUMIFS(TabBDMenus[Quantité menu légume deux],TabBDMenus[Nom menu légume deux],$A38,TabBDMenus[Nom mois menu],$D$3)","v":0},{"$f":"SUMIFS(TabBDMenus[Quantité menu légumes],TabBDMenus[Nom menu légumes],$A38,TabBDMenus[Nom mois menu],$E$3)+SUMIFS(TabBDMenus[Quantité menu légume deux],TabBDMenus[Nom menu légume deux],$A38,TabBDMenus[Nom mois menu],$E$3)","v":0},{"$f":"SUMIFS(TabBDMenus[Quantité menu légumes],TabBDMenus[Nom menu légumes],$A38,TabBDMenus[Nom mois menu],$F$3)+SUMIFS(TabBDMenus[Quantité menu légume deux],TabBDMenus[Nom menu légume deux],$A38,TabBDMenus[Nom mois menu],$F$3)","v":0},{"$f":"SUMIFS(TabBDMenus[Quantité menu légumes],TabBDMenus[Nom menu légumes],$A38,TabBDMenus[Nom mois menu],$G$3)+SUMIFS(TabBDMenus[Quantité menu légume deux],TabBDMenus[Nom menu légume deux],$A38,TabBDMenus[Nom mois menu],$G$3)","v":0},{"$f":"SUMIFS(TabBDMenus[Quantité menu légumes],TabBDMenus[Nom menu légumes],$A38,TabBDMenus[Nom mois menu],$H$3)+SUMIFS(TabBDMenus[Quantité menu légume deux],TabBDMenus[Nom menu légume deux],$A38,TabBDMenus[Nom mois menu],$H$3)","v":0},{"$f":"SUMIFS(TabBDMenus[Quantité menu légumes],TabBDMenus[Nom menu légumes],$A38,TabBDMenus[Nom mois menu],$I$3)+SUMIFS(TabBDMenus[Quantité menu légume deux],TabBDMenus[Nom menu légume deux],$A38,TabBDMenus[Nom mois menu],$I$3)","v":0},{"$f":"SUMIFS(TabBDMenus[Quantité menu légumes],TabBDMenus[Nom menu légumes],$A38,TabBDMenus[Nom mois menu],$J$3)+SUMIFS(TabBDMenus[Quantité menu légume deux],TabBDMenus[Nom menu légume deux],$A38,TabBDMenus[Nom mois menu],$J$3)","v":0},{"$f":"SUMIFS(TabBDMenus[Quantité menu légumes],TabBDMenus[Nom menu légumes],$A38,TabBDMenus[Nom mois menu],$K$3)+SUMIFS(TabBDMenus[Quantité menu légume deux],TabBDMenus[Nom menu légume deux],$A38,TabBDMenus[Nom mois menu],$K$3)","v":0},{"$f":"SUMIFS(TabBDMenus[Quantité menu légumes],TabBDMenus[Nom menu légumes],$A38,TabBDMenus[Nom mois menu],$L$3)+SUMIFS(TabBDMenus[Quantité menu légume deux],TabBDMenus[Nom menu légume deux],$A38,TabBDMenus[Nom mois menu],$L$3)","v":0},{"$f":"SUMIFS(TabBDMenus[Quantité menu légumes],TabBDMenus[Nom menu légumes],$A38,TabBDMenus[Nom mois menu],$M$3)+SUMIFS(TabBDMenus[Quantité menu légume deux],TabBDMenus[Nom menu légume deux],$A38,TabBDMenus[Nom mois menu],$M$3)","v":0},0]
["Tomates pelées",{"$f":"SUMIFS(TabBDMenus[Quantité menu légumes],TabBDMenus[Nom menu légumes],$A39,TabBDMenus[Nom mois menu],$B$3)+SUMIFS(TabBDMenus[Quantité menu légume deux],TabBDMenus[Nom menu légume deux],$A39,TabBDMenus[Nom mois menu],$B$3)","v":0},{"$f":"SUMIFS(TabBDMenus[Quantité menu légumes],TabBDMenus[Nom menu légumes],$A39,TabBDMenus[Nom mois menu],$C$3)+SUMIFS(TabBDMenus[Quantité menu légume deux],TabBDMenus[Nom menu légume deux],$A39,TabBDMenus[Nom mois menu],$C$3)","v":0},{"$f":"SUMIFS(TabBDMenus[Quantité menu légumes],TabBDMenus[Nom menu légumes],$A39,TabBDMenus[Nom mois menu],$D$3)+SUMIFS(TabBDMenus[Quantité menu légume deux],TabBDMenus[Nom menu légume deux],$A39,TabBDMenus[Nom mois menu],$D$3)","v":0},{"$f":"SUMIFS(TabBDMenus[Quantité menu légumes],TabBDMenus[Nom menu légumes],$A39,TabBDMenus[Nom mois menu],$E$3)+SUMIFS(TabBDMenus[Quantité menu légume deux],TabBDMenus[Nom menu légume deux],$A39,TabBDMenus[Nom mois menu],$E$3)","v":0},{"$f":"SUMIFS(TabBDMenus[Quantité menu légumes],TabBDMenus[Nom menu légumes],$A39,TabBDMenus[Nom mois menu],$F$3)+SUMIFS(TabBDMenus[Quantité menu légume deux],TabBDMenus[Nom menu légume deux],$A39,TabBDMenus[Nom mois menu],$F$3)","v":0},{"$f":"SUMIFS(TabBDMenus[Quantité menu légumes],TabBDMenus[Nom menu légumes],$A39,TabBDMenus[Nom mois menu],$G$3)+SUMIFS(TabBDMenus[Quantité menu légume deux],TabBDMenus[Nom menu légume deux],$A39,TabBDMenus[Nom mois menu],$G$3)","v":0},{"$f":"SUMIFS(TabBDMenus[Quantité menu légumes],TabBDMenus[Nom menu légumes],$A39,TabBDMenus[Nom mois menu],$H$3)+SUMIFS(TabBDMenus[Quantité menu légume deux],TabBDMenus[Nom menu légume deux],$A39,TabBDMenus[Nom mois menu],$H$3)","v":0},{"$f":"SUMIFS(TabBDMenus[Quantité menu légumes],TabBDMenus[Nom menu légumes],$A39,TabBDMenus[Nom mois menu],$I$3)+SUMIFS(TabBDMenus[Quantité menu légume deux],TabBDMenus[Nom menu légume deux],$A39,TabBDMenus[Nom mois menu],$I$3)","v":0},{"$f":"SUMIFS(TabBDMenus[Quantité menu légumes],TabBDMenus[Nom menu légumes],$A39,TabBDMenus[Nom mois menu],$J$3)+SUMIFS(TabBDMenus[Quantité menu légume deux],TabBDMenus[Nom menu légume deux],$A39,TabBDMenus[Nom mois menu],$J$3)","v":0},{"$f":"SUMIFS(TabBDMenus[Quantité menu légumes],TabBDMenus[Nom menu légumes],$A39,TabBDMenus[Nom mois menu],$K$3)+SUMIFS(TabBDMenus[Quantité menu légume deux],TabBDMenus[Nom menu légume deux],$A39,TabBDMenus[Nom mois menu],$K$3)","v":0},{"$f":"SUMIFS(TabBDMenus[Quantité menu légumes],TabBDMenus[Nom menu légumes],$A39,TabBDMenus[Nom mois menu],$L$3)+SUMIFS(TabBDMenus[Quantité menu légume deux],TabBDMenus[Nom menu légume deux],$A39,TabBDMenus[Nom mois menu],$L$3)","v":0},{"$f":"SUMIFS(TabBDMenus[Quantité menu légumes],TabBDMenus[Nom menu légumes],$A39,TabBDMenus[Nom mois menu],$M$3)+SUMIFS(TabBDMenus[Quantité menu légume deux],TabBDMenus[Nom menu légume deux],$A39,TabBDMenus[Nom mois menu],$M$3)","v":0},0]
[{"$f":"\"Imprimé à Limeil-Brévannes, le \"&TEXT(TODAY(),\"jjjj j mmmm aaaa\")&\".\"","v":"Imprimé à Limeil-Brévannes, le lundi 28 août 2023."}]
["Pour la création des formules, ne pas passer par ni Formules, ni Insérer une fonction. tapez le signe égal, tapez SOMME.SI.ENS, tapez une parenthèse ouvrante, tapez Tab (la liste des Tab disponibles apparaît, cliquez sur"]
["TabBDMenus), tapez un crochet ouvrant, la liste des noms définis disponibles s'affiche à l'écran (ici choisir QML) tapez un point virgule tapez Tab (la liste des Tab disponibles apparaît, cliquez sur TabBDMenus), tapez un "]
["crochet ouvrant, le liste des noms définis disponibles s'affiche à l'écran (ici cliquez sur NML) tapez un point virgule À partir de la feuille Quantités légumes, cliquez sur la cellule A4 tapez un point virgule tapez Tab (la liste"]
["des Tab disponibles apparaît, cliquez sur TabBDMenus tapez un crochet ouvrant, la liste des noms définis disponibles s'affiche à l'écran (ici cliquez sur Mois) tapez un point virgule À partir de la feuille Quantités légumes,"]
["cliquez sur la cellule B3 tapez une parenthèse fermante. Rendre A4 en référence relative sur la colonne. Rendre B3 en référence absolue."]

{"sheet":"Quantités viandes","index":9,"n_rows":48,"n_cols":14,"rows_kept":48,"cut":false,"hidden":false,"merged":[[0,0,0,13],[42,0,42,13]]}
[{"$f":"\"Quantités viandes de l'année \"&Accueil!$F$1&\" par mois et nom des viandes.\"","v":"Quantités viandes de l'année 2023 par mois et nom des viandes."}]
[]
["Nom des viandes","Janvier","Février","Mars","Avril","Mai","Juin","Juillet","Août","Septembre","Octobre","Novembre","Décembre",{"$f":"\"Total des viandes de l'année \"&Accueil!$F$1","v":"Total des viandes de l'année 2023"}]
["Bifteck haché de bœuf",{"$f":"SUMIFS(TabBDMenus[Quantité menu viande],TabBDMenus[Nom menu viande],$A4,TabBDMenus[Nom mois menu],$B$3)","v":0},{"$f":"SUMIFS(TabBDMenus[Quantité menu viande],TabBDMenus[Nom menu viande],$A4,TabBDMenus[Nom mois menu],$C$3)","v":0},{"$f":"SUMIFS(TabBDMenus[Quantité menu viande],TabBDMenus[Nom menu viande],$A4,TabBDMenus[Nom mois menu],$D$3)","v":0},{"$f":"SUMIFS(TabBDMenus[Quantité menu viande],TabBDMenus[Nom menu viande],$A4,TabBDMenus[Nom mois menu],$E$3)","v":0},{"$f":"SUMIFS(TabBDMenus[Quantité menu viande],TabBDMenus[Nom menu viande],$A4,TabBDMenus[Nom mois menu],$F$3)","v":0},{"$f":"SUMIFS(TabBDMenus[Quantité menu viande],TabBDMenus[Nom menu viande],$A4,TabBDMenus[Nom mois menu],$G$3)","v":0},{"$f":"SUMIFS(TabBDMenus[Quantité menu viande],TabBDMenus[Nom menu viande],$A4,TabBDMenus[Nom mois menu],$H$3)","v":0},{"$f":"SUMIFS(TabBDMenus[Quantité menu viande],TabBDMenus[Nom menu viande],$A4,TabBDMenus[Nom mois menu],$I$3)","v":0},{"$f":"SUMIFS(TabBDMenus[Quantité menu viande],TabBDMenus[Nom menu viande],$A4,TabBDMenus[Nom mois menu],$J$3)","v":0},{"$f":"SUMIFS(TabBDMenus[Quantité menu viande],TabBDMenus[Nom menu viande],$A4,TabBDMenus[Nom mois menu],$K$3)","v":0},{"$f":"SUMIFS(TabBDMenus[Quantité menu viande],TabBDMenus[Nom menu viande],$A4,TabBDMenus[Nom mois menu],$L$3)","v":0},{"$f":"SUMIFS(TabBDMenus[Quantité menu viande],TabBDMenus[Nom menu viande],$A4,TabBDMenus[Nom mois menu],$M$3)","v":0},{"$f":"SUM($B4:$M4)","v":0}]
["Bifteck haché de cheval",{"$f":"SUMIFS(TabBDMenus[Quantité menu viande],TabBDMenus[Nom menu viande],$A5,TabBDMenus[Nom mois menu],$B$3)","v":0},{"$f":"SUMIFS(TabBDMenus[Quantité menu viande],TabBDMenus[Nom menu viande],$A5,TabBDMenus[Nom mois menu],$C$3)","v":0},{"$f":"SUMIFS(TabBDMenus[Quantité menu viande],TabBDMenus[Nom menu viande],$A5,TabBDMenus[Nom mois menu],$D$3)","v":0},{"$f":"SUMIFS(TabBDMenus[Quantité menu viande],TabBDMenus[Nom menu viande],$A5,TabBDMenus[Nom mois menu],$E$3)","v":0},{"$f":"SUMIFS(TabBDMenus[Quantité menu viande],TabBDMenus[Nom menu viande],$A5,TabBDMenus[Nom mois menu],$F$3)","v":0},{"$f":"SUMIFS(TabBDMenus[Quantité menu viande],TabBDMenus[Nom menu viande],$A5,TabBDMenus[Nom mois menu],$G$3)","v":0},{"$f":"SUMIFS(TabBDMenus[Quantité menu viande],TabBDMenus[Nom menu viande],$A5,TabBDMenus[Nom mois menu],$H$3)","v":0},{"$f":"SUMIFS(TabBDMenus[Quantité menu viande],TabBDMenus[Nom menu viande],$A5,TabBDMenus[Nom mois menu],$I$3)","v":0},{"$f":"SUMIFS(TabBDMenus[Quantité menu viande],TabBDMenus[Nom menu viande],$A5,TabBDMenus[Nom mois menu],$J$3)","v":0},{"$f":"SUMIFS(TabBDMenus[Quantité menu viande],TabBDMenus[Nom menu viande],$A5,TabBDMenus[Nom mois menu],$K$3)","v":0},{"$f":"SUMIFS(TabBDMenus[Quantité menu viande],TabBDMenus[Nom menu viande],$A5,TabBDMenus[Nom mois menu],$L$3)","v":0},{"$f":"SUMIFS(TabBDMenus[Quantité menu viande],TabBDMenus[Nom menu viande],$A5,TabBDMenus[Nom mois menu],$M$3)","v":0},{"$f":"SUM($B5:$M5)","v":0}]
["Bifteck haché de veau",{"$f":"SUMIFS(TabBDMenus[Quantité menu viande],TabBDMenus[Nom menu viande],$A6,TabBDMenus[Nom mois menu],$B$3)","v":0},{"$f":"SUMIFS(TabBDMenus[Quantité menu viande],TabBDMenus[Nom menu viande],$A6,TabBDMenus[Nom mois menu],$C$3)","v":0},{"$f":"SUMIFS(TabBDMenus[Quantité menu viande],TabBDMenus[Nom menu viande],$A6,TabBDMenus[Nom mois menu],$D$3)","v":0},{"$f":"SUMIFS(TabBDMenus[Quantité menu viande],TabBDMenus[Nom menu viande],$A6,TabBDMenus[Nom mois menu],$E$3)","v":0},{"$f":"SUMIFS(TabBDMenus[Quantité menu viande],TabBDMenus[Nom menu viande],$A6,TabBDMenus[Nom mois menu],$F$3)","v":0},{"$f":"SUMIFS(TabBDMenus[Quantité menu viande],TabBDMenus[Nom menu viande],$A6,TabBDMenus[Nom mois menu],$G$3)","v":0},{"$f":"SUMIFS(TabBDMenus[Quantité menu viande],TabBDMenus[Nom menu viande],$A6,TabBDMenus[Nom mois menu],$H$3)","v":0},{"$f":"SUMIFS(TabBDMenus[Quantité menu viande],TabBDMenus[Nom menu viande],$A6,TabBDMenus[Nom mois menu],$I$3)","v":0},{"$f":"SUMIFS(TabBDMenus[Quantité menu viande],TabBDMenus[Nom menu viande],$A6,TabBDMenus[Nom mois menu],$J$3)","v":0},{"$f":"SUMIFS(TabBDMenus[Quantité menu viande],TabBDMenus[Nom menu viande],$A6,TabBDMenus[Nom mois menu],$K$3)","v":0},{"$f":"SUMIFS(TabBDMenus[Quantité menu viande],TabBDMenus[Nom menu viande],$A6,TabBDMenus[Nom mois menu],$L$3)","v":0},{"$f":"SUMIFS(TabBDMenus[Quantité menu viande],TabBDMenus[Nom menu viande],$A6,TabBDMenus[Nom mois menu],$M$3)","v":0},0]
["Bouchée à la reine",{"$f":"SUMIFS(TabBDMenus[Quantité menu viande],TabBDMenus[Nom menu viande],$A7,TabBDMenus[Nom mois menu],$B$3)","v":0},{"$f":"SUMIFS(TabBDMenus[Quantité menu viande],TabBDMenus[Nom menu viande],$A7,TabBDMenus[Nom mois menu],$C$3)","v":0},{"$f":"SUMIFS(TabBDMenus[Quantité menu viande],TabBDMenus[Nom menu viande],$A7,TabBDMenus[Nom mois menu],$D$3)","v":0},{"$f":"SUMIFS(TabBDMenus[Quantité menu viande],TabBDMenus[Nom menu viande],$A7,TabBDMenus[Nom mois menu],$E$3)","v":0},{"$f":"SUMIFS(TabBDMenus[Quantité menu viande],TabBDMenus[Nom menu viande],$A7,TabBDMenus[Nom mois menu],$F$3)","v":0},{"$f":"SUMIFS(TabBDMenus[Quantité menu viande],TabBDMenus[Nom menu viande],$A7,TabBDMenus[Nom mois menu],$G$3)","v":0},{"$f":"SUMIFS(TabBDMenus[Quantité menu viande],TabBDMenus[Nom menu viande],$A7,TabBDMenus[Nom mois menu],$H$3)","v":0},{"$f":"SUMIFS(TabBDMenus[Quantité menu viande],TabBDMenus[Nom menu viande],$A7,TabBDMenus[Nom mois menu],$I$3)","v":0},{"$f":"SUMIFS(TabBDMenus[Quantité menu viande],TabBDMenus[Nom menu viande],$A7,TabBDMenus[Nom mois menu],$J$3)","v":0},{"$f":"SUMIFS(TabBDMenus[Quantité menu viande],TabBDMenus[Nom menu viande],$A7,TabBDMenus[Nom mois menu],$K$3)","v":0},{"$f":"SUMIFS(TabBDMenus[Quantité menu viande],TabBDMenus[Nom menu viande],$A7,TabBDMenus[Nom mois menu],$L$3)","v":0},{"$f":"SUMIFS(TabBDMenus[Quantité menu viande],TabBDMenus[Nom menu viande],$A7,TabBDMenus[Nom mois menu],$M$3)","v":0},0]
["Boudin",{"$f":"SUMIFS(TabBDMenus[Quantité menu viande],TabBDMenus[Nom menu viande],$A8,TabBDMenus[Nom mois menu],$B$3)","v":0},{"$f":"SUMIFS(TabBDMenus[Quantité menu viande],TabBDMenus[Nom menu viande],$A8,TabBDMenus[Nom mois menu],$C$3)","v":0},{"$f":"SUMIFS(TabBDMenus[Quantité menu viande],TabBDMenus[Nom menu viande],$A8,TabBDMenus[Nom mois menu],$D$3)","v":0},{"$f":"SUMIFS(TabBDMenus[Quantité menu viande],TabBDMenus[Nom menu viande],$A8,TabBDMenus[Nom mois menu],$E$3)","v":0},{"$f":"SUMIFS(TabBDMenus[Quantité menu viande],TabBDMenus[Nom menu viande],$A8,TabBDMenus[Nom mois menu],$F$3)","v":0},{"$f":"SUMIFS(TabBDMenus[Quantité menu viande],TabBDMenus[Nom menu viande],$A8,TabBDMenus[Nom mois menu],$G$3)","v":0},{"$f":"SUMIFS(TabBDMenus[Quantité menu viande],TabBDMenus[Nom menu viande],$A8,TabBDMenus[Nom mois menu],$H$3)","v":0},{"$f":"SUMIFS(TabBDMenus[Quantité menu viande],TabBDMenus[Nom menu viande],$A8,TabBDMenus[Nom mois menu],$I$3)","v":0},{"$f":"SUMIFS(TabBDMenus[Quantité menu viande],TabBDMenus[Nom menu viande],$A8,TabBDMenus[Nom mois menu],$J$3)","v":0},{"$f":"SUMIFS(TabBDMenus[Quantité menu viande],TabBDMenus[Nom menu viande],$A8,TabBDMenus[Nom mois menu],$K$3)","v":0},{"$f":"SUMIFS(TabBDMenus[Quantité menu viande],TabBDMenus[Nom menu viande],$A8,TabBDMenus[Nom mois menu],$L$3)","v":0},{"$f":"SUMIFS(TabBDMenus[Quantité menu viande],TabBDMenus[Nom menu viande],$A8,TabBDMenus[Nom mois menu],$M$3)","v":0},0]
["Cervelas",{"$f":"SUMIFS(TabBDMenus[Quantité menu viande],TabBDMenus[Nom menu viande],$A9,TabBDMenus[Nom mois menu],$B$3)","v":0},{"$f":"SUMIFS(TabBDMenus[Quantité menu viande],TabBDMenus[Nom menu viande],$A9,TabBDMenus[Nom mois menu],$C$3)","v":0},{"$f":"SUMIFS(TabBDMenus[Quantité menu viande],TabBDMenus[Nom menu viande],$A9,TabBDMenus[Nom mois menu],$D$3)","v":0},{"$f":"SUMIFS(TabBDMenus[Quantité menu viande],TabBDMenus[Nom menu viande],$A9,TabBDMenus[Nom mois menu],$E$3)","v":0},{"$f":"SUMIFS(TabBDMenus[Quantité menu viande],TabBDMenus[Nom menu viande],$A9,TabBDMenus[Nom mois menu],$F$3)","v":0},{"$f":"SUMIFS(TabBDMenus[Quantité menu viande],TabBDMenus[Nom menu viande],$A9,TabBDMenus[Nom mois menu],$G$3)","v":0},{"$f":"SUMIFS(TabBDMenus[Quantité menu viande],TabBDMenus[Nom menu viande],$A9,TabBDMenus[Nom mois menu],$H$3)","v":0},{"$f":"SUMIFS(TabBDMenus[Quantité menu viande],TabBDMenus[Nom menu viande],$A9,TabBDMenus[Nom mois menu],$I$3)","v":0},{"$f":"SUMIFS(TabBDMenus[Quantité menu viande],TabBDMenus[Nom menu viande],$A9,TabBDMenus[Nom mois menu],$J$3)","v":0},{"$f":"SUMIFS(TabBDMenus[Quantité menu viande],TabBDMenus[Nom menu viande],$A9,TabBDMenus[Nom mois menu],$K$3)","v":0},{"$f":"SUMIFS(TabBDMenus[Quantité menu viande],TabBDMenus[Nom menu viande],$A9,TabBDMenus[Nom mois menu],$L$3)","v":0},{"$f":"SUMIFS(TabBDMenus[Quantité menu viande],TabBDMenus[Nom menu viande],$A9,TabBDMenus[Nom mois menu],$M$3)","v":0},0]
["Cœur",{"$f":"SUMIFS(TabBDMenus[Quantité menu viande],TabBDMenus[Nom menu viande],$A10,TabBDMenus[Nom mois menu],$B$3)","v":0},{"$f":"SUMIFS(TabBDMenus[Quantité menu viande],TabBDMenus[Nom menu viande],$A10,TabBDMenus[Nom mois menu],$C$3)","v":0},{"$f":"SUMIFS(TabBDMenus[Quantité menu viande],TabBDMenus[Nom menu viande],$A10,TabBDMenus[Nom mois menu],$D$3)","v":0},{"$f":"SUMIFS(TabBDMenus[Quantité menu viande],TabBDMenus[Nom menu viande],$A10,TabBDMenus[Nom mois menu],$E$3)","v":0},{"$f":"SUMIFS(TabBDMenus[Quantité menu viande],TabBDMenus[Nom menu viande],$A10,TabBDMenus[Nom mois menu],$F$3)","v":0},{"$f":"SUMIFS(TabBDMenus[Quantité menu viande],TabBDMenus[Nom menu viande],$A10,TabBDMenus[Nom mois menu],$G$3)","v":0},{"$f":"SUMIFS(TabBDMenus[Quantité menu viande],TabBDMenus[Nom menu viande],$A10,TabBDMenus[Nom mois menu],$H$3)","v":0},{"$f":"SUMIFS(TabBDMenus[Quantité menu viande],TabBDMenus[Nom menu viande],$A10,TabBDMenus[Nom mois menu],$I$3)","v":0},{"$f":"SUMIFS(TabBDMenus[Quantité menu viande],TabBDMenus[Nom menu viande],$A10,TabBDMenus[Nom mois menu],$J$3)","v":0},{"$f":"SUMIFS(TabBDMenus[Quantité menu viande],TabBDMenus[Nom menu viande],$A10,TabBDMenus[Nom mois menu],$K$3)","v":0},{"$f":"SUMIFS(TabBDMenus[Quantité menu viande],TabBDMenus[Nom menu viande],$A10,TabBDMenus[Nom mois menu],$L$3)","v":0},{"$f":"SUMIFS(TabBDMenus[Quantité menu viande],TabBDMenus[Nom menu viande],$A10,TabBDMenus[Nom mois menu],$M$3)","v":0},0]
["Croque-monsieur",{"$f":"SUMIFS(TabBDMenus[Quantité menu viande],TabBDMenus[Nom menu viande],$A11,TabBDMenus[Nom mois menu],$B$3)","v":0},{"$f":"SUMIFS(TabBDMenus[Quantité menu viande],TabBDMenus[Nom menu viande],$A11,TabBDMenus[Nom mois menu],$C$3)","v":0},{"$f":"SUMIFS(TabBDMenus[Quantité menu viande],TabBDMenus[Nom menu viande],$A11,TabBDMenus[Nom mois menu],$D$3)","v":0},{"$f":"SUMIFS(TabBDMenus[Quantité menu viande],TabBDMenus[Nom menu viande],$A11,TabBDMenus[Nom mois menu],$E$3)","v":0},{"$f":"SUMIFS(TabBDMenus[Quantité menu viande],TabBDMenus[Nom menu viande],$A11,TabBDMenus[Nom mois menu],$F$3)","v":0},{"$f":"SUMIFS(TabBDMenus[Quantité menu viande],TabBDMenus[Nom menu viande],$A11,TabBDMenus[Nom mois menu],$G$3)","v":0},{"$f":"SUMIFS(TabBDMenus[Quantité menu viande],TabBDMenus[Nom menu viande],$A11,TabBDMenus[Nom mois menu],$H$3)","v":0},{"$f":"SUMIFS(TabBDMenus[Quantité menu viande],TabBDMenus[Nom menu viande],$A11,TabBDMenus[Nom mois menu],$I$3)","v":0},{"$f":"SUMIFS(TabBDMenus[Quantité menu viande],TabBDMenus[Nom menu viande],$A11,TabBDMenus[Nom mois menu],$J$3)","v":0},{"$f":"SUMIFS(TabBDMenus[Quantité menu viande],TabBDMenus[Nom menu viande],$A11,TabBDMenus[Nom mois menu],$K$3)","v":0},{"$f":"SUMIFS(TabBDMenus[Quantité menu viande],TabBDMenus[Nom menu viande],$A11,TabBDMenus[Nom mois menu],$L$3)","v":0},{"$f":"SUMIFS(TabBDMenus[Quantité menu viande],TabBDMenus[Nom menu viande],$A11,TabBDMenus[Nom mois menu],$M$3)","v":0},0]
["Foie",{"$f":"SUMIFS(TabBDMenus[Quantité menu viande],TabBDMenus[Nom menu viande],$A12,TabBDMenus[Nom mois menu],$B$3)","v":0},{"$f":"SUMIFS(TabBDMenus[Quantité menu viande],TabBDMenus[Nom menu viande],$A12,TabBDMenus[Nom mois menu],$C$3)","v":0},{"$f":"SUMIFS(TabBDMenus[Quantité menu viande],TabBDMenus[Nom menu viande],$A12,TabBDMenus[Nom mois menu],$D$3)","v":0},{"$f":"SUMIFS(TabBDMenus[Quantité menu viande],TabBDMenus[Nom menu viande],$A12,TabBDMenus[Nom mois menu],$E$3)","v":0},{"$f":"SUMIFS(TabBDMenus[Quantité menu viande],TabBDMenus[Nom menu viande],$A12,TabBDMenus[Nom mois menu],$F$3)","v":0},{"$f":"SUMIFS(TabBDMenus[Quantité menu viande],TabBDMenus[Nom menu viande],$A12,TabBDMenus[Nom mois menu],$G$3)","v":0},{"$f":"SUMIFS(TabBDMenus[Quantité menu viande],TabBDMenus[Nom menu viande],$A12,TabBDMenus[Nom mois menu],$H$3)","v":0},{"$f":"SUMIFS(TabBDMenus[Quantité menu viande],TabBDMenus[Nom menu viande],$A12,TabBDMenus[Nom mois menu],$I$3)","v":0},{"$f":"SUMIFS(TabBDMenus[Quantité menu viande],TabBDMenus[Nom menu viande],$A12,TabBDMenus[Nom mois menu],$J$3)","v":0},{"$f":"SUMIFS(TabBDMenus[Quantité menu viande],TabBDMenus[Nom menu viande],$A12,TabBDMenus[Nom mois menu],$K$3)","v":0},{"$f":"SUMIFS(TabBDMenus[Quantité menu viande],TabBDMenus[Nom menu viande],$A12,TabBDMenus[Nom mois menu],$L$3)","v":0},{"$f":"SUMIFS(TabBDMenus[Quantité menu viande],TabBDMenus[Nom menu viande],$A12,TabBDMenus[Nom mois menu],$M$3)","v":0},0]
["Fromage de tête",{"$f":"SUMIFS(TabBDMenus[Quantité menu viande],TabBDMenus[Nom menu viande],$A13,TabBDMenus[Nom mois menu],$B$3)","v":0},{"$f":"SUMIFS(TabBDMenus[Quantité menu viande],TabBDMenus[Nom menu viande],$A13,TabBDMenus[Nom mois menu],$C$3)","v":0},{"$f":"SUMIFS(TabBDMenus[Quantité menu viande],TabBDMenus[Nom menu viande],$A13,TabBDMenus[Nom mois menu],$D$3)","v":0},{"$f":"SUMIFS(TabBDMenus[Quantité menu viande],TabBDMenus[Nom menu viande],$A13,TabBDMenus[Nom mois menu],$E$3)","v":0},{"$f":"SUMIFS(TabBDMenus[Quantité menu viande],TabBDMenus[Nom menu viande],$A13,TabBDMenus[Nom mois menu],$F$3)","v":0},{"$f":"SUMIFS(TabBDMenus[Quantité menu viande],TabBDMenus[Nom menu viande],$A13,TabBDMenus[Nom mois menu],$G$3)","v":0},{"$f":"SUMIFS(TabBDMenus[Quantité menu viande],TabBDMenus[Nom menu viande],$A13,TabBDMenus[Nom mois menu],$H$3)","v":0},{"$f":"SUMIFS(TabBDMenus[Quantité menu viande],TabBDMenus[Nom menu viande],$A13,TabBDMenus[Nom mois menu],$I$3)","v":0},{"$f":"SUMIFS(TabBDMenus[Quantité menu viande],TabBDMenus[Nom menu viande],$A13,TabBDMenus[Nom mois menu],$J$3)","v":0},{"$f":"SUMIFS(TabBDMenus[Quantité menu viande],TabBDMenus[Nom menu viande],$A13,TabBDMenus[Nom mois menu],$K$3)","v":0},{"$f":"SUMIFS(TabBDMenus[Quantité menu viande],TabBDMenus[Nom menu viande],$A13,TabBDMenus[Nom mois menu],$L$3)","v":0},{"$f":"SUMIFS(TabBDMenus[Quantité menu viande],TabBDMenus[Nom menu viande],$A13,TabBDMenus[Nom mois menu],$M$3)","v":0},0]
["Jambon",{"$f":"SUMIFS(TabBDMenus[Quantité menu viande],TabBDMenus[Nom menu viande],$A14,TabBDMenus[Nom mois menu],$B$3)","v":0},{"$f":"SUMIFS(TabBDMenus[Quantité menu viande],TabBDMenus[Nom menu viande],$A14,TabBDMenus[Nom mois menu],$C$3)","v":0},{"$f":"SUMIFS(TabBDMenus[Quantité menu viande],TabBDMenus[Nom menu viande],$A14,TabBDMenus[Nom mois menu],$D$3)","v":0},{"$f":"SUMIFS(TabBDMenus[Quantité menu viande],TabBDMenus[Nom menu viande],$A14,TabBDMenus[Nom mois menu],$E$3)","v":0},{"$f":"SUMIFS(TabBDMenus[Quantité menu viande],TabBDMenus[Nom menu viande],$A14,TabBDMenus[Nom mois menu],$F$3)","v":0},{"$f":"SUMIFS(TabBDMenus[Quantité menu viande],TabBDMenus[Nom menu viande],$A14,TabBDMenus[Nom mois menu],$G$3)","v":0},{"$f":"SUMIFS(TabBDMenus[Quantité menu viande],TabBDMenus[Nom menu viande],$A14,TabBDMenus[Nom mois menu],$H$3)","v":0},{"$f":"SUMIFS(TabBDMenus[Quantité menu viande],TabBDMenus[Nom menu viande],$A14,TabBDMenus[Nom mois menu],$I$3)","v":0},{"$f":"SUMIFS(TabBDMenus[Quantité menu viande],TabBDMenus[Nom menu viande],$A14,TabBDMenus[Nom mois menu],$J$3)","v":0},{"$f":"SUMIFS(TabBDMenus[Quantité menu viande],TabBDMenus[Nom menu viande],$A14,TabBDMenus[Nom mois menu],$K$3)","v":0},{"$f":"SUMIFS(TabBDMenus[Quantité menu viande],TabBDMenus[Nom menu viande],$A14,TabBDMenus[Nom mois menu],$L$3)","v":0},{"$f":"SUMIFS(TabBDMenus[Quantité menu viande],TabBDMenus[Nom menu viande],$A14,TabBDMenus[Nom mois menu],$M$3)","v":0},0]
["Jambonneau",{"$f":"SUMIFS(TabBDMenus[Quantité menu viande],TabBDMenus[Nom menu viande],$A15,TabBDMenus[Nom mois menu],$B$3)","v":0},{"$f":"SUMIFS(TabBDMenus[Quantité menu viande],TabBDMenus[Nom menu viande],$A15,TabBDMenus[Nom mois menu],$C$3)","v":0},{"$f":"SUMIFS(TabBDMenus[Quantité menu viande],TabBDMenus[Nom menu viande],$A15,TabBDMenus[Nom mois menu],$D$3)","v":0},{"$f":"SUMIFS(TabBDMenus[Quantité menu viande],TabBDMenus[Nom menu viande],$A15,TabBDMenus[Nom mois menu],$E$3)","v":0},{"$f":"SUMIFS(TabBDMenus[Quantité menu viande],TabBDMenus[Nom menu viande],$A15,TabBDMenus[Nom mois menu],$F$3)","v":0},{"$f":"SUMIFS(TabBDMenus[Quantité menu viande],TabBDMenus[Nom menu viande],$A15,TabBDMenus[Nom mois menu],$G$3)","v":0},{"$f":"SUMIFS(TabBDMenus[Quantité menu viande],TabBDMenus[Nom menu viande],$A15,TabBDMenus[Nom mois menu],$H$3)","v":0},{"$f":"SUMIFS(TabBDMenus[Quantité menu viande],TabBDMenus[Nom menu viande],$A15,TabBDMenus[Nom mois menu],$I$3)","v":0},{"$f":"SUMIFS(TabBDMenus[Quantité menu viande],TabBDMenus[Nom menu viande],$A15,TabBDMenus[Nom mois menu],$J$3)","v":0},{"$f":"SUMIFS(TabBDMenus[Quantité menu viande],TabBDMenus[Nom menu viande],$A15,TabBDMenus[Nom mois menu],$K$3)","v":0},{"$f":"SUMIFS(TabBDMenus[Quantité menu viande],TabBDMenus[Nom menu viande],$A15,TabBDMenus[Nom mois menu],$L$3)","v":0},{"$f":"SUMIFS(TabBDMenus[Quantité menu viande],TabBDMenus[Nom menu viande],$A15,TabBDMenus[Nom mois menu],$M$3)","v":0},0]
["Mortadelle",{"$f":"SUMIFS(TabBDMenus[Quantité menu viande],TabBDMenus[Nom menu viande],$A16,TabBDMenus[Nom mois menu],$B$3)","v":0},{"$f":"SUMIFS(TabBDMenus[Quantité menu viande],TabBDMenus[Nom menu viande],$A16,TabBDMenus[Nom mois menu],$C$3)","v":0},{"$f":"SUMIFS(TabBDMenus[Quantité menu viande],TabBDMenus[Nom menu viande],$A16,TabBDMenus[Nom mois menu],$D$3)","v":0},{"$f":"SUMIFS(TabBDMenus[Quantité menu viande],TabBDMenus[Nom menu viande],$A16,TabBDMenus[Nom mois menu],$E$3)","v":0},{"$f":"SUMIFS(TabBDMenus[Quantité menu viande],TabBDMenus[Nom menu viande],$A16,TabBDMenus[Nom mois menu],$F$3)","v":0},{"$f":"SUMIFS(TabBDMenus[Quantité menu viande],TabBDMenus[Nom menu viande],$A16,TabBDMenus[Nom mois menu],$G$3)","v":0},{"$f":"SUMIFS(TabBDMenus[Quantité menu viande],TabBDMenus[Nom menu viande],$A16,TabBDMenus[Nom mois menu],$H$3)","v":0},{"$f":"SUMIFS(TabBDMenus[Quantité menu viande],TabBDMenus[Nom menu viande],$A16,TabBDMenus[Nom mois menu],$I$3)","v":0},{"$f":"SUMIFS(TabBDMenus[Quantité menu viande],TabBDMenus[Nom menu viande],$A16,TabBDMenus[Nom mois menu],$J$3)","v":0},{"$f":"SUMIFS(TabBDMenus[Quantité menu viande],TabBDMenus[Nom menu viande],$A16,TabBDMenus[Nom mois menu],$K$3)","v":0},{"$f":"SUMIFS(TabBDMenus[Quantité menu viande],TabBDMenus[Nom menu viande],$A16,TabBDMenus[Nom mois menu],$L$3)","v":0},{"$f":"SUMIFS(TabBDMenus[Quantité menu viande],TabBDMenus[Nom menu viande],$A16,TabBDMenus[Nom mois menu],$M$3)","v":0},0]
["Œufs",{"$f":"SUMIFS(TabBDMenus[Quantité menu viande],TabBDMenus[Nom menu viande],$A17,TabBDMenus[Nom mois menu],$B$3)","v":0},{"$f":"SUMIFS(TabBDMenus[Quantité menu viande],TabBDMenus[Nom menu viande],$A17,TabBDMenus[Nom mois menu],$C$3)","v":0},{"$f":"SUMIFS(TabBDMenus[Quantité menu viande],TabBDMenus[Nom menu viande],$A17,TabBDMenus[Nom mois menu],$D$3)","v":0},{"$f":"SUMIFS(TabBDMenus[Quantité menu viande],TabBDMenus[Nom menu viande],$A17,TabBDMenus[Nom mois menu],$E$3)","v":0},{"$f":"SUMIFS(TabBDMenus[Quantité menu viande],TabBDMenus[Nom menu viande],$A17,TabBDMenus[Nom mois menu],$F$3)","v":0},{"$f":"SUMIFS(TabBDMenus[Quantité menu viande],TabBDMenus[Nom menu viande],$A17,TabBDMenus[Nom mois menu],$G$3)","v":0},{"$f":"SUMIFS(TabBDMenus[Quantité menu viande],TabBDMenus[Nom menu viande],$A17,TabBDMenus[Nom mois menu],$H$3)","v":0},{"$f":"SUMIFS(TabBDMenus[Quantité menu viande],TabBDMenus[Nom menu viande],$A17,TabBDMenus[Nom mois menu],$I$3)","v":0},{"$f":"SUMIFS(TabBDMenus[Quantité menu viande],TabBDMenus[Nom menu viande],$A17,TabBDMenus[Nom mois menu],$J$3)","v":0},{"$f":"SUMIFS(TabBDMenus[Quantité menu viande],TabBDMenus[Nom menu viande],$A17,TabBDMenus[Nom mois menu],$K$3)","v":0},{"$f":"SUMIFS(TabBDMenus[Quantité menu viande],TabBDMenus[Nom menu viande],$A17,TabBDMenus[Nom mois menu],$L$3)","v":0},{"$f":"SUMIFS(TabBDMenus[Quantité menu viande],TabBDMenus[Nom menu viande],$A17,TabBDMenus[Nom mois menu],$M$3)","v":0},0]
["Pizza",{"$f":"SUMIFS(TabBDMenus[Quantité menu viande],TabBDMenus[Nom menu viande],$A18,TabBDMenus[Nom mois menu],$B$3)","v":0},{"$f":"SUMIFS(TabBDMenus[Quantité menu viande],TabBDMenus[Nom menu viande],$A18,TabBDMenus[Nom mois menu],$C$3)","v":0},{"$f":"SUMIFS(TabBDMenus[Quantité menu viande],TabBDMenus[Nom menu viande],$A18,TabBDMenus[Nom mois menu],$D$3)","v":0},{"$f":"SUMIFS(TabBDMenus[Quantité menu viande],TabBDMenus[Nom menu viande],$A18,TabBDMenus[Nom mois menu],$E$3)","v":0},{"$f":"SUMIFS(TabBDMenus[Quantité menu viande],TabBDMenus[Nom menu viande],$A18,TabBDMenus[Nom mois menu],$F$3)","v":0},{"$f":"SUMIFS(TabBDMenus[Quantité menu viande],TabBDMenus[Nom menu viande],$A18,TabBDMenus[Nom mois menu],$G$3)","v":0},{"$f":"SUMIFS(TabBDMenus[Quantité menu viande],TabBDMenus[Nom menu viande],$A18,TabBDMenus[Nom mois menu],$H$3)","v":0},{"$f":"SUMIFS(TabBDMenus[Quantité menu viande],TabBDMenus[Nom menu viande],$A18,TabBDMenus[Nom mois menu],$I$3)","v":0},{"$f":"SUMIFS(TabBDMenus[Quantité menu viande],TabBDMenus[Nom menu viande],$A18,TabBDMenus[Nom mois menu],$J$3)","v":0},{"$f":"SUMIFS(TabBDMenus[Quantité menu viande],TabBDMenus[Nom menu viande],$A18,TabBDMenus[Nom mois menu],$K$3)","v":0},{"$f":"SUMIFS(TabBDMenus[Quantité menu viande],TabBDMenus[Nom menu viande],$A18,TabBDMenus[Nom mois menu],$L$3)","v":0},{"$f":"SUMIFS(TabBDMenus[Quantité menu viande],TabBDMenus[Nom menu viande],$A18,TabBDMenus[Nom mois menu],$M$3)","v":0},0]
["Poisson",{"$f":"SUMIFS(TabBDMenus[Quantité menu viande],TabBDMenus[Nom menu viande],$A19,TabBDMenus[Nom mois menu],$B$3)","v":0},{"$f":"SUMIFS(TabBDMenus[Quantité menu viande],TabBDMenus[Nom menu viande],$A19,TabBDMenus[Nom mois menu],$C$3)","v":0},{"$f":"SUMIFS(TabBDMenus[Quantité menu viande],TabBDMenus[Nom menu viande],$A19,TabBDMenus[Nom mois menu],$D$3)","v":0},{"$f":"SUMIFS(TabBDMenus[Quantité menu viande],TabBDMenus[Nom menu viande],$A19,TabBDMenus[Nom mois menu],$E$3)","v":0},{"$f":"SUMIFS(TabBDMenus[Quantité menu viande],TabBDMenus[Nom menu viande],$A19,TabBDMenus[Nom mois menu],$F$3)","v":0},{"$f":"SUMIFS(TabBDMenus[Quantité menu viande],TabBDMenus[Nom menu viande],$A19,TabBDMenus[Nom mois menu],$G$3)","v":0},{"$f":"SUMIFS(TabBDMenus[Quantité menu viande],TabBDMenus[Nom menu viande],$A19,TabBDMenus[Nom mois menu],$H$3)","v":0},{"$f":"SUMIFS(TabBDMenus[Quantité menu viande],TabBDMenus[Nom menu viande],$A19,TabBDMenus[Nom mois menu],$I$3)","v":0},{"$f":"SUMIFS(TabBDMenus[Quantité menu viande],TabBDMenus[Nom menu viande],$A19,TabBDMenus[Nom mois menu],$J$3)","v":0},{"$f":"SUMIFS(TabBDMenus[Quantité menu viande],TabBDMenus[Nom menu viande],$A19,TabBDMenus[Nom mois menu],$K$3)","v":0},{"$f":"SUMIFS(TabBDMenus[Quantité menu viande],TabBDMenus[Nom menu viande],$A19,TabBDMenus[Nom mois menu],$L$3)","v":0},{"$f":"SUMIFS(TabBDMenus[Quantité menu viande],TabBDMenus[Nom menu viande],$A19,TabBDMenus[Nom mois menu],$M$3)","v":0},0]
["Quiche lorraine",{"$f":"SUMIFS(TabBDMenus[Quantité menu viande],TabBDMenus[Nom menu viande],$A20,TabBDMenus[Nom mois menu],$B$3)","v":0},{"$f":"SUMIFS(TabBDMenus[Quantité menu viande],TabBDMenus[Nom menu viande],$A20,TabBDMenus[Nom mois menu],$C$3)","v":0},{"$f":"SUMIFS(TabBDMenus[Quantité menu viande],TabBDMenus[Nom menu viande],$A20,TabBDMenus[Nom mois menu],$D$3)","v":0},{"$f":"SUMIFS(TabBDMenus[Quantité menu viande],TabBDMenus[Nom menu viande],$A20,TabBDMenus[Nom mois menu],$E$3)","v":0},{"$f":"SUMIFS(TabBDMenus[Quantité menu viande],TabBDMenus[Nom menu viande],$A20,TabBDMenus[Nom mois menu],$F$3)","v":0},{"$f":"SUMIFS(TabBDMenus[Quantité menu viande],TabBDMenus[Nom menu viande],$A20,TabBDMenus[Nom mois menu],$G$3)","v":0},{"$f":"SUMIFS(TabBDMenus[Quantité menu viande],TabBDMenus[Nom menu viande],$A20,TabBDMenus[Nom mois menu],$H$3)","v":0},{"$f":"SUMIFS(TabBDMenus[Quantité menu viande],TabBDMenus[Nom menu viande],$A20,TabBDMenus[Nom mois menu],$I$3)","v":0},{"$f":"SUMIFS(TabBDMenus[Quantité menu viande],TabBDMenus[Nom menu viande],$A20,TabBDMenus[Nom mois menu],$J$3)","v":0},{"$f":"SUMIFS(TabBDMenus[Quantité menu viande],TabBDMenus[Nom menu viande],$A20,TabBDMenus[Nom mois menu],$K$3)","v":0},{"$f":"SUMIFS(TabBDMenus[Quantité menu viande],TabBDMenus[Nom menu viande],$A20,TabBDMenus[Nom mois menu],$L$3)","v":0},{"$f":"SUMIFS(TabBDMenus[Quantité menu viande],TabBDMenus[Nom menu viande],$A20,TabBDMenus[Nom mois menu],$M$3)","v":0},0]
["Rôti d'agneau",{"$f":"SUMIFS(TabBDMenus[Quantité menu viande],TabBDMenus[Nom menu viande],$A21,TabBDMenus[Nom mois menu],$B$3)","v":0},{"$f":"SUMIFS(TabBDMenus[Quantité menu viande],TabBDMenus[Nom menu viande],$A21,TabBDMenus[Nom mois menu],$C$3)","v":0},{"$f":"SUMIFS(TabBDMenus[Quantité menu viande],TabBDMenus[Nom menu viande],$A21,TabBDMenus[Nom mois menu],$D$3)","v":0},{"$f":"SUMIFS(TabBDMenus[Quantité menu viande],TabBDMenus[Nom menu viande],$A21,TabBDMenus[Nom mois menu],$E$3)","v":0},{"$f":"SUMIFS(TabBDMenus[Quantité menu viande],TabBDMenus[Nom menu viande],$A21,TabBDMenus[Nom mois menu],$F$3)","v":0},{"$f":"SUMIFS(TabBDMenus[Quantité menu viande],TabBDMenus[Nom menu viande],$A21,TabBDMenus[Nom mois menu],$G$3)","v":0},{"$f":"SUMIFS(TabBDMenus[Quantité menu viande],TabBDMenus[Nom menu viande],$A21,TabBDMenus[Nom mois menu],$H$3)","v":0},{"$f":"SUMIFS(TabBDMenus[Quantité menu viande],TabBDMenus[Nom menu viande],$A21,TabBDMenus[Nom mois menu],$I$3)","v":0},{"$f":"SUMIFS(TabBDMenus[Quantité menu viande],TabBDMenus[Nom menu viande],$A21,TabBDMenus[Nom mois menu],$J$3)","v":0},{"$f":"SUMIFS(TabBDMenus[Quantité menu viande],TabBDMenus[Nom menu viande],$A21,TabBDMenus[Nom mois menu],$K$3)","v":0},{"$f":"SUMIFS(TabBDMenus[Quantité menu viande],TabBDMenus[Nom menu viande],$A21,TabBDMenus[Nom mois menu],$L$3)","v":0},{"$f":"SUMIFS(TabBDMenus[Quantité menu viande],TabBDMenus[Nom menu viande],$A21,TabBDMenus[Nom mois menu],$M$3)","v":0},0]
["Rôti de bœuf",{"$f":"SUMIFS(TabBDMenus[Quantité menu viande],TabBDMenus[Nom menu viande],$A22,TabBDMenus[Nom mois menu],$B$3)","v":0},{"$f":"SUMIFS(TabBDMenus[Quantité menu viande],TabBDMenus[Nom menu viande],$A22,TabBDMenus[Nom mois menu],$C$3)","v":0},{"$f":"SUMIFS(TabBDMenus[Quantité menu viande],TabBDMenus[Nom menu viande],$A22,TabBDMenus[Nom mois menu],$D$3)","v":0},{"$f":"SUMIFS(TabBDMenus[Quantité menu viande],TabBDMenus[Nom menu viande],$A22,TabBDMenus[Nom mois menu],$E$3)","v":0},{"$f":"SUMIFS(TabBDMenus[Quantité menu viande],TabBDMenus[Nom menu viande],$A22,TabBDMenus[Nom mois menu],$F$3)","v":0},{"$f":"SUMIFS(TabBDMenus[Quantité menu viande],TabBDMenus[Nom menu viande],$A22,TabBDMenus[Nom mois menu],$G$3)","v":0},{"$f":"SUMIFS(TabBDMenus[Quantité menu viande],TabBDMenus[Nom menu viande],$A22,TabBDMenus[Nom mois menu],$H$3)","v":0},{"$f":"SUMIFS(TabBDMenus[Quantité menu viande],TabBDMenus[Nom menu viande],$A22,TabBDMenus[Nom mois menu],$I$3)","v":0},{"$f":"SUMIFS(TabBDMenus[Quantité menu viande],TabBDMenus[Nom menu viande],$A22,TabBDMenus[Nom mois menu],$J$3)","v":0},{"$f":"SUMIFS(TabBDMenus[Quantité menu viande],TabBDMenus[Nom menu viande],$A22,TabBDMenus[Nom mois menu],$K$3)","v":0},{"$f":"SUMIFS(TabBDMenus[Quantité menu viande],TabBDMenus[Nom menu viande],$A22,TabBDMenus[Nom mois menu],$L$3)","v":0},{"$f":"SUMIFS(TabBDMenus[Quantité menu viande],TabBDMenus[Nom menu viande],$A22,TabBDMenus[Nom mois menu],$M$3)","v":0},0]
["Rôti de cheval",{"$f":"SUMIFS(TabBDMenus[Quantité menu viande],TabBDMenus[Nom menu viande],$A23,TabBDMenus[Nom mois menu],$B$3)","v":0},{"$f":"SUMIFS(TabBDMenus[Quantité menu viande],TabBDMenus[Nom menu viande],$A23,TabBDMenus[Nom mois menu],$C$3)","v":0},{"$f":"SUMIFS(TabBDMenus[Quantité menu viande],TabBDMenus[Nom menu viande],$A23,TabBDMenus[Nom mois menu],$D$3)","v":0},{"$f":"SUMIFS(TabBDMenus[Quantité menu viande],TabBDMenus[Nom menu viande],$A23,TabBDMenus[Nom mois menu],$E$3)","v":0},{"$f":"SUMIFS(TabBDMenus[Quantité menu viande],TabBDMenus[Nom menu viande],$A23,TabBDMenus[Nom mois menu],$F$3)","v":0},{"$f":"SUMIFS(TabBDMenus[Quantité menu viande],TabBDMenus[Nom menu viande],$A23,TabBDMenus[Nom mois menu],$G$3)","v":0},{"$f":"SUMIFS(TabBDMenus[Quantité menu viande],TabBDMenus[Nom menu viande],$A23,TabBDMenus[Nom mois menu],$H$3)","v":0},{"$f":"SUMIFS(TabBDMenus[Quantité menu viande],TabBDMenus[Nom menu viande],$A23,TabBDMenus[Nom mois menu],$I$3)","v":0},{"$f":"SUMIFS(TabBDMenus[Quantité menu viande],TabBDMenus[Nom menu viande],$A23,TabBDMenus[Nom mois menu],$J$3)","v":0},{"$f":"SUMIFS(TabBDMenus[Quantité menu viande],TabBDMenus[Nom menu viande],$A23,TabBDMenus[Nom mois menu],$K$3)","v":0},{"$f":"SUMIFS(TabBDMenus[Quantité menu viande],TabBDMenus[Nom menu viande],$A23,TabBDMenus[Nom mois menu],$L$3)","v":0},{"$f":"SUMIFS(TabBDMenus[Quantité menu viande],TabBDMenus[Nom menu viande],$A23,TabBDMenus[Nom mois menu],$M$3)","v":0},0]
["Rôti de porc",{"$f":"SUMIFS(TabBDMenus[Quantité menu viande],TabBDMenus[Nom menu viande],$A24,TabBDMenus[Nom mois menu],$B$3)","v":0},{"$f":"SUMIFS(TabBDMenus[Quantité menu viande],TabBDMenus[Nom menu viande],$A24,TabBDMenus[Nom mois menu],$C$3)","v":0},{"$f":"SUMIFS(TabBDMenus[Quantité menu viande],TabBDMenus[Nom menu viande],$A24,TabBDMenus[Nom mois menu],$D$3)","v":0},{"$f":"SUMIFS(TabBDMenus[Quantité menu viande],TabBDMenus[Nom menu viande],$A24,TabBDMenus[Nom mois menu],$E$3)","v":0},{"$f":"SUMIFS(TabBDMenus[Quantité menu viande],TabBDMenus[Nom menu viande],$A24,TabBDMenus[Nom mois menu],$F$3)","v":0},{"$f":"SUMIFS(TabBDMenus[Quantité menu viande],TabBDMenus[Nom menu viande],$A24,TabBDMenus[Nom mois menu],$G$3)","v":0},{"$f":"SUMIFS(TabBDMenus[Quantité menu viande],TabBDMenus[Nom menu viande],$A24,TabBDMenus[Nom mois menu],$H$3)","v":0},{"$f":"SUMIFS(TabBDMenus[Quantité menu viande],TabBDMenus[Nom menu viande],$A24,TabBDMenus[Nom mois menu],$I$3)","v":0},{"$f":"SUMIFS(TabBDMenus[Quantité menu viande],TabBDMenus[Nom menu viande],$A24,TabBDMenus[Nom mois menu],$J$3)","v":0},{"$f":"SUMIFS(TabBDMenus[Quantité menu viande],TabBDMenus[Nom menu viande],$A24,TabBDMenus[Nom mois menu],$K$3)","v":0},{"$f":"SUMIFS(TabBDMenus[Quantité menu viande],TabBDMenus[Nom menu viande],$A24,TabBDMenus[Nom mois menu],$L$3)","v":0},{"$f":"SUMIFS(TabBDMenus[Quantité menu viande],TabBDMenus[Nom menu viande],$A24,TabBDMenus[Nom mois menu],$M$3)","v":0},0]
["Rôti de veau",{"$f":"SUMIFS(TabBDMenus[Quantité menu viande],TabBDMenus[Nom menu viande],$A25,TabBDMenus[Nom mois menu],$B$3)","v":0},{"$f":"SUMIFS(TabBDMenus[Quantité menu viande],TabBDMenus[Nom menu viande],$A25,TabBDMenus[Nom mois menu],$C$3)","v":0},{"$f":"SUMIFS(TabBDMenus[Quantité menu viande],TabBDMenus[Nom menu viande],$A25,TabBDMenus[Nom mois menu],$D$3)","v":0},{"$f":"SUMIFS(TabBDMenus[Quantité menu viande],TabBDMenus[Nom menu viande],$A25,TabBDMenus[Nom mois menu],$E$3)","v":0},{"$f":"SUMIFS(TabBDMenus[Quantité menu viande],TabBDMenus[Nom menu viande],$A25,TabBDMenus[Nom mois menu],$F$3)","v":0},{"$f":"SUMIFS(TabBDMenus[Quantité menu viande],TabBDMenus[Nom menu viande],$A25,TabBDMenus[Nom mois menu],$G$3)","v":0},{"$f":"SUMIFS(TabBDMenus[Quantité menu viande],TabBDMenus[Nom menu viande],$A25,TabBDMenus[Nom mois menu],$H$3)","v":0},{"$f":"SUMIFS(TabBDMenus[Quantité menu viande],TabBDMenus[Nom menu viande],$A25,TabBDMenus[Nom mois menu],$I$3)","v":0},{"$f":"SUMIFS(TabBDMenus[Quantité menu viande],TabBDMenus[Nom menu viande],$A25,TabBDMenus[Nom mois menu],$J$3)","v":0},{"$f":"SUMIFS(TabBDMenus[Quantité menu viande],TabBDMenus[Nom menu viande],$A25,TabBDMenus[Nom mois menu],$K$3)","v":0},{"$f":"SUMIFS(TabBDMenus[Quantité menu viande],TabBDMenus[Nom menu viande],$A25,TabBDMenus[Nom mois menu],$L$3)","v":0},{"$f":"SUMIFS(TabBDMenus[Quantité menu viande],TabBDMenus[Nom menu viande],$A25,TabBDMenus[Nom mois menu],$M$3)","v":0},0]
["Roulade à la pistache",{"$f":"SUMIFS(TabBDMenus[Quantité menu viande],TabBDMenus[Nom menu viande],$A26,TabBDMenus[Nom mois menu],$B$3)","v":0},{"$f":"SUMIFS(TabBDMenus[Quantité menu viande],TabBDMenus[Nom menu viande],$A26,TabBDMenus[Nom mois menu],$C$3)","v":0},{"$f":"SUMIFS(TabBDMenus[Quantité menu viande],TabBDMenus[Nom menu viande],$A26,TabBDMenus[Nom mois menu],$D$3)","v":0},{"$f":"SUMIFS(TabBDMenus[Quantité menu viande],TabBDMenus[Nom menu viande],$A26,TabBDMenus[Nom mois menu],$E$3)","v":0},{"$f":"SUMIFS(TabBDMenus[Quantité menu viande],TabBDMenus[Nom menu viande],$A26,TabBDMenus[Nom mois menu],$F$3)","v":0},{"$f":"SUMIFS(TabBDMenus[Quantité menu viande],TabBDMenus[Nom menu viande],$A26,TabBDMenus[Nom mois menu],$G$3)","v":0},{"$f":"SUMIFS(TabBDMenus[Quantité menu viande],TabBDMenus[Nom menu viande],$A26,TabBDMenus[Nom mois menu],$H$3)","v":0},{"$f":"SUMIFS(TabBDMenus[Quantité menu viande],TabBDMenus[Nom menu viande],$A26,TabBDMenus[Nom mois menu],$I$3)","v":0},{"$f":"SUMIFS(TabBDMenus[Quantité menu viande],TabBDMenus[Nom menu viande],$A26,TabBDMenus[Nom mois menu],$J$3)","v":0},{"$f":"SUMIFS(TabBDMenus[Quantité menu viande],TabBDMenus[Nom menu viande],$A26,TabBDMenus[Nom mois menu],$K$3)","v":0},{"$f":"SUMIFS(TabBDMenus[Quantité menu viande],TabBDMenus[Nom menu viande],$A26,TabBDMenus[Nom mois menu],$L$3)","v":0},{"$f":"SUMIFS(TabBDMenus[Quantité menu viande],TabBDMenus[Nom menu viande],$A26,TabBDMenus[Nom mois menu],$M$3)","v":0},0]
["Roulé au fromage",{"$f":"SUMIFS(TabBDMenus[Quantité menu viande],TabBDMenus[Nom menu viande],$A27,TabBDMenus[Nom mois menu],$B$3)","v":0},{"$f":"SUMIFS(TabBDMenus[Quantité menu viande],TabBDMenus[Nom menu viande],$A27,TabBDMenus[Nom mois menu],$C$3)","v":0},{"$f":"SUMIFS(TabBDMenus[Quantité menu viande],TabBDMenus[Nom menu viande],$A27,TabBDMenus[Nom mois menu],$D$3)","v":0},{"$f":"SUMIFS(TabBDMenus[Quantité menu viande],TabBDMenus[Nom menu viande],$A27,TabBDMenus[Nom mois menu],$E$3)","v":0},{"$f":"SUMIFS(TabBDMenus[Quantité menu viande],TabBDMenus[Nom menu viande],$A27,TabBDMenus[Nom mois menu],$F$3)","v":0},{"$f":"SUMIFS(TabBDMenus[Quantité menu viande],TabBDMenus[Nom menu viande],$A27,TabBDMenus[Nom mois menu],$G$3)","v":0},{"$f":"SUMIFS(TabBDMenus[Quantité menu viande],TabBDMenus[Nom menu viande],$A27,TabBDMenus[Nom mois menu],$H$3)","v":0},{"$f":"SUMIFS(TabBDMenus[Quantité menu viande],TabBDMenus[Nom menu viande],$A27,TabBDMenus[Nom mois menu],$I$3)","v":0},{"$f":"SUMIFS(TabBDMenus[Quantité menu viande],TabBDMenus[Nom menu viande],$A27,TabBDMenus[Nom mois menu],$J$3)","v":0},{"$f":"SUMIFS(TabBDMenus[Quantité menu viande],TabBDMenus[Nom menu viande],$A27,TabBDMenus[Nom mois menu],$K$3)","v":0},{"$f":"SUMIFS(TabBDMenus[Quantité menu viande],TabBDMenus[Nom menu viande],$A27,TabBDMenus[Nom mois menu],$L$3)","v":0},{"$f":"SUMIFS(TabBDMenus[Quantité menu viande],TabBDMenus[Nom menu viande],$A27,TabBDMenus[Nom mois menu],$M$3)","v":0},0]
["Salami",{"$f":"SUMIFS(TabBDMenus[Quantité menu viande],TabBDMenus[Nom menu viande],$A28,TabBDMenus[Nom mois menu],$B$3)","v":0},{"$f":"SUMIFS(TabBDMenus[Quantité menu viande],TabBDMenus[Nom menu viande],$A28,TabBDMenus[Nom mois menu],$C$3)","v":0},{"$f":"SUMIFS(TabBDMenus[Quantité menu viande],TabBDMenus[Nom menu viande],$A28,TabBDMenus[Nom mois menu],$D$3)","v":0},{"$f":"SUMIFS(TabBDMenus[Quantité menu viande],TabBDMenus[Nom menu viande],$A28,TabBDMenus[Nom mois menu],$E$3)","v":0},{"$f":"SUMIFS(TabBDMenus[Quantité menu viande],TabBDMenus[Nom menu viande],$A28,TabBDMenus[Nom mois menu],$F$3)","v":0},{"$f":"SUMIFS(TabBDMenus[Quantité menu viande],TabBDMenus[Nom menu viande],$A28,TabBDMenus[Nom mois menu],$G$3)","v":0},{"$f":"SUMIFS(TabBDMenus[Quantité menu viande],TabBDMenus[Nom menu viande],$A28,TabBDMenus[Nom mois menu],$H$3)","v":0},{"$f":"SUMIFS(TabBDMenus[Quantité menu viande],TabBDMenus[Nom menu viande],$A28,TabBDMenus[Nom mois menu],$I$3)","v":0},{"$f":"SUMIFS(TabBDMenus[Quantité menu viande],TabBDMenus[Nom menu viande],$A28,TabBDMenus[Nom mois menu],$J$3)","v":0},{"$f":"SUMIFS(TabBDMenus[Quantité menu viande],TabBDMenus[Nom menu viande],$A28,TabBDMenus[Nom mois menu],$K$3)","v":0},{"$f":"SUMIFS(TabBDMenus[Quantité menu viande],TabBDMenus[Nom menu viande],$A28,TabBDMenus[Nom mois menu],$L$3)","v":0},{"$f":"SUMIFS(TabBDMenus[Quantité menu viande],TabBDMenus[Nom menu viande],$A28,TabBDMenus[Nom mois menu],$M$3)","v":0},0]
["Saucisses",{"$f":"SUMIFS(TabBDMenus[Quantité menu viande],TabBDMenus[Nom menu viande],$A29,TabBDMenus[Nom mois menu],$B$3)","v":0},{"$f":"SUMIFS(TabBDMenus[Quantité menu viande],TabBDMenus[Nom menu viande],$A29,TabBDMenus[Nom mois menu],$C$3)","v":0},{"$f":"SUMIFS(TabBDMenus[Quantité menu viande],TabBDMenus[Nom menu viande],$A29,TabBDMenus[Nom mois menu],$D$3)","v":0},{"$f":"SUMIFS(TabBDMenus[Quantité menu viande],TabBDMenus[Nom menu viande],$A29,TabBDMenus[Nom mois menu],$E$3)","v":0},{"$f":"SUMIFS(TabBDMenus[Quantité menu viande],TabBDMenus[Nom menu viande],$A29,TabBDMenus[Nom mois menu],$F$3)","v":0},{"$f":"SUMIFS(TabBDMenus[Quantité menu viande],TabBDMenus[Nom menu viande],$A29,TabBDMenus[Nom mois menu],$G$3)","v":0},{"$f":"SUMIFS(TabBDMenus[Quantité menu viande],TabBDMenus[Nom menu viande],$A29,TabBDMenus[Nom mois menu],$H$3)","v":0},{"$f":"SUMIFS(TabBDMenus[Quantité menu viande],TabBDMenus[Nom menu viande],$A29,TabBDMenus[Nom mois menu],$I$3)","v":0},{"$f":"SUMIFS(TabBDMenus[Quantité menu viande],TabBDMenus[Nom menu viande],$A29,TabBDMenus[Nom mois menu],$J$3)","v":0},{"$f":"SUMIFS(TabBDMenus[Quantité menu viande],TabBDMenus[Nom menu viande],$A29,TabBDMenus[Nom mois menu],$K$3)","v":0},{"$f":"SUMIFS(TabBDMenus[Quantité menu viande],TabBDMenus[Nom menu viande],$A29,TabBDMenus[Nom mois menu],$L$3)","v":0},{"$f":"SUMIFS(TabBDMenus[Quantité menu viande],TabBDMenus[Nom menu viande],$A29,TabBDMenus[Nom mois menu],$M$3)","v":0},0]
["Saucisson",{"$f":"SUMIFS(TabBDMenus[Quantité menu viande],TabBDMenus[Nom menu viande],$A30,TabBDMenus[Nom mois menu],$B$3)","v":0},{"$f":"SUMIFS(TabBDMenus[Quantité menu viande],TabBDMenus[Nom menu viande],$A30,TabBDMenus[Nom mois menu],$C$3)","v":0},{"$f":"SUMIFS(TabBDMenus[Quantité menu viande],TabBDMenus[Nom menu viande],$A30,TabBDMenus[Nom mois menu],$D$3)","v":0},{"$f":"SUMIFS(TabBDMenus[Quantité menu viande],TabBDMenus[Nom menu viande],$A30,TabBDMenus[Nom mois menu],$E$3)","v":0},{"$f":"SUMIFS(TabBDMenus[Quantité menu viande],TabBDMenus[Nom menu viande],$A30,TabBDMenus[Nom mois menu],$F$3)","v":0},{"$f":"SUMIFS(TabBDMenus[Quantité menu viande],TabBDMenus[Nom menu viande],$A30,TabBDMenus[Nom mois menu],$G$3)","v":0},{"$f":"SUMIFS(TabBDMenus[Quantité menu viande],TabBDMenus[Nom menu viande],$A30,TabBDMenus[Nom mois menu],$H$3)","v":0},{"$f":"SUMIFS(TabBDMenus[Quantité menu viande],TabBDMenus[Nom menu viande],$A30,TabBDMenus[Nom mois menu],$I$3)","v":0},{"$f":"SUMIFS(TabBDMenus[Quantité menu viande],TabBDMenus[Nom menu viande],$A30,TabBDMenus[Nom mois menu],$J$3)","v":0},{"$f":"SUMIFS(TabBDMenus[Quantité menu viande],TabBDMenus[Nom menu viande],$A30,TabBDMenus[Nom mois menu],$K$3)","v":0},{"$f":"SUMIFS(TabBDMenus[Quantité menu viande],TabBDMenus[Nom menu viande],$A30,TabBDMenus[Nom mois menu],$L$3)","v":0},{"$f":"SUMIFS(TabBDMenus[Quantité menu viande],TabBDMenus[Nom menu viande],$A30,TabBDMenus[Nom mois menu],$M$3)","v":0},0]
["Tête persillée",{"$f":"SUMIFS(TabBDMenus[Quantité menu viande],TabBDMenus[Nom menu viande],$A31,TabBDMenus[Nom mois menu],$B$3)","v":0},{"$f":"SUMIFS(TabBDMenus[Quantité menu viande],TabBDMenus[Nom menu viande],$A31,TabBDMenus[Nom mois menu],$C$3)","v":0},{"$f":"SUMIFS(TabBDMenus[Quantité menu viande],TabBDMenus[Nom menu viande],$A31,TabBDMenus[Nom mois menu],$D$3)","v":0},{"$f":"SUMIFS(TabBDMenus[Quantité menu viande],TabBDMenus[Nom menu viande],$A31,TabBDMenus[Nom mois menu],$E$3)","v":0},{"$f":"SUMIFS(TabBDMenus[Quantité menu viande],TabBDMenus[Nom menu viande],$A31,TabBDMenus[Nom mois menu],$F$3)","v":0},{"$f":"SUMIFS(TabBDMenus[Quantité menu viande],TabBDMenus[Nom menu viande],$A31,TabBDMenus[Nom mois menu],$G$3)","v":0},{"$f":"SUMIFS(TabBDMenus[Quantité menu viande],TabBDMenus[Nom menu viande],$A31,TabBDMenus[Nom mois menu],$H$3)","v":0},{"$f":"SUMIFS(TabBDMenus[Quantité menu viande],TabBDMenus[Nom menu viande],$A31,TabBDMenus[Nom mois menu],$I$3)","v":0},{"$f":"SUMIFS(TabBDMenus[Quantité menu viande],TabBDMenus[Nom menu viande],$A31,TabBDMenus[Nom mois menu],$J$3)","v":0},{"$f":"SUMIFS(TabBDMenus[Quantité menu viande],TabBDMenus[Nom menu viande],$A31,TabBDMenus[Nom mois menu],$K$3)","v":0},{"$f":"SUMIFS(TabBDMenus[Quantité menu viande],TabBDMenus[Nom menu viande],$A31,TabBDMenus[Nom mois menu],$L$3)","v":0},{"$f":"SUMIFS(TabBDMenus[Quantité menu viande],TabBDMenus[Nom menu viande],$A31,TabBDMenus[Nom mois menu],$M$3)","v":0},0]
["Tête roulée",{"$f":"SUMIFS(TabBDMenus[Quantité menu viande],TabBDMenus[Nom menu viande],$A32,TabBDMenus[Nom mois menu],$B$3)","v":0},{"$f":"SUMIFS(TabBDMenus[Quantité menu viande],TabBDMenus[Nom menu viande],$A32,TabBDMenus[Nom mois menu],$C$3)","v":0},{"$f":"SUMIFS(TabBDMenus[Quantité menu viande],TabBDMenus[Nom menu viande],$A32,TabBDMenus[Nom mois menu],$D$3)","v":0},{"$f":"SUMIFS(TabBDMenus[Quantité menu viande],TabBDMenus[Nom menu viande],$A32,TabBDMenus[Nom mois menu],$E$3)","v":0},{"$f":"SUMIFS(TabBDMenus[Quantité menu viande],TabBDMenus[Nom menu viande],$A32,TabBDMenus[Nom mois menu],$F$3)","v":0},{"$f":"SUMIFS(TabBDMenus[Quantité menu viande],TabBDMenus[Nom menu viande],$A32,TabBDMenus[Nom mois menu],$G$3)","v":0},{"$f":"SUMIFS(TabBDMenus[Quantité menu viande],TabBDMenus[Nom menu viande],$A32,TabBDMenus[Nom mois menu],$H$3)","v":0},{"$f":"SUMIFS(TabBDMenus[Quantité menu viande],TabBDMenus[Nom menu viande],$A32,TabBDMenus[Nom mois menu],$I$3)","v":0},{"$f":"SUMIFS(TabBDMenus[Quantité menu viande],TabBDMenus[Nom menu viande],$A32,TabBDMenus[Nom mois menu],$J$3)","v":0},{"$f":"SUMIFS(TabBDMenus[Quantité menu viande],TabBDMenus[Nom menu viande],$A32,TabBDMenus[Nom mois menu],$K$3)","v":0},{"$f":"SUMIFS(TabBDMenus[Quantité menu viande],TabBDMenus[Nom menu viande],$A32,TabBDMenus[Nom mois menu],$L$3)","v":0},{"$f":"SUMIFS(TabBDMenus[Quantité menu viande],TabBDMenus[Nom menu viande],$A32,TabBDMenus[Nom mois menu],$M$3)","v":0},0]
["Thon",{"$f":"SUMIFS(TabBDMenus[Quantité menu viande],TabBDMenus[Nom menu viande],$A33,TabBDMenus[Nom mois menu],$B$3)","v":0},{"$f":"SUMIFS(TabBDMenus[Quantité menu viande],TabBDMenus[Nom menu viande],$A33,TabBDMenus[Nom mois menu],$C$3)","v":0},{"$f":"SUMIFS(TabBDMenus[Quantité menu viande],TabBDMenus[Nom menu viande],$A33,TabBDMenus[Nom mois menu],$D$3)","v":0},{"$f":"SUMIFS(TabBDMenus[Quantité menu viande],TabBDMenus[Nom menu viande],$A33,TabBDMenus[Nom mois menu],$E$3)","v":0},{"$f":"SUMIFS(TabBDMenus[Quantité menu viande],TabBDMenus[Nom menu viande],$A33,TabBDMenus[Nom mois menu],$F$3)","v":0},{"$f":"SUMIFS(TabBDMenus[Quantité menu viande],TabBDMenus[Nom menu viande],$A33,TabBDMenus[Nom mois menu],$G$3)","v":0},{"$f":"SUMIFS(TabBDMenus[Quantité menu viande],TabBDMenus[Nom menu viande],$A33,TabBDMenus[Nom mois menu],$H$3)","v":0},{"$f":"SUMIFS(TabBDMenus[Quantité menu viande],TabBDMenus[Nom menu viande],$A33,TabBDMenus[Nom mois menu],$I$3)","v":0},{"$f":"SUMIFS(TabBDMenus[Quantité menu viande],TabBDMenus[Nom menu viande],$A33,TabBDMenus[Nom mois menu],$J$3)","v":0},{"$f":"SUMIFS(TabBDMenus[Quantité menu viande],TabBDMenus[Nom menu viande],$A33,TabBDMenus[Nom mois menu],$K$3)","v":0},{"$f":"SUMIFS(TabBDMenus[Quantité menu viande],TabBDMenus[Nom menu viande],$A33,TabBDMenus[Nom mois menu],$L$3)","v":0},{"$f":"SUMIFS(TabBDMenus[Quantité menu viande],TabBDMenus[Nom menu viande],$A33,TabBDMenus[Nom mois menu],$M$3)","v":0},0]
["Viande cassoulet",{"$f":"SUMIFS(TabBDMenus[Quantité menu viande],TabBDMenus[Nom menu viande],$A34,TabBDMenus[Nom mois menu],$B$3)","v":0},{"$f":"SUMIFS(TabBDMenus[Quantité menu viande],TabBDMenus[Nom menu viande],$A34,TabBDMenus[Nom mois menu],$C$3)","v":0},{"$f":"SUMIFS(TabBDMenus[Quantité menu viande],TabBDMenus[Nom menu viande],$A34,TabBDMenus[Nom mois menu],$D$3)","v":0},{"$f":"SUMIFS(TabBDMenus[Quantité menu viande],TabBDMenus[Nom menu viande],$A34,TabBDMenus[Nom mois menu],$E$3)","v":0},{"$f":"SUMIFS(TabBDMenus[Quantité menu viande],TabBDMenus[Nom menu viande],$A34,TabBDMenus[Nom mois menu],$F$3)","v":0},{"$f":"SUMIFS(TabBDMenus[Quantité menu viande],TabBDMenus[Nom menu viande],$A34,TabBDMenus[Nom mois menu],$G$3)","v":0},{"$f":"SUMIFS(TabBDMenus[Quantité menu viande],TabBDMenus[Nom menu viande],$A34,TabBDMenus[Nom mois menu],$H$3)","v":0},{"$f":"SUMIFS(TabBDMenus[Quantité menu viande],TabBDMenus[Nom menu viande],$A34,TabBDMenus[Nom mois menu],$I$3)","v":0},{"$f":"SUMIFS(TabBDMenus[Quantité menu viande],TabBDMenus[Nom menu viande],$A34,TabBDMenus[Nom mois menu],$J$3)","v":0},{"$f":"SUMIFS(TabBDMenus[Quantité menu viande],TabBDMenus[Nom menu viande],$A34,TabBDMenus[Nom mois menu],$K$3)","v":0},{"$f":"SUMIFS(TabBDMenus[Quantité menu viande],TabBDMenus[Nom menu viande],$A34,TabBDMenus[Nom mois menu],$L$3)","v":0},{"$f":"SUMIFS(TabBDMenus[Quantité menu viande],TabBDMenus[Nom menu viande],$A34,TabBDMenus[Nom mois menu],$M$3)","v":0},0]
["Viande choucroute",{"$f":"SUMIFS(TabBDMenus[Quantité menu viande],TabBDMenus[Nom menu viande],$A35,TabBDMenus[Nom mois menu],$B$3)","v":0},{"$f":"SUMIFS(TabBDMenus[Quantité menu viande],TabBDMenus[Nom menu viande],$A35,TabBDMenus[Nom mois menu],$C$3)","v":0},{"$f":"SUMIFS(TabBDMenus[Quantité menu viande],TabBDMenus[Nom menu viande],$A35,TabBDMenus[Nom mois menu],$D$3)","v":0},{"$f":"SUMIFS(TabBDMenus[Quantité menu viande],TabBDMenus[Nom menu viande],$A35,TabBDMenus[Nom mois menu],$E$3)","v":0},{"$f":"SUMIFS(TabBDMenus[Quantité menu viande],TabBDMenus[Nom menu viande],$A35,TabBDMenus[Nom mois menu],$F$3)","v":0},{"$f":"SUMIFS(TabBDMenus[Quantité menu viande],TabBDMenus[Nom menu viande],$A35,TabBDMenus[Nom mois menu],$G$3)","v":0},{"$f":"SUMIFS(TabBDMenus[Quantité menu viande],TabBDMenus[Nom menu viande],$A35,TabBDMenus[Nom mois menu],$H$3)","v":0},{"$f":"SUMIFS(TabBDMenus[Quantité menu viande],TabBDMenus[Nom menu viande],$A35,TabBDMenus[Nom mois menu],$I$3)","v":0},{"$f":"SUMIFS(TabBDMenus[Quantité menu viande],TabBDMenus[Nom menu viande],$A35,TabBDMenus[Nom mois menu],$J$3)","v":0},{"$f":"SUMIFS(TabBDMenus[Quantité menu viande],TabBDMenus[Nom menu viande],$A35,TabBDMenus[Nom mois menu],$K$3)","v":0},{"$f":"SUMIFS(TabBDMenus[Quantité menu viande],TabBDMenus[Nom menu viande],$A35,TabBDMenus[Nom mois menu],$L$3)","v":0},{"$f":"SUMIFS(TabBDMenus[Quantité menu viande],TabBDMenus[Nom menu viande],$A35,TabBDMenus[Nom mois menu],$M$3)","v":0},0]
["Viande paella",{"$f":"SUMIFS(TabBDMenus[Quantité menu viande],TabBDMenus[Nom menu viande],$A36,TabBDMenus[Nom mois menu],$B$3)","v":0},{"$f":"SUMIFS(TabBDMenus[Quantité menu viande],TabBDMenus[Nom menu viande],$A36,TabBDMenus[Nom mois menu],$C$3)","v":0},{"$f":"SUMIFS(TabBDMenus[Quantité menu viande],TabBDMenus[Nom menu viande],$A36,TabBDMenus[Nom mois menu],$D$3)","v":0},{"$f":"SUMIFS(TabBDMenus[Quantité menu viande],TabBDMenus[Nom menu viande],$A36,TabBDMenus[Nom mois menu],$E$3)","v":0},{"$f":"SUMIFS(TabBDMenus[Quantité menu viande],TabBDMenus[Nom menu viande],$A36,TabBDMenus[Nom mois menu],$F$3)","v":0},{"$f":"SUMIFS(TabBDMenus[Quantité menu viande],TabBDMenus[Nom menu viande],$A36,TabBDMenus[Nom mois menu],$G$3)","v":0},{"$f":"SUMIFS(TabBDMenus[Quantité menu viande],TabBDMenus[Nom menu viande],$A36,TabBDMenus[Nom mois menu],$H$3)","v":0},{"$f":"SUMIFS(TabBDMenus[Quantité menu viande],TabBDMenus[Nom menu viande],$A36,TabBDMenus[Nom mois menu],$I$3)","v":0},{"$f":"SUMIFS(TabBDMenus[Quantité menu viande],TabBDMenus[Nom menu viande],$A36,TabBDMenus[Nom mois menu],$J$3)","v":0},{"$f":"SUMIFS(TabBDMenus[Quantité menu viande],TabBDMenus[Nom menu viande],$A36,TabBDMenus[Nom mois menu],$K$3)","v":0},{"$f":"SUMIFS(TabBDMenus[Quantité menu viande],TabBDMenus[Nom menu viande],$A36,TabBDMenus[Nom mois menu],$L$3)","v":0},{"$f":"SUMIFS(TabBDMenus[Quantité menu viande],TabBDMenus[Nom menu viande],$A36,TabBDMenus[Nom mois menu],$M$3)","v":0},0]
["Agneau",{"$f":"SUMIFS(TabBDMenus[Quantité menu viande],TabBDMenus[Nom menu viande],$A37,TabBDMenus[Nom mois menu],$B$3)","v":0},{"$f":"SUMIFS(TabBDMenus[Quantité menu viande],TabBDMenus[Nom menu viande],$A37,TabBDMenus[Nom mois menu],$C$3)","v":0},{"$f":"SUMIFS(TabBDMenus[Quantité menu viande],TabBDMenus[Nom menu viande],$A37,TabBDMenus[Nom mois menu],$D$3)","v":0},{"$f":"SUMIFS(TabBDMenus[Quantité menu viande],TabBDMenus[Nom menu viande],$A37,TabBDMenus[Nom mois menu],$E$3)","v":0},{"$f":"SUMIFS(TabBDMenus[Quantité menu viande],TabBDMenus[Nom menu viande],$A37,TabBDMenus[Nom mois menu],$F$3)","v":0},{"$f":"SUMIFS(TabBDMenus[Quantité menu viande],TabBDMenus[Nom menu viande],$A37,TabBDMenus[Nom mois menu],$G$3)","v":0},{"$f":"SUMIFS(TabBDMenus[Quantité menu viande],TabBDMenus[Nom menu viande],$A37,TabBDMenus[Nom mois menu],$H$3)","v":0},{"$f":"SUMIFS(TabBDMenus[Quantité menu viande],TabBDMenus[Nom menu viande],$A37,TabBDMenus[Nom mois menu],$I$3)","v":0},{"$f":"SUMIFS(TabBDMenus[Quantité menu viande],TabBDMenus[Nom menu viande],$A37,TabBDMenus[Nom mois menu],$J$3)","v":0},{"$f":"SUMIFS(TabBDMenus[Quantité menu viande],TabBDMenus[Nom menu viande],$A37,TabBDMenus[Nom mois menu],$K$3)","v":0},{"$f":"SUMIFS(TabBDMenus[Quantité menu viande],TabBDMenus[Nom menu viande],$A37,TabBDMenus[Nom mois menu],$L$3)","v":0},{"$f":"SUMIFS(TabBDMenus[Quantité menu viande],TabBDMenus[Nom menu viande],$A37,TabBDMenus[Nom mois menu],$M$3)","v":0},0]
["Bœuf",{"$f":"SUMIFS(TabBDMenus[Quantité menu viande],TabBDMenus[Nom menu viande],$A38,TabBDMenus[Nom mois menu],$B$3)","v":0},{"$f":"SUMIFS(TabBDMenus[Quantité menu viande],TabBDMenus[Nom menu viande],$A38,TabBDMenus[Nom mois menu],$C$3)","v":0},{"$f":"SUMIFS(TabBDMenus[Quantité menu viande],TabBDMenus[Nom menu viande],$A38,TabBDMenus[Nom mois menu],$D$3)","v":0},{"$f":"SUMIFS(TabBDMenus[Quantité menu viande],TabBDMenus[Nom menu viande],$A38,TabBDMenus[Nom mois menu],$E$3)","v":0},{"$f":"SUMIFS(TabBDMenus[Quantité menu viande],TabBDMenus[Nom menu viande],$A38,TabBDMenus[Nom mois menu],$F$3)","v":0},{"$f":"SUMIFS(TabBDMenus[Quantité menu viande],TabBDMenus[Nom menu viande],$A38,TabBDMenus[Nom mois menu],$G$3)","v":0},{"$f":"SUMIFS(TabBDMenus[Quantité menu viande],TabBDMenus[Nom menu viande],$A38,TabBDMenus[Nom mois menu],$H$3)","v":0},{"$f":"SUMIFS(TabBDMenus[Quantité menu viande],TabBDMenus[Nom menu viande],$A38,TabBDMenus[Nom mois menu],$I$3)","v":0},{"$f":"SUMIFS(TabBDMenus[Quantité menu viande],TabBDMenus[Nom menu viande],$A38,TabBDMenus[Nom mois menu],$J$3)","v":0},{"$f":"SUMIFS(TabBDMenus[Quantité menu viande],TabBDMenus[Nom menu viande],$A38,TabBDMenus[Nom mois menu],$K$3)","v":0},{"$f":"SUMIFS(TabBDMenus[Quantité menu viande],TabBDMenus[Nom menu viande],$A38,TabBDMenus[Nom mois menu],$L$3)","v":0},{"$f":"SUMIFS(TabBDMenus[Quantité menu viande],TabBDMenus[Nom menu viande],$A38,TabBDMenus[Nom mois menu],$M$3)","v":0},0]
["Cheval",{"$f":"SUMIFS(TabBDMenus[Quantité menu viande],TabBDMenus[Nom menu viande],$A39,TabBDMenus[Nom mois menu],$B$3)","v":0},{"$f":"SUMIFS(TabBDMenus[Quantité menu viande],TabBDMenus[Nom menu viande],$A39,TabBDMenus[Nom mois menu],$C$3)","v":0},{"$f":"SUMIFS(TabBDMenus[Quantité menu viande],TabBDMenus[Nom menu viande],$A39,TabBDMenus[Nom mois menu],$D$3)","v":0},{"$f":"SUMIFS(TabBDMenus[Quantité menu viande],TabBDMenus[Nom menu viande],$A39,TabBDMenus[Nom mois menu],$E$3)","v":0},{"$f":"SUMIFS(TabBDMenus[Quantité menu viande],TabBDMenus[Nom menu viande],$A39,TabBDMenus[Nom mois menu],$F$3)","v":0},{"$f":"SUMIFS(TabBDMenus[Quantité menu viande],TabBDMenus[Nom menu viande],$A39,TabBDMenus[Nom mois menu],$G$3)","v":0},{"$f":"SUMIFS(TabBDMenus[Quantité menu viande],TabBDMenus[Nom menu viande],$A39,TabBDMenus[Nom mois menu],$H$3)","v":0},{"$f":"SUMIFS(TabBDMenus[Quantité menu viande],TabBDMenus[Nom menu viande],$A39,TabBDMenus[Nom mois menu],$I$3)","v":0},{"$f":"SUMIFS(TabBDMenus[Quantité menu viande],TabBDMenus[Nom menu viande],$A39,TabBDMenus[Nom mois menu],$J$3)","v":0},{"$f":"SUMIFS(TabBDMenus[Quantité menu viande],TabBDMenus[Nom menu viande],$A39,TabBDMenus[Nom mois menu],$K$3)","v":0},{"$f":"SUMIFS(TabBDMenus[Quantité menu viande],TabBDMenus[Nom menu viande],$A39,TabBDMenus[Nom mois menu],$L$3)","v":0},{"$f":"SUMIFS(TabBDMenus[Quantité menu viande],TabBDMenus[Nom menu viande],$A39,TabBDMenus[Nom mois menu],$M$3)","v":0},0]
["Dinde",{"$f":"SUMIFS(TabBDMenus[Quantité menu viande],TabBDMenus[Nom menu viande],$A40,TabBDMenus[Nom mois menu],$B$3)","v":0},{"$f":"SUMIFS(TabBDMenus[Quantité menu viande],TabBDMenus[Nom menu viande],$A40,TabBDMenus[Nom mois menu],$C$3)","v":0},{"$f":"SUMIFS(TabBDMenus[Quantité menu viande],TabBDMenus[Nom menu viande],$A40,TabBDMenus[Nom mois menu],$D$3)","v":0},{"$f":"SUMIFS(TabBDMenus[Quantité menu viande],TabBDMenus[Nom menu viande],$A40,TabBDMenus[Nom mois menu],$E$3)","v":0},{"$f":"SUMIFS(TabBDMenus[Quantité menu viande],TabBDMenus[Nom menu viande],$A40,TabBDMenus[Nom mois menu],$F$3)","v":0},{"$f":"SUMIFS(TabBDMenus[Quantité menu viande],TabBDMenus[Nom menu viande],$A40,TabBDMenus[Nom mois menu],$G$3)","v":0},{"$f":"SUMIFS(TabBDMenus[Quantité menu viande],TabBDMenus[Nom menu viande],$A40,TabBDMenus[Nom mois menu],$H$3)","v":0},{"$f":"SUMIFS(TabBDMenus[Quantité menu viande],TabBDMenus[Nom menu viande],$A40,TabBDMenus[Nom mois menu],$I$3)","v":0},{"$f":"SUMIFS(TabBDMenus[Quantité menu viande],TabBDMenus[Nom menu viande],$A40,TabBDMenus[Nom mois menu],$J$3)","v":0},{"$f":"SUMIFS(TabBDMenus[Quantité menu viande],TabBDMenus[Nom menu viande],$A40,TabBDMenus[Nom mois menu],$K$3)","v":0},{"$f":"SUMIFS(TabBDMenus[Quantité menu viande],TabBDMenus[Nom menu viande],$A40,TabBDMenus[Nom mois menu],$L$3)","v":0},{"$f":"SUMIFS(TabBDMenus[Quantité menu viande],TabBDMenus[Nom menu viande],$A40,TabBDMenus[Nom mois menu],$M$3)","v":0},0]
["Porc",{"$f":"SUMIFS(TabBDMenus[Quantité menu viande],TabBDMenus[Nom menu viande],$A41,TabBDMenus[Nom mois menu],$B$3)","v":0},{"$f":"SUMIFS(TabBDMenus[Quantité menu viande],TabBDMenus[Nom menu viande],$A41,TabBDMenus[Nom mois menu],$C$3)","v":0},{"$f":"SUMIFS(TabBDMenus[Quantité menu viande],TabBDMenus[Nom menu viande],$A41,TabBDMenus[Nom mois menu],$D$3)","v":0},{"$f":"SUMIFS(TabBDMenus[Quantité menu viande],TabBDMenus[Nom menu viande],$A41,TabBDMenus[Nom mois menu],$E$3)","v":0},{"$f":"SUMIFS(TabBDMenus[Quantité menu viande],TabBDMenus[Nom menu viande],$A41,TabBDMenus[Nom mois menu],$F$3)","v":0},{"$f":"SUMIFS(TabBDMenus[Quantité menu viande],TabBDMenus[Nom menu viande],$A41,TabBDMenus[Nom mois menu],$G$3)","v":0},{"$f":"SUMIFS(TabBDMenus[Quantité menu viande],TabBDMenus[Nom menu viande],$A41,TabBDMenus[Nom mois menu],$H$3)","v":0},{"$f":"SUMIFS(TabBDMenus[Quantité menu viande],TabBDMenus[Nom menu viande],$A41,TabBDMenus[Nom mois menu],$I$3)","v":0},{"$f":"SUMIFS(TabBDMenus[Quantité menu viande],TabBDMenus[Nom menu viande],$A41,TabBDMenus[Nom mois menu],$J$3)","v":0},{"$f":"SUMIFS(TabBDMenus[Quantité menu viande],TabBDMenus[Nom menu viande],$A41,TabBDMenus[Nom mois menu],$K$3)","v":0},{"$f":"SUMIFS(TabBDMenus[Quantité menu viande],TabBDMenus[Nom menu viande],$A41,TabBDMenus[Nom mois menu],$L$3)","v":0},{"$f":"SUMIFS(TabBDMenus[Quantité menu viande],TabBDMenus[Nom menu viande],$A41,TabBDMenus[Nom mois menu],$M$3)","v":0},0]
["Veau",{"$f":"SUMIFS(TabBDMenus[Quantité menu viande],TabBDMenus[Nom menu viande],$A42,TabBDMenus[Nom mois menu],$B$3)","v":0},{"$f":"SUMIFS(TabBDMenus[Quantité menu viande],TabBDMenus[Nom menu viande],$A42,TabBDMenus[Nom mois menu],$C$3)","v":0},{"$f":"SUMIFS(TabBDMenus[Quantité menu viande],TabBDMenus[Nom menu viande],$A42,TabBDMenus[Nom mois menu],$D$3)","v":0},{"$f":"SUMIFS(TabBDMenus[Quantité menu viande],TabBDMenus[Nom menu viande],$A42,TabBDMenus[Nom mois menu],$E$3)","v":0},{"$f":"SUMIFS(TabBDMenus[Quantité menu viande],TabBDMenus[Nom menu viande],$A42,TabBDMenus[Nom mois menu],$F$3)","v":0},{"$f":"SUMIFS(TabBDMenus[Quantité menu viande],TabBDMenus[Nom menu viande],$A42,TabBDMenus[Nom mois menu],$G$3)","v":0},{"$f":"SUMIFS(TabBDMenus[Quantité menu viande],TabBDMenus[Nom menu viande],$A42,TabBDMenus[Nom mois menu],$H$3)","v":0},{"$f":"SUMIFS(TabBDMenus[Quantité menu viande],TabBDMenus[Nom menu viande],$A42,TabBDMenus[Nom mois menu],$I$3)","v":0},{"$f":"SUMIFS(TabBDMenus[Quantité menu viande],TabBDMenus[Nom menu viande],$A42,TabBDMenus[Nom mois menu],$J$3)","v":0},{"$f":"SUMIFS(TabBDMenus[Quantité menu viande],TabBDMenus[Nom menu viande],$A42,TabBDMenus[Nom mois menu],$K$3)","v":0},{"$f":"SUMIFS(TabBDMenus[Quantité menu viande],TabBDMenus[Nom menu viande],$A42,TabBDMenus[Nom mois menu],$L$3)","v":0},{"$f":"SUMIFS(TabBDMenus[Quantité menu viande],TabBDMenus[Nom menu viande],$A42,TabBDMenus[Nom mois menu],$M$3)","v":0},0]
[{"$f":"\"Imprimé à Limeil-Brévannes, le \"&TEXT(TODAY(),\"jjjj j mmmm aaaa\")&\".\"","v":"Imprimé à Limeil-Brévannes, le lundi 28 août 2023."}]
["Pour la création des formules, ne pas passer par ni Formules, ni Insérer une fonction. tapez le signe égal, tapez SOMME.SI.ENS, tapez une parenthèse ouvrante, tapez Tab (la liste des Tab disponibles apparaît, cliquez sur"]
["TabBDMenus), tapez un crochet ouvrant, la liste des noms définis disponibles s'affiche à l'écran (ici choisir QMV) tapez un point virgule tapez Tab (la liste des Tab disponibles apparaît, cliquez sur TabBDMenus), tapez un "]
["crochet ouvrant, le liste des noms définis disponibles s'affiche à l'écran (ici cliquez sur NMV) tapez un point virgule À partir de la feuille Quantités viandes, cliquez sur la cellule A4 tapez un point virgule tapez Tab (la liste"]
["des Tab disponibles apparaît, cliquez sur TabBDMenus tapez un crochet ouvrant, la liste des noms définis disponibles s'affiche à l'écran (ici cliquez sur Mois) tapez un point virgule À partir de la feuille Quantités viandes,"]
["cliquez sur la cellule B3 tapez une parenthèse fermante. Rendre A4 en référence relative sur la colonne. Rendre B3 en référence absolue."]